﻿Body Name,Service Area,Expenses Type,Invoice Payment Date,Supplier Name,Net Amount
Manchester City Council,Manchester Leisure,Compensation Payments,01-Nov-23,Redacted personal info,"£7,000.00"
Manchester City Council,Regeneration Finance,Subsistence and Conference Expenses,01-Nov-23,Redacted personal info,"£4,418.13"
Manchester City Council,Hospitality + Trading Services,Equipment,01-Nov-23,Redacted personal info,£800.00
Manchester City Council,Adult Social Care,Furniture,01-Nov-23,The Furnishing Service Ltd,-£789.77
Manchester City Council,Manchester Leisure,Grant and subscriptions awarded,01-Nov-23,Barlow Moor Community Association,"£3,829.00"
Manchester City Council,Childrens & Education Services,Payments for services,01-Nov-23,Sense,£988.28
Manchester City Council,Adult Social Care,Equipment,01-Nov-23,Frontier Therapeutics,"-£1,267.20"
Manchester City Council,Corporate Services,Agency staff provision,01-Nov-23,Search Consultancy Ltd,"£2,904.80"
Manchester City Council,Corporate Services,Grounds Maintenance,01-Nov-23,Arboricultural Services Treework,£580.00
Manchester City Council,Chief Executives,Advertising,01-Nov-23,Reach Publishing Services Ltd,"£2,748.90"
Manchester City Council,Hospitality + Trading Services,External repairs and maintenance for buildings,01-Nov-23,Amtoll Ltd,"-£2,374.30"
Manchester City Council,Hospitality + Trading Services,External repairs and maintenance for buildings,01-Nov-23,Amtoll Ltd,"-£4,238.64"
Manchester City Council,Hospitality + Trading Services,External repairs and maintenance for buildings,01-Nov-23,Amtoll Ltd,"-£4,398.10"
Manchester City Council,Hospitality + Trading Services,External repairs and maintenance for buildings,01-Nov-23,Amtoll Ltd,"-£2,987.20"
Manchester City Council,Chief Executives,Works and associated costs for Land and Buildings,01-Nov-23,Manchester International Festival,"£558,150.33"
Manchester City Council,Manchester Leisure,Equipment,01-Nov-23,T.H. Horn Ltd,-£625.00
Manchester City Council,Manchester Leisure,Equipment,01-Nov-23,T.H. Horn Ltd,-£590.00
Manchester City Council,Chief Executives,Printing,01-Nov-23,Browns CTP Ltd,£730.00
Manchester City Council,Manchester Leisure,Goods purchased for resale in Council outlets,01-Nov-23,Art Angels Publishing Ltd,£529.20
Manchester City Council,Adult Social Care,Rents,01-Nov-23,MJ Rental Ltd,"£93,275.98"
Manchester City Council,Manchester Leisure,Equipment,01-Nov-23,One Green World,"£2,200.00"
Manchester City Council,Manchester Leisure,Equipment,01-Nov-23,Cromwell Polythene Limited,"£10,626.00"
Manchester City Council,Chief Executives,Works and associated costs for Land and Buildings,01-Nov-23,Manchester Quays Limited,"£6,609.81"
Manchester City Council,Chief Executives,Works and associated costs for Land and Buildings,01-Nov-23,Manchester Quays Limited,"£6,609.81"
Manchester City Council,Adult Social Care,Rents,01-Nov-23,Housing Social Ltd,"-£4,720.00"
Manchester City Council,Adult Social Care,Rents,01-Nov-23,Housing Social Ltd,"£4,720.00"
Manchester City Council,Adult Social Care,Rents,01-Nov-23,Housing Social Ltd,"£4,720.00"
Manchester City Council,Chief Executives,Payments to Sub-Contractors,01-Nov-23,Redacted Personal Information,£671.90
Manchester City Council,Manchester Leisure,Agency staff provision,01-Nov-23,Manchester Art Gallery,"£3,009.09"
Manchester City Council,Environment and Operations,Construction Works,01-Nov-23,Balfour Beatty Living Places Ltd,"-£5,696.45"
Manchester City Council,Environment and Operations,Construction Works,01-Nov-23,Balfour Beatty Living Places Ltd,"-£3,510.55"
Manchester City Council,Chief Executives,Travel,01-Nov-23,Diversity Travel Ltd,"£2,125.00"
Manchester City Council,Chief Executives,Travel,01-Nov-23,Diversity Travel Ltd,"-£2,125.00"
Manchester City Council,Corporate Services,Car Parking Expenses,01-Nov-23,NCP Members Parking,"£1,333.33"
Manchester City Council,Corporate Services,Training and Development,01-Nov-23,LTE Group,£890.00
Manchester City Council,Manchester Leisure,Goods purchased for resale in Council outlets,01-Nov-23,U Studio Design Ltd,£952.02
Manchester City Council,Corporate Services,WPS Awards,01-Nov-23,Furniture Resource Centre Ltd,£679.18
Manchester City Council,Childrens Services,Works and associated costs for Land and Buildings,01-Nov-23,Warden Construction Ltd,"£2,496.88"
Manchester City Council,Adult Social Care,Bed & Breakfast Acc,01-Nov-23,Medlock House Ltd,"£7,742.00"
Manchester City Council,Adult Social Care,Bed & Breakfast Acc,01-Nov-23,Medlock House Ltd,"£7,154.00"
Manchester City Council,Adult Social Care,Bed & Breakfast Acc,01-Nov-23,Medlock House Ltd,"£7,693.00"
Manchester City Council,Chief Executives,Vehicle Plant Furniture and Equipment,01-Nov-23,euNetworks The Loop Limited,£800.00
Manchester City Council,Manchester Leisure,I T Provision,01-Nov-23,Eldercare (UK) Ltd,"£1,489.42"
Manchester City Council,Adult Social Care,Professional fees,01-Nov-23,Pinnacle Building and Surveying,£550.00
Manchester City Council,Manchester Leisure,Grant and subscriptions awarded,01-Nov-23,Kennys Global Links,£560.00
Manchester City Council,Manchester Leisure,Compensation Payments,01-Nov-23,Satchell Moran Solicitors,"£1,500.00"
Manchester City Council,Adult Social Care,Rents,01-Nov-23,A1 PROPERYY SOLUTIONS,"£5,113.00"
Manchester City Council,Manchester Leisure,Special Event,01-Nov-23,N4 Crew Ltd,£620.00
Manchester City Council,Childrens & Education Services,Compensation Payments,02-Nov-23,Redacted personal info,£575.00
Manchester City Council,Childrens & Education Services,Rechrgs to MCC Schs,02-Nov-23,Redacted personal info,£550.00
Manchester City Council,Adult Social Care,Housing Rents Debit,02-Nov-23,Redacted personal info,£599.49
Manchester City Council,Adult Social Care,Equipment,02-Nov-23,Lisclare,"£1,427.00"
Manchester City Council,Chief Executives,Agency staff provision,02-Nov-23,Gatenby Sanderson,"£4,221.00"
Manchester City Council,Corporate Services,Rents,02-Nov-23,Asda Stores Ltd (Leeds),"£16,318.70"
Manchester City Council,Adult Social Care,Equipment,02-Nov-23,Prism Medical UK Carefree Division,"£1,785.00"
Manchester City Council,Corporate Services,Professional fees,02-Nov-23,ECS Consultants Ltd,"£5,200.00"
Manchester City Council,Adult Social Care,Equipment,02-Nov-23,Mangar International Ltd/Winncare,"£5,250.00"
Manchester City Council,Manchester Leisure,Water - Metered,02-Nov-23,United Utilities Water Plc,£878.60
Manchester City Council,Childrens & Education Services,Transport Coach Hire,02-Nov-23,Mantax Radio Taxis Ltd,"£51,666.67"
Manchester City Council,Childrens & Education Services,Transport Coach Hire,02-Nov-23,Mantax Radio Taxis Ltd,"£60,005.99"
Manchester City Council,Manchester Leisure,Agency staff provision,02-Nov-23,M&G Transport & Technical Services,"£1,070.00"
Manchester City Council,Manchester Leisure,I T Provision,02-Nov-23,BT PLC,"£1,467.38"
Manchester City Council,Manchester Leisure,Refuse Collection,02-Nov-23,GTS Steam Cleaners,"£2,170.68"
Manchester City Council,Childrens & Education Services,Third party payments to other Local Authorities,02-Nov-23,Blessed Thomas Holford School,"£10,669.67"
Manchester City Council,Highways Services,Purchase of stores for re-distribution,02-Nov-23,P.F. Cusack (Tools Supplies) Ltd,£542.95
Manchester City Council,Corporate Services,Agency staff provision,02-Nov-23,Adecco Uk Ltd,"£1,800.00"
Manchester City Council,Regeneration Finance,Grant Payments,02-Nov-23,Oxford University Press,£695.00
Manchester City Council,Chief Executives,Legal Fees,02-Nov-23,Kings Chambers,£500.00
Manchester City Council,Regeneration Finance,Legal Fees,02-Nov-23,Kings Chambers,"£1,250.00"
Manchester City Council,Adult Social Care,Supported Accommodation,02-Nov-23,Mosscare Housing Ltd,£703.64
Manchester City Council,Adult Social Care,Supported Accommodation,02-Nov-23,Mosscare Housing Ltd,"£25,790.28"
Manchester City Council,Adult Social Care,Supported Accommodation,02-Nov-23,Mosscare Housing Ltd,"£2,088.40"
Manchester City Council,Adult Social Care,Supported Accommodation,02-Nov-23,Mosscare Housing Ltd,"£4,184.80"
Manchester City Council,Adult Social Care,Supported Accommodation,02-Nov-23,Mosscare Housing Ltd,"£4,184.80"
Manchester City Council,Manchester Leisure,Cleaning Equipment and Materials,02-Nov-23,Biffa Waste Services Ltd,"£5,102.70"
Manchester City Council,Adult Social Care,Third party payments relating to Voluntary Organisations,02-Nov-23,Riverside ECHG,"£51,708.00"
Manchester City Council,Manchester Leisure,Payments to Sub-Contractors,02-Nov-23,Groundwork Landscapes Ltd,£950.00
Manchester City Council,Highways Services,Building Materials for direct delivery,02-Nov-23,TARMAC,£616.71
Manchester City Council,Highways Services,Building Materials for direct delivery,02-Nov-23,TARMAC,"£1,216.36"
Manchester City Council,Adult Social Care,Third party payments relating to Voluntary Organisations,02-Nov-23,Greater Manchester Mental Health,"£9,061.00"
Manchester City Council,Adult Social Care,Third party payments to Health Authority,02-Nov-23,Central Mcr Uni Hospital t/a,"£63,985.75"
Manchester City Council,Adult Social Care,Third party payments to Health Authority,02-Nov-23,Central Mcr Uni Hospital t/a,"£84,500.00"
Manchester City Council,Chief Executives,Works and associated costs for Land and Buildings,02-Nov-23,Manchester International Festival,"-£558,160.33"
Manchester City Council,Corporate Services,Payments for services,02-Nov-23,Victoria Baths Trust,"£7,500.00"
Manchester City Council,Corporate Services,Payments for services,02-Nov-23,Victoria Baths Trust,"£6,254.33"
Manchester City Council,Corporate Services,Payments for services,02-Nov-23,Victoria Baths Trust,"£11,900.00"
Manchester City Council,Adult Social Care,Grant and subscriptions awarded,02-Nov-23,Greater Manchester Immigration Aid,"£30,000.00"
Manchester City Council,Adult Social Care,Agency staff provision,02-Nov-23,Breakthrough Uk Ltd,"£12,000.00"
Manchester City Council,Manchester Leisure,Grant and subscriptions awarded,02-Nov-23,Wythenshawe Community Farm,"£5,000.00"
Manchester City Council,Highways Services,Grounds Maintenance,02-Nov-23,Redgate Holdings Ltd,£900.00
Manchester City Council,Highways Services,Payments to Sub-Contractors,02-Nov-23,Fairway Landscapes Ltd,"£5,202.00"
Manchester City Council,Highways Services,Payments to Sub-Contractors,02-Nov-23,Fairway Landscapes Ltd,£720.00
Manchester City Council,Manchester Leisure,Special Event,02-Nov-23,University Of Manchester,"£1,049.40"
Manchester City Council,Childrens & Education Services,Payments for services,02-Nov-23,Tameside College,"£3,587.79"
Manchester City Council,Manchester Leisure,Electricity,02-Nov-23,Npower,"-£6,007.55"
Manchester City Council,Manchester Leisure,Electricity,02-Nov-23,Npower,"£2,627.37"
Manchester City Council,Manchester Leisure,Electricity,02-Nov-23,Npower,"£4,661.59"
Manchester City Council,Manchester Leisure,Electricity,02-Nov-23,Npower,"£13,454.36"
Manchester City Council,Manchester Leisure,Electricity,02-Nov-23,Npower,"£35,702.01"
Manchester City Council,Manchester Leisure,Electricity,02-Nov-23,Npower,"£2,930.19"
Manchester City Council,Manchester Leisure,Electricity,02-Nov-23,Npower,"£4,133.29"
Manchester City Council,Manchester Leisure,Electricity,02-Nov-23,Npower,"£1,705.25"
Manchester City Council,Manchester Leisure,Electricity,02-Nov-23,Npower,"£8,984.68"
Manchester City Council,Manchester Leisure,Electricity,02-Nov-23,Npower,"£3,207.35"
Manchester City Council,Manchester Leisure,Electricity,02-Nov-23,Npower,"£2,291.50"
Manchester City Council,Manchester Leisure,Electricity,02-Nov-23,Npower,"£22,488.38"
Manchester City Council,Manchester Leisure,Electricity,02-Nov-23,Npower,"£11,727.49"
Manchester City Council,Manchester Leisure,Electricity,02-Nov-23,Npower,"£10,537.23"
Manchester City Council,Manchester Leisure,Electricity,02-Nov-23,Npower,"£15,532.34"
Manchester City Council,Manchester Leisure,Electricity,02-Nov-23,Npower,"£2,678.75"
Manchester City Council,Manchester Leisure,Electricity,02-Nov-23,Npower,"£1,384.56"
Manchester City Council,Manchester Leisure,Electricity,02-Nov-23,Npower,"£3,342.14"
Manchester City Council,Manchester Leisure,Electricity,02-Nov-23,Npower,"£3,197.76"
Manchester City Council,Manchester Leisure,Electricity,02-Nov-23,Npower,"£130,675.12"
Manchester City Council,Manchester Leisure,Electricity,02-Nov-23,Npower,"£5,829.05"
Manchester City Council,Manchester Leisure,Electricity,02-Nov-23,Npower,"£8,523.91"
Manchester City Council,Manchester Leisure,Electricity,02-Nov-23,Npower,"£1,535.12"
Manchester City Council,Manchester Leisure,Electricity,02-Nov-23,Npower,"£23,026.89"
Manchester City Council,Manchester Leisure,Electricity,02-Nov-23,Npower,"£91,378.73"
Manchester City Council,Manchester Leisure,Electricity,02-Nov-23,Npower,"£35,769.39"
Manchester City Council,Manchester Leisure,Electricity,02-Nov-23,Npower,"£21,906.48"
Manchester City Council,Manchester Leisure,Electricity,02-Nov-23,Npower,"£5,875.18"
Manchester City Council,Manchester Leisure,Electricity,02-Nov-23,Npower,"£2,616.43"
Manchester City Council,Manchester Leisure,Electricity,02-Nov-23,Npower,"£2,360.66"
Manchester City Council,Manchester Leisure,Electricity,02-Nov-23,Npower,"£3,033.93"
Manchester City Council,Manchester Leisure,Electricity,02-Nov-23,Npower,"£8,441.15"
Manchester City Council,Manchester Leisure,Electricity,02-Nov-23,Npower,"£2,125.16"
Manchester City Council,Manchester Leisure,Electricity,02-Nov-23,Npower,"£11,728.15"
Manchester City Council,Manchester Leisure,Electricity,02-Nov-23,Npower,"£2,240.03"
Manchester City Council,Manchester Leisure,Electricity,02-Nov-23,Npower,"£1,867.43"
Manchester City Council,Manchester Leisure,Electricity,02-Nov-23,Npower,"£3,973.48"
Manchester City Council,Manchester Leisure,Electricity,02-Nov-23,Npower,"£2,116.24"
Manchester City Council,Manchester Leisure,Electricity,02-Nov-23,Npower,"£1,665.69"
Manchester City Council,Manchester Leisure,Electricity,02-Nov-23,Npower,"£2,714.45"
Manchester City Council,Manchester Leisure,Electricity,02-Nov-23,Npower,"£2,326.52"
Manchester City Council,Manchester Leisure,Electricity,02-Nov-23,Npower,"£3,003.45"
Manchester City Council,Manchester Leisure,Electricity,02-Nov-23,Npower,"£1,598.27"
Manchester City Council,Libraries and Theatres,Electricity,02-Nov-23,Npower,£882.69
Manchester City Council,Hospitality + Trading Services,Electricity,02-Nov-23,Npower,"£49,703.89"
Manchester City Council,Hospitality + Trading Services,Electricity,02-Nov-23,Npower,"£49,898.47"
Manchester City Council,Hospitality + Trading Services,Electricity,02-Nov-23,Npower,"£5,559.82"
Manchester City Council,Hospitality + Trading Services,Electricity,02-Nov-23,Npower,"£1,459.18"
Manchester City Council,Hospitality + Trading Services,Electricity,02-Nov-23,Npower,"£21,521.54"
Manchester City Council,Hospitality + Trading Services,Electricity,02-Nov-23,Npower,"£34,293.57"
Manchester City Council,Hospitality + Trading Services,Electricity,02-Nov-23,Npower,"£4,934.14"
Manchester City Council,Hospitality + Trading Services,Electricity,02-Nov-23,Npower,"£139,105.65"
Manchester City Council,Hospitality + Trading Services,Electricity,02-Nov-23,Npower,"£4,548.46"
Manchester City Council,Childrens & Education Services,Electricity,02-Nov-23,Npower,£869.55
Manchester City Council,Childrens & Education Services,Electricity,02-Nov-23,Npower,"£1,558.04"
Manchester City Council,Childrens & Education Services,Electricity,02-Nov-23,Npower,"£1,775.79"
Manchester City Council,Adult Social Care,Electricity,02-Nov-23,Npower,"£3,090.28"
Manchester City Council,Adult Social Care,Electricity,02-Nov-23,Npower,"£3,120.19"
Manchester City Council,Adult Social Care,Electricity,02-Nov-23,Npower,"£3,515.24"
Manchester City Council,Adult Social Care,Electricity,02-Nov-23,Npower,"£2,546.94"
Manchester City Council,Adult Social Care,Electricity,02-Nov-23,Npower,"£3,295.24"
Manchester City Council,Corporate Services,Electricity,02-Nov-23,Npower,"£84,438.38"
Manchester City Council,Corporate Services,Electricity,02-Nov-23,Npower,"£6,083.17"
Manchester City Council,Corporate Services,Electricity,02-Nov-23,Npower,"£12,927.82"
Manchester City Council,Corporate Services,Electricity,02-Nov-23,Npower,"£2,465.36"
Manchester City Council,Corporate Services,Electricity,02-Nov-23,Npower,"£2,162.29"
Manchester City Council,Corporate Services,Electricity,02-Nov-23,Npower,"£1,608.25"
Manchester City Council,Corporate Services,Electricity,02-Nov-23,Npower,"£2,521.59"
Manchester City Council,Corporate Services,Electricity,02-Nov-23,Npower,"£23,020.31"
Manchester City Council,Corporate Services,Electricity,02-Nov-23,Npower,£940.28
Manchester City Council,Corporate Services,Electricity,02-Nov-23,Npower,"£13,077.02"
Manchester City Council,Corporate Services,Electricity,02-Nov-23,Npower,"£2,072.83"
Manchester City Council,Corporate Services,Electricity,02-Nov-23,Npower,"£5,776.59"
Manchester City Council,Corporate Services,Electricity,02-Nov-23,Npower,"£9,449.67"
Manchester City Council,Corporate Services,Electricity,02-Nov-23,Npower,"£9,756.84"
Manchester City Council,Corporate Services,Electricity,02-Nov-23,Npower,"£3,777.16"
Manchester City Council,Corporate Services,Electricity,02-Nov-23,Npower,"£2,931.16"
Manchester City Council,Corporate Services,Electricity,02-Nov-23,Npower,"£7,146.81"
Manchester City Council,Corporate Services,Electricity,02-Nov-23,Npower,"£5,755.30"
Manchester City Council,Corporate Services,Electricity,02-Nov-23,Npower,"£9,928.94"
Manchester City Council,Corporate Services,Electricity,02-Nov-23,Npower,"£8,901.94"
Manchester City Council,Corporate Services,Electricity,02-Nov-23,Npower,"£5,545.68"
Manchester City Council,Corporate Services,Electricity,02-Nov-23,Npower,"£3,907.41"
Manchester City Council,Corporate Services,Electricity,02-Nov-23,Npower,"£61,137.88"
Manchester City Council,Corporate Services,Electricity,02-Nov-23,Npower,"£1,544.12"
Manchester City Council,Corporate Services,Electricity,02-Nov-23,Npower,"£1,205.48"
Manchester City Council,Corporate Services,Electricity,02-Nov-23,Npower,"£1,318.18"
Manchester City Council,Corporate Services,Electricity,02-Nov-23,Npower,£805.55
Manchester City Council,Corporate Services,Electricity,02-Nov-23,Npower,£531.38
Manchester City Council,Housing Revenue Account,Electricity,02-Nov-23,Npower,"£2,511.64"
Manchester City Council,Regeneration Finance,Electricity,02-Nov-23,Npower,"£4,580.90"
Manchester City Council,Regeneration Finance,Electricity,02-Nov-23,Npower,"£3,853.36"
Manchester City Council,Regeneration Finance,Electricity,02-Nov-23,Npower,"£33,747.04"
Manchester City Council,Regeneration Finance,Electricity,02-Nov-23,Npower,"£3,043.45"
Manchester City Council,Regeneration Finance,Electricity,02-Nov-23,Npower,"£52,960.89"
Manchester City Council,Regeneration Finance,Electricity,02-Nov-23,Npower,"£2,404.56"
Manchester City Council,Regeneration Finance,Electricity,02-Nov-23,Npower,"£21,379.49"
Manchester City Council,Regeneration Finance,Electricity,02-Nov-23,Npower,"£23,937.33"
Manchester City Council,Highways Services,Electricity,02-Nov-23,Npower,"£2,082.88"
Manchester City Council,Highways Services,Electricity,02-Nov-23,Npower,"£4,910.26"
Manchester City Council,Highways Services,Electricity,02-Nov-23,Npower,"£5,581.19"
Manchester City Council,Highways Services,Electricity,02-Nov-23,Npower,"£6,065.37"
Manchester City Council,Highways Services,Electricity,02-Nov-23,Npower,"£2,305.02"
Manchester City Council,Manchester Leisure,Goods purchased for resale in Council outlets,02-Nov-23,Cornflower Ltd,"£2,125.00"
Manchester City Council,Regeneration Finance,External repairs and maintenance for buildings,02-Nov-23,P Mcguinness & Co Ltd,"£3,250.00"
Manchester City Council,Adult Social Care,Personal needs of client,02-Nov-23,The Helping Hand Company Ltd,-£630.00
Manchester City Council,Manchester Leisure,Payments to Sub-Contractors,02-Nov-23,Manchester Dogs Home,£800.00
Manchester City Council,Manchester Leisure,Payments to Sub-Contractors,02-Nov-23,Manchester Dogs Home,"£1,398.60"
Manchester City Council,Chief Executives,Legal Fees,02-Nov-23,Warwickshire County Council,"£1,193.59"
Manchester City Council,Adult Social Care,Furniture,02-Nov-23,Bennett Workplace Solutions Ltd,£550.00
Manchester City Council,Manchester Leisure,Gas,02-Nov-23,Corona Energy Ltd,"-£9,608.06"
Manchester City Council,Manchester Leisure,Gas,02-Nov-23,Corona Energy Ltd,"-£9,466.13"
Manchester City Council,Manchester Leisure,Gas,02-Nov-23,Corona Energy Ltd,"-£10,536.53"
Manchester City Council,Manchester Leisure,Gas,02-Nov-23,Corona Energy Ltd,"-£7,588.79"
Manchester City Council,Manchester Leisure,Gas,02-Nov-23,Corona Energy Ltd,"-£9,949.32"
Manchester City Council,Manchester Leisure,Gas,02-Nov-23,Corona Energy Ltd,"-£2,401.37"
Manchester City Council,Manchester Leisure,Gas,02-Nov-23,Corona Energy Ltd,"-£2,860.72"
Manchester City Council,Manchester Leisure,Gas,02-Nov-23,Corona Energy Ltd,"-£2,456.60"
Manchester City Council,Manchester Leisure,Gas,02-Nov-23,Corona Energy Ltd,"-£5,135.85"
Manchester City Council,Manchester Leisure,Gas,02-Nov-23,Corona Energy Ltd,"-£4,286.67"
Manchester City Council,Manchester Leisure,Gas,02-Nov-23,Corona Energy Ltd,"-£6,235.66"
Manchester City Council,Manchester Leisure,Gas,02-Nov-23,Corona Energy Ltd,-£994.80
Manchester City Council,Manchester Leisure,Gas,02-Nov-23,Corona Energy Ltd,"-£4,609.97"
Manchester City Council,Manchester Leisure,Gas,02-Nov-23,Corona Energy Ltd,-£627.22
Manchester City Council,Manchester Leisure,Gas,02-Nov-23,Corona Energy Ltd,-£603.32
Manchester City Council,Manchester Leisure,Gas,02-Nov-23,Corona Energy Ltd,"£9,331.61"
Manchester City Council,Manchester Leisure,Gas,02-Nov-23,Corona Energy Ltd,"£9,608.06"
Manchester City Council,Manchester Leisure,Gas,02-Nov-23,Corona Energy Ltd,"£9,466.13"
Manchester City Council,Manchester Leisure,Gas,02-Nov-23,Corona Energy Ltd,"£10,536.53"
Manchester City Council,Manchester Leisure,Gas,02-Nov-23,Corona Energy Ltd,"£7,588.79"
Manchester City Council,Manchester Leisure,Gas,02-Nov-23,Corona Energy Ltd,"£9,949.32"
Manchester City Council,Manchester Leisure,Gas,02-Nov-23,Corona Energy Ltd,"£1,100.51"
Manchester City Council,Manchester Leisure,Gas,02-Nov-23,Corona Energy Ltd,£671.63
Manchester City Council,Manchester Leisure,Gas,02-Nov-23,Corona Energy Ltd,"£1,525.32"
Manchester City Council,Manchester Leisure,Gas,02-Nov-23,Corona Energy Ltd,"£2,000.83"
Manchester City Council,Manchester Leisure,Gas,02-Nov-23,Corona Energy Ltd,"£2,716.38"
Manchester City Council,Manchester Leisure,Gas,02-Nov-23,Corona Energy Ltd,"£1,514.01"
Manchester City Council,Manchester Leisure,Gas,02-Nov-23,Corona Energy Ltd,"£10,828.40"
Manchester City Council,Manchester Leisure,Gas,02-Nov-23,Corona Energy Ltd,"£5,927.04"
Manchester City Council,Manchester Leisure,Gas,02-Nov-23,Corona Energy Ltd,"£5,048.89"
Manchester City Council,Manchester Leisure,Gas,02-Nov-23,Corona Energy Ltd,"£6,235.52"
Manchester City Council,Manchester Leisure,Gas,02-Nov-23,Corona Energy Ltd,"£1,230.42"
Manchester City Council,Manchester Leisure,Gas,02-Nov-23,Corona Energy Ltd,"£6,459.73"
Manchester City Council,Manchester Leisure,Gas,02-Nov-23,Corona Energy Ltd,"£1,355.14"
Manchester City Council,Manchester Leisure,Gas,02-Nov-23,Corona Energy Ltd,"£7,738.23"
Manchester City Council,Manchester Leisure,Gas,02-Nov-23,Corona Energy Ltd,"£8,993.00"
Manchester City Council,Manchester Leisure,Gas,02-Nov-23,Corona Energy Ltd,"£4,225.16"
Manchester City Council,Manchester Leisure,Gas,02-Nov-23,Corona Energy Ltd,"£1,908.56"
Manchester City Council,Manchester Leisure,Gas,02-Nov-23,Corona Energy Ltd,"£1,593.50"
Manchester City Council,Manchester Leisure,Gas,02-Nov-23,Corona Energy Ltd,"£4,609.81"
Manchester City Council,Manchester Leisure,Gas,02-Nov-23,Corona Energy Ltd,£790.57
Manchester City Council,Manchester Leisure,Gas,02-Nov-23,Corona Energy Ltd,"£3,915.81"
Manchester City Council,Manchester Leisure,Gas,02-Nov-23,Corona Energy Ltd,£988.20
Manchester City Council,Manchester Leisure,Gas,02-Nov-23,Corona Energy Ltd,£601.71
Manchester City Council,Manchester Leisure,Gas,02-Nov-23,Corona Energy Ltd,£612.03
Manchester City Council,Manchester Leisure,Gas,02-Nov-23,Corona Energy Ltd,"£1,360.31"
Manchester City Council,Manchester Leisure,Gas,02-Nov-23,Corona Energy Ltd,"£4,037.75"
Manchester City Council,Manchester Leisure,Gas,02-Nov-23,Corona Energy Ltd,£622.36
Manchester City Council,Manchester Leisure,Gas,02-Nov-23,Corona Energy Ltd,£651.51
Manchester City Council,Hospitality + Trading Services,Gas,02-Nov-23,Corona Energy Ltd,"£1,208.32"
Manchester City Council,Hospitality + Trading Services,Gas,02-Nov-23,Corona Energy Ltd,"£5,640.04"
Manchester City Council,Hospitality + Trading Services,Gas,02-Nov-23,Corona Energy Ltd,£662.78
Manchester City Council,Childrens & Education Services,Gas,02-Nov-23,Corona Energy Ltd,£546.06
Manchester City Council,Adult Social Care,Gas,02-Nov-23,Corona Energy Ltd,"£1,151.30"
Manchester City Council,Adult Social Care,Gas,02-Nov-23,Corona Energy Ltd,£580.70
Manchester City Council,Adult Social Care,Gas,02-Nov-23,Corona Energy Ltd,"£1,055.06"
Manchester City Council,Adult Social Care,Gas,02-Nov-23,Corona Energy Ltd,£742.79
Manchester City Council,Adult Social Care,Gas,02-Nov-23,Corona Energy Ltd,£714.20
Manchester City Council,Corporate Services,Gas,02-Nov-23,Corona Energy Ltd,"-£5,446.20"
Manchester City Council,Corporate Services,Gas,02-Nov-23,Corona Energy Ltd,"-£1,148.79"
Manchester City Council,Corporate Services,Gas,02-Nov-23,Corona Energy Ltd,-£591.54
Manchester City Council,Corporate Services,Gas,02-Nov-23,Corona Energy Ltd,-£771.73
Manchester City Council,Corporate Services,Gas,02-Nov-23,Corona Energy Ltd,"-£1,011.51"
Manchester City Council,Corporate Services,Gas,02-Nov-23,Corona Energy Ltd,-£769.16
Manchester City Council,Corporate Services,Gas,02-Nov-23,Corona Energy Ltd,"-£1,250.20"
Manchester City Council,Corporate Services,Gas,02-Nov-23,Corona Energy Ltd,-£960.77
Manchester City Council,Corporate Services,Gas,02-Nov-23,Corona Energy Ltd,"-£1,671.62"
Manchester City Council,Corporate Services,Gas,02-Nov-23,Corona Energy Ltd,-£974.69
Manchester City Council,Corporate Services,Gas,02-Nov-23,Corona Energy Ltd,-£653.56
Manchester City Council,Corporate Services,Gas,02-Nov-23,Corona Energy Ltd,"-£1,091.48"
Manchester City Council,Corporate Services,Gas,02-Nov-23,Corona Energy Ltd,-£783.36
Manchester City Council,Corporate Services,Gas,02-Nov-23,Corona Energy Ltd,-£845.28
Manchester City Council,Corporate Services,Gas,02-Nov-23,Corona Energy Ltd,-£595.10
Manchester City Council,Corporate Services,Gas,02-Nov-23,Corona Energy Ltd,-£763.82
Manchester City Council,Corporate Services,Gas,02-Nov-23,Corona Energy Ltd,-£933.89
Manchester City Council,Corporate Services,Gas,02-Nov-23,Corona Energy Ltd,"-£1,383.18"
Manchester City Council,Corporate Services,Gas,02-Nov-23,Corona Energy Ltd,"-£2,498.48"
Manchester City Council,Corporate Services,Gas,02-Nov-23,Corona Energy Ltd,"-£1,293.79"
Manchester City Council,Corporate Services,Gas,02-Nov-23,Corona Energy Ltd,-£777.83
Manchester City Council,Corporate Services,Gas,02-Nov-23,Corona Energy Ltd,"£2,627.75"
Manchester City Council,Corporate Services,Gas,02-Nov-23,Corona Energy Ltd,"£5,209.48"
Manchester City Council,Corporate Services,Gas,02-Nov-23,Corona Energy Ltd,"£1,391.61"
Manchester City Council,Corporate Services,Gas,02-Nov-23,Corona Energy Ltd,"£5,446.20"
Manchester City Council,Corporate Services,Gas,02-Nov-23,Corona Energy Ltd,"£1,710.90"
Manchester City Council,Corporate Services,Gas,02-Nov-23,Corona Energy Ltd,£753.92
Manchester City Council,Corporate Services,Gas,02-Nov-23,Corona Energy Ltd,£960.77
Manchester City Council,Corporate Services,Gas,02-Nov-23,Corona Energy Ltd,"£1,671.62"
Manchester City Council,Corporate Services,Gas,02-Nov-23,Corona Energy Ltd,£538.74
Manchester City Council,Corporate Services,Gas,02-Nov-23,Corona Energy Ltd,£873.07
Manchester City Council,Corporate Services,Gas,02-Nov-23,Corona Energy Ltd,"£1,255.30"
Manchester City Council,Corporate Services,Gas,02-Nov-23,Corona Energy Ltd,£702.55
Manchester City Council,Corporate Services,Gas,02-Nov-23,Corona Energy Ltd,"£2,561.21"
Manchester City Council,Corporate Services,Gas,02-Nov-23,Corona Energy Ltd,£813.38
Manchester City Council,Corporate Services,Gas,02-Nov-23,Corona Energy Ltd,£866.66
Manchester City Council,Corporate Services,Gas,02-Nov-23,Corona Energy Ltd,£732.73
Manchester City Council,Corporate Services,Gas,02-Nov-23,Corona Energy Ltd,£508.00
Manchester City Council,Corporate Services,Gas,02-Nov-23,Corona Energy Ltd,"£1,109.26"
Manchester City Council,Corporate Services,Gas,02-Nov-23,Corona Energy Ltd,£631.90
Manchester City Council,Corporate Services,Gas,02-Nov-23,Corona Energy Ltd,£913.13
Manchester City Council,Corporate Services,Gas,02-Nov-23,Corona Energy Ltd,£974.69
Manchester City Council,Corporate Services,Gas,02-Nov-23,Corona Energy Ltd,£653.56
Manchester City Council,Corporate Services,Gas,02-Nov-23,Corona Energy Ltd,"£1,091.48"
Manchester City Council,Corporate Services,Gas,02-Nov-23,Corona Energy Ltd,£845.28
Manchester City Council,Corporate Services,Gas,02-Nov-23,Corona Energy Ltd,£783.36
Manchester City Council,Corporate Services,Gas,02-Nov-23,Corona Energy Ltd,£595.10
Manchester City Council,Corporate Services,Gas,02-Nov-23,Corona Energy Ltd,£933.89
Manchester City Council,Corporate Services,Gas,02-Nov-23,Corona Energy Ltd,£763.82
Manchester City Council,Corporate Services,Gas,02-Nov-23,Corona Energy Ltd,"£1,383.18"
Manchester City Council,Corporate Services,Gas,02-Nov-23,Corona Energy Ltd,"£2,498.48"
Manchester City Council,Corporate Services,Gas,02-Nov-23,Corona Energy Ltd,"£22,302.59"
Manchester City Council,Corporate Services,Gas,02-Nov-23,Corona Energy Ltd,"£26,334.39"
Manchester City Council,Corporate Services,Gas,02-Nov-23,Corona Energy Ltd,"£1,293.79"
Manchester City Council,Corporate Services,Gas,02-Nov-23,Corona Energy Ltd,£777.83
Manchester City Council,Housing Revenue Account,Gas,02-Nov-23,Corona Energy Ltd,"£1,590.38"
Manchester City Council,Housing Revenue Account,Gas,02-Nov-23,Corona Energy Ltd,"£1,198.34"
Manchester City Council,Housing Revenue Account,Gas,02-Nov-23,Corona Energy Ltd,"£1,418.53"
Manchester City Council,Housing Revenue Account,Gas,02-Nov-23,Corona Energy Ltd,"£10,427.39"
Manchester City Council,Housing Revenue Account,Gas,02-Nov-23,Corona Energy Ltd,"£1,078.51"
Manchester City Council,Housing Revenue Account,Gas,02-Nov-23,Corona Energy Ltd,£557.86
Manchester City Council,Housing Revenue Account,Gas,02-Nov-23,Corona Energy Ltd,"£1,845.39"
Manchester City Council,Housing Revenue Account,Gas,02-Nov-23,Corona Energy Ltd,"£1,808.32"
Manchester City Council,Housing Revenue Account,Gas,02-Nov-23,Corona Energy Ltd,"£1,440.14"
Manchester City Council,Housing Revenue Account,Gas,02-Nov-23,Corona Energy Ltd,"£1,354.33"
Manchester City Council,Housing Revenue Account,Gas,02-Nov-23,Corona Energy Ltd,£822.27
Manchester City Council,Housing Revenue Account,Gas,02-Nov-23,Corona Energy Ltd,"£1,314.51"
Manchester City Council,Housing Revenue Account,Gas,02-Nov-23,Corona Energy Ltd,"£11,735.83"
Manchester City Council,Housing Revenue Account,Gas,02-Nov-23,Corona Energy Ltd,"£9,083.86"
Manchester City Council,Regeneration Finance,Gas,02-Nov-23,Corona Energy Ltd,-£739.23
Manchester City Council,Regeneration Finance,Gas,02-Nov-23,Corona Energy Ltd,-£897.52
Manchester City Council,Regeneration Finance,Gas,02-Nov-23,Corona Energy Ltd,"-£1,646.85"
Manchester City Council,Regeneration Finance,Gas,02-Nov-23,Corona Energy Ltd,-£735.81
Manchester City Council,Regeneration Finance,Gas,02-Nov-23,Corona Energy Ltd,£739.77
Manchester City Council,Regeneration Finance,Gas,02-Nov-23,Corona Energy Ltd,£574.38
Manchester City Council,Regeneration Finance,Gas,02-Nov-23,Corona Energy Ltd,£815.19
Manchester City Council,Regeneration Finance,Gas,02-Nov-23,Corona Energy Ltd,"£1,226.70"
Manchester City Council,Regeneration Finance,Gas,02-Nov-23,Corona Energy Ltd,"£1,223.80"
Manchester City Council,Regeneration Finance,Gas,02-Nov-23,Corona Energy Ltd,"£1,647.79"
Manchester City Council,Regeneration Finance,Gas,02-Nov-23,Corona Energy Ltd,£924.23
Manchester City Council,Highways Services,Tipping - Tonnage,02-Nov-23,Environment Agency,"£1,824.00"
Manchester City Council,Adult Social Care,Extra Care Sheltd HP,02-Nov-23,Sevacare (U K ) lTD,"£27,254.10"
Manchester City Council,Adult Social Care,Extra Care Sheltd HP,02-Nov-23,Sevacare (U K ) lTD,"£44,843.00"
Manchester City Council,Adult Social Care,Bed & Breakfast Acc,02-Nov-23,Redacted Personal Information,"£12,236.00"
Manchester City Council,Adult Social Care,Rents,02-Nov-23,Ashley Property services,"£3,320.00"
Manchester City Council,Childrens & Education Services,Professional fees,02-Nov-23,NT&AS,"£2,694.50"
Manchester City Council,Regeneration Finance,Professional fees,02-Nov-23,Jacobs UK Ltd,"£2,206.35"
Manchester City Council,Chief Executives,Legal Fees,02-Nov-23,Weightmans LLP Solicitors,£604.50
Manchester City Council,Chief Executives,Legal Fees,02-Nov-23,Weightmans LLP Solicitors,"£2,352.17"
Manchester City Council,Chief Executives,I T Provision,02-Nov-23,Zipporah Ltd,"£1,890.12"
Manchester City Council,Chief Executives,I T Provision,02-Nov-23,Zipporah Ltd,"£5,047.67"
Manchester City Council,Chief Executives,I T Provision,02-Nov-23,Zipporah Ltd,"£4,986.30"
Manchester City Council,Chief Executives,Grant and subscriptions awarded,02-Nov-23,The Law Society,£747.00
Manchester City Council,Chief Executives,Grant and subscriptions awarded,02-Nov-23,The Law Society,£747.00
Manchester City Council,Environment and Operations,Construction Works,02-Nov-23,Wilde Consultants Ltd,"-£16,854.48"
Manchester City Council,Childrens & Education Services,Third party payments to other Local Authorities,02-Nov-23,Redacted Personal Information,"£6,005.42"
Manchester City Council,Corporate Services,I T Provision,02-Nov-23,Trustmarque Solutions Ltd,"£1,000.00"
Manchester City Council,Corporate Services,ICT Sup & Maintnance,02-Nov-23,Trustmarque Solutions Ltd,"-£39,650.00"
Manchester City Council,Corporate Services,ICT Sup & Maintnance,02-Nov-23,Trustmarque Solutions Ltd,"£18,120.00"
Manchester City Council,Regeneration Finance,Storage Costs,02-Nov-23,Oasis UK formerly Box-It (NW),£993.95
Manchester City Council,Regeneration Finance,Storage Costs,02-Nov-23,Oasis UK formerly Box-It (NW),£604.12
Manchester City Council,Childrens & Education Services,Furniture,02-Nov-23,Oasis UK formerly Box-It (NW),"£3,083.98"
Manchester City Council,Hospitality + Trading Services,Catering Provisions,02-Nov-23,Ralph Livesey Ltd,"-£63,242.50"
Manchester City Council,Hospitality + Trading Services,Catering Provisions,02-Nov-23,Ralph Livesey Ltd,"-£30,464.38"
Manchester City Council,Manchester Leisure,Professional fees,02-Nov-23,Effusion LLP,£792.00
Manchester City Council,Corporate Services,Agency staff provision,02-Nov-23,Ashberry Recruitment Ltd,"£1,968.30"
Manchester City Council,Corporate Services,Agency staff provision,02-Nov-23,Ashberry Recruitment Ltd,"£1,968.30"
Manchester City Council,Manchester Leisure,Payments to Sub-Contractors,02-Nov-23,Scrutiny Cleaning Services,"£1,125.00"
Manchester City Council,Manchester Leisure,Payments to Sub-Contractors,02-Nov-23,Scrutiny Cleaning Services,"£8,192.99"
Manchester City Council,Adult Social Care,Subsistence and Conference Expenses,02-Nov-23,Urban Village Medical Practice,£600.00
Manchester City Council,Adult Social Care,Landline Telephone,02-Nov-23,St Helens & Knowsley Hospitals NHST,£718.51
Manchester City Council,Chief Executives,Counsel Costs,02-Nov-23,Kenworthy's Chambers,£850.00
Manchester City Council,Adult Social Care,Third party payments to Health Authority,02-Nov-23,NHS Supply Chain,£570.40
Manchester City Council,Corporate Services,Equipment,02-Nov-23,Eventures,"£1,232.00"
Manchester City Council,Manchester Leisure,Grant and subscriptions awarded,02-Nov-23,Wythenshawe Community Housing Group,"£47,072.00"
Manchester City Council,Adult Social Care,Supported Accommodation,02-Nov-23,Wythenshawe Community Housing Group,"£1,410.37"
Manchester City Council,Adult Social Care,Rents,02-Nov-23,Wythenshawe Community Housing Group,"£1,424.15"
Manchester City Council,Corporate Services,I T Provision,02-Nov-23,Vocera Communications UK Ltd,"-£5,906.22"
Manchester City Council,Libraries and Theatres,Vehicle Plant Furniture and Equipment,02-Nov-23,Vocera Communications UK Ltd,"-£14,613.72"
Manchester City Council,Manchester Leisure,Works and associated costs for Land and Buildings,02-Nov-23,One Green World,"£4,000.00"
Manchester City Council,Childrens & Education Services,Transport Coach Hire,02-Nov-23,Middleton Cars Ltd,"£2,340.00"
Manchester City Council,Childrens & Education Services,Transport Coach Hire,02-Nov-23,Middleton Cars Ltd,"£1,440.00"
Manchester City Council,Childrens & Education Services,Transport Taxis,02-Nov-23,Middleton Cars Ltd,"-£2,340.00"
Manchester City Council,Childrens & Education Services,Transport Taxis,02-Nov-23,Middleton Cars Ltd,"-£1,440.00"
Manchester City Council,Adult Social Care,Payments for services,02-Nov-23,Tom Harrison House,"£3,480.00"
Manchester City Council,Adult Social Care,Bed & Breakfast Acc,02-Nov-23,Redacted Personal Information,"£1,480.00"
Manchester City Council,Housing Revenue Account,Professional fees,02-Nov-23,Capita Property & Infras'ture Ltd,"£11,225.00"
Manchester City Council,Adult Social Care,Professional fees,02-Nov-23,Irish Town Manchester Ltd,"£1,135.00"
Manchester City Council,Chief Executives,Payments to Sub-Contractors,02-Nov-23,Redacted Personal Information,£725.89
Manchester City Council,Chief Executives,Payments to Sub-Contractors,02-Nov-23,Redacted Personal Information,£665.85
Manchester City Council,Chief Executives,Payments to Sub-Contractors,02-Nov-23,Redacted Personal Information,"£1,189.88"
Manchester City Council,Chief Executives,Payments to Sub-Contractors,02-Nov-23,Redacted Personal Information,£518.24
Manchester City Council,Adult Social Care,Rents,02-Nov-23,Housing Social Ltd,"£4,720.00"
Manchester City Council,Childrens & Education Services,Foster Payments,02-Nov-23,Foster Talk,"£8,083.29"
Manchester City Council,Manchester Leisure,Agency staff provision,02-Nov-23,Manchester Art Gallery,"£1,746.23"
Manchester City Council,Environment and Operations,Construction Works,02-Nov-23,Cadent Gas Ltd.,"£59,515.68"
Manchester City Council,Environment and Operations,Construction Works,02-Nov-23,Cadent Gas Ltd.,"-£71,418.82"
Manchester City Council,Manchester Leisure,Grant and subscriptions awarded,02-Nov-23,Alexandra Park Governance Board,"£2,000.00"
Manchester City Council,Chief Executives,Professional fees,02-Nov-23,Pickering Psychology Services Ltd,"£6,733.30"
Manchester City Council,Corporate Services,Licences Purchase,02-Nov-23,DigiCert Inc,"-£15,301.00"
Manchester City Council,Corporate Services,Licences Purchase,02-Nov-23,DigiCert Inc,"-£13,910.00"
Manchester City Council,Corporate Services,Licences Purchase,02-Nov-23,DigiCert Inc,"-£13,910.00"
Manchester City Council,Chief Executives,Counsel Costs,02-Nov-23,Central Chambers,£600.00
Manchester City Council,Regeneration Finance,CRB Fees,02-Nov-23,Complete Background Screening Ltd,£860.00
Manchester City Council,Manchester Leisure,Grant and subscriptions awarded,02-Nov-23,Sydney Jones Inbetweeners,£850.00
Manchester City Council,Adult Social Care,Bed & Breakfast Acc,02-Nov-23,Hala Guest House,£620.00
Manchester City Council,Chief Executives,Payments to Sub-Contractors,02-Nov-23,Redacted Personal Information,£651.35
Manchester City Council,Corporate Services,WPS Awards,02-Nov-23,Furniture Resource Centre Ltd,"£1,157.72"
Manchester City Council,Corporate Services,WPS Awards,02-Nov-23,Furniture Resource Centre Ltd,£588.47
Manchester City Council,Corporate Services,WPS Awards,02-Nov-23,Furniture Resource Centre Ltd,£807.82
Manchester City Council,Corporate Services,Professional fees,02-Nov-23,Pick Everard,"£2,951.00"
Manchester City Council,Adult Social Care,Rents,02-Nov-23,Houses4Homes 4U Ltd,"£9,026.00"
Manchester City Council,Adult Social Care,Security,02-Nov-23,UNIQUE SPECIALIST SERVICES,"£1,404.00"
Manchester City Council,Adult Social Care,Security,02-Nov-23,UNIQUE SPECIALIST SERVICES,"£1,134.00"
Manchester City Council,Chief Executives,Legal Fees,02-Nov-23,Isherwood Legal Limited,£792.00
Manchester City Council,Manchester Leisure,Grant and subscriptions awarded,02-Nov-23,Manchester Vineyard,"£2,095.00"
Manchester City Council,Childrens & Education Services,Third party payments relating to Voluntary Organisations,02-Nov-23,Citywall,"£6,750.00"
Manchester City Council,Childrens & Education Services,Third party payments relating to Voluntary Organisations,02-Nov-23,Citywall,"£6,750.00"
Manchester City Council,Childrens & Education Services,Third party payments to other Local Authorities,02-Nov-23,Inspire Training & Education,"£14,299.92"
Manchester City Council,Manchester Leisure,Cleaning Equipment,02-Nov-23,CPD Property Services,£500.00
Manchester City Council,Manchester Leisure,Cleaning Equipment,02-Nov-23,CPD Property Services,"£2,250.00"
Manchester City Council,Childrens & Education Services,Third party payments to other Local Authorities,02-Nov-23,4syte Funding Limited,£752.07
Manchester City Council,Adult Social Care,Grant and subscriptions awarded,02-Nov-23,Divrse Ltd,"£55,350.00"
Manchester City Council,Adult Social Care,Bed & Breakfast Acc,02-Nov-23,247Hotel.Com,£935.00
Manchester City Council,Childrens & Education Services,Third party payments to other Local Authorities,02-Nov-23,Heyhead Farm Education Centre Ltd,"£15,675.00"
Manchester City Council,Childrens & Education Services,Third party payments to other Local Authorities,02-Nov-23,Heyhead Farm Education Centre Ltd,"£14,630.00"
Manchester City Council,Chief Executives,Payments to Sub-Contractors,02-Nov-23,Redacted Personal Information,£523.38
Manchester City Council,Adult Social Care,Rents,02-Nov-23,NWA Housing Ltd,"£1,660.12"
Manchester City Council,Adult Social Care,Furniture,02-Nov-23,Rtech Group Limited,"£1,716.66"
Manchester City Council,Adult Social Care,Furniture,02-Nov-23,Rtech Group Limited,"£9,825.01"
Manchester City Council,Adult Social Care,Furniture,02-Nov-23,Rtech Group Limited,"£5,766.68"
Manchester City Council,Adult Social Care,Furniture,02-Nov-23,Rtech Group Limited,"£3,841.67"
Manchester City Council,Chief Executives,Examination Fees,02-Nov-23,Toxicology UK Ltd,"£5,625.00"
Manchester City Council,Corporate Services,Training and Development,02-Nov-23,UK Learning Network Limited,£650.00
Manchester City Council,Adult Social Care,Furniture,02-Nov-23,Rtec Carpets Ltd,£615.00
Manchester City Council,Adult Social Care,Furniture,02-Nov-23,Rtec Carpets Ltd,"£1,294.00"
Manchester City Council,Manchester Leisure,Professional fees,02-Nov-23,Redacted Personal Information,£632.00
Manchester City Council,Manchester Leisure,Goods purchased for resale in Council outlets,02-Nov-23,MDBKA,£550.00
Manchester City Council,Manchester Leisure,Professional fees,02-Nov-23,Substance 2005 Limited,"£15,200.00"
Manchester City Council,Corporate Services,Compensation Payments,02-Nov-23,Brown Turner Client Account,"£1,233.88"
Manchester City Council,Childrens & Education Services,Payments for services,02-Nov-23,Life Changing Education,"£6,318.00"
Manchester City Council,Regeneration Finance,Professional fees,02-Nov-23,Callack Consulting,"£1,250.00"
Manchester City Council,Corporate Services,Transport Taxis,02-Nov-23,MANTAX TAXIS - VT,"-£14,475.10"
Manchester City Council,Corporate Services,Transport Taxis,02-Nov-23,MANTAX TAXIS - VT,"£14,475.10"
Manchester City Council,Corporate Services,Transport Taxis,02-Nov-23,MANTAX TAXIS - VT,"£12,062.59"
Manchester City Council,Adult Social Care,Rents,02-Nov-23,"Glenthorpe Homes – J Khan, NY",£850.00
Manchester City Council,Manchester Leisure,Special Event,02-Nov-23,Inflect Partners Limited,"£9,281.00"
Manchester City Council,Hospitality + Trading Services,Ext Sales - Other,02-Nov-23,RCD Electrical Engineers Ltd,"£1,205.00"
Manchester City Council,Regeneration Finance,Grant and subscriptions awarded,03-Nov-23,Redacted personal info,"£2,500.00"
Manchester City Council,Regeneration Finance,Grant and subscriptions awarded,03-Nov-23,Redacted personal info,"£2,500.00"
Manchester City Council,Regeneration Finance,Grant and subscriptions awarded,03-Nov-23,Redacted personal info,"£2,500.00"
Manchester City Council,Regeneration Finance,Grant and subscriptions awarded,03-Nov-23,Redacted personal info,"£2,500.00"
Manchester City Council,Regeneration Finance,Grant and subscriptions awarded,03-Nov-23,Redacted personal info,"£2,500.00"
Manchester City Council,Regeneration Finance,Grant and subscriptions awarded,03-Nov-23,Redacted personal info,"£2,500.00"
Manchester City Council,Regeneration Finance,Grant and subscriptions awarded,03-Nov-23,Redacted personal info,"£2,500.00"
Manchester City Council,Chief Executives,Professional fees,03-Nov-23,Redacted personal info,"£1,363.52"
Manchester City Council,Adult Social Care,Rents,03-Nov-23,Redacted personal info,£600.00
Manchester City Council,Chief Executives,Counsel Costs,03-Nov-23,Redacted personal info,£600.00
Manchester City Council,Regeneration Finance,Bank Charges,03-Nov-23,Redacted personal info,"£2,500.00"
Manchester City Council,Adult Social Care,Personal needs of client,03-Nov-23,Prism Medical UK Carefree Division,£730.78
Manchester City Council,Corporate Services,Training and Development,03-Nov-23,North West Employers Ltd,£500.00
Manchester City Council,Childrens & Education Services,Hire of Premises,03-Nov-23,Benchill Community Centre,"£1,225.00"
Manchester City Council,Regeneration Finance,Subsistence and Conference Expenses,03-Nov-23,Assessment & Qualifications Allianc,"£2,472.00"
Manchester City Council,Highways Services,Purchase of stores for re-distribution,03-Nov-23,Instarmac Group Ltd,"£1,320.48"
Manchester City Council,Insurance Fund,Engineering Ins,03-Nov-23,Zurich Insurance,"£2,024.77"
Manchester City Council,Highways Services,Purchase of stores for re-distribution,03-Nov-23,Marshalls Mono Ltd,"£1,940.00"
Manchester City Council,Manchester Leisure,Works and associated costs for Land and Buildings,03-Nov-23,Kompan Ltd,"£16,604.95"
Manchester City Council,Chief Executives,Equipment Operating Lease,03-Nov-23,Xerox Finance Ltd,"£6,839.31"
Manchester City Council,Chief Executives,Equipment Operating Lease,03-Nov-23,Xerox Finance Ltd,"£6,839.31"
Manchester City Council,Chief Executives,Equipment Operating Lease,03-Nov-23,Xerox Finance Ltd,"-£12,930.49"
Manchester City Council,Chief Executives,Equipment Operating Lease,03-Nov-23,Xerox Finance Ltd,"£4,239.61"
Manchester City Council,Chief Executives,Equipment Operating Lease,03-Nov-23,Xerox Finance Ltd,"£4,239.61"
Manchester City Council,Chief Executives,Equipment Operating Lease,03-Nov-23,Xerox Finance Ltd,"-£7,971.26"
Manchester City Council,Manchester Leisure,ICT Hardware,03-Nov-23,BT PLC,£667.76
Manchester City Council,Childrens & Education Services,Payments for services,03-Nov-23,H.G. Care Services Ltd,"£15,566.10"
Manchester City Council,Childrens & Education Services,Payments for services,03-Nov-23,H.G. Care Services Ltd,"£15,710.15"
Manchester City Council,Childrens & Education Services,Payments for services,03-Nov-23,H.G. Care Services Ltd,"£17,160.35"
Manchester City Council,Highways Services,Grounds Maintenance,03-Nov-23,The Fountain Company Ltd,£555.50
Manchester City Council,Highways Services,Grounds Maintenance,03-Nov-23,The Fountain Company Ltd,"-£6,047.00"
Manchester City Council,Highways Services,Grounds Maintenance,03-Nov-23,The Fountain Company Ltd,£667.50
Manchester City Council,Highways Services,Grounds Maintenance,03-Nov-23,The Fountain Company Ltd,"£4,535.00"
Manchester City Council,Highways Services,Grounds Maintenance,03-Nov-23,The Fountain Company Ltd,£630.50
Manchester City Council,Highways Services,Grounds Maintenance,03-Nov-23,The Fountain Company Ltd,"£2,294.00"
Manchester City Council,Highways Services,Grounds Maintenance,03-Nov-23,The Fountain Company Ltd,"£10,020.00"
Manchester City Council,Manchester Leisure,Special Event,03-Nov-23,Utilities Design & Planning Ltd,"-£6,084.19"
Manchester City Council,Manchester Leisure,Special Event,03-Nov-23,Utilities Design & Planning Ltd,"£6,084.19"
Manchester City Council,Highways Services,Professional fees,03-Nov-23,Mace Ltd,"£5,451.75"
Manchester City Council,Highways Services,Professional fees,03-Nov-23,Mace Ltd,"-£5,451.75"
Manchester City Council,Childrens & Education Services,Payments for services,03-Nov-23,Reed Employment Plc,"£8,140.96"
Manchester City Council,Environment and Operations,Construction Works,03-Nov-23,Kings Chambers,"£2,500.00"
Manchester City Council,Housing Revenue Account,Council Dwelling Adaptations,03-Nov-23,Rexel UK Ltd,"£1,281.67"
Manchester City Council,Manchester Leisure,Building Materials for direct delivery,03-Nov-23,Rigby Taylor Ltd,£771.60
Manchester City Council,Highways Services,Building Materials for direct delivery,03-Nov-23,TARMAC,"£1,329.70"
Manchester City Council,Corporate Services,Payments for services,03-Nov-23,Victoria Baths Trust,"£8,500.00"
Manchester City Council,Corporate Services,Payments for services,03-Nov-23,Victoria Baths Trust,"£7,430.00"
Manchester City Council,Manchester Leisure,Payments to Sub-Contractors,03-Nov-23,Fairway Landscapes Ltd,£634.50
Manchester City Council,Manchester Leisure,Special Event,03-Nov-23,Event Technical Support,"£13,895.56"
Manchester City Council,Adult Social Care,Third party payments relating to Voluntary Organisations,03-Nov-23,The Depaul Trust,"£100,000.00"
Manchester City Council,Adult Social Care,Third party payments relating to Voluntary Organisations,03-Nov-23,The Depaul Trust,"£10,603.50"
Manchester City Council,Manchester Leisure,Goods purchased for resale in Council outlets,03-Nov-23,Cornflower Ltd,£560.00
Manchester City Council,Housing Revenue Account,Council Dwelling Adaptations,03-Nov-23,Pts Plumbing Trade Supplies,"£2,265.72"
Manchester City Council,Housing Revenue Account,Council Dwelling Adaptations,03-Nov-23,Pts Plumbing Trade Supplies,"£2,240.77"
Manchester City Council,Housing Revenue Account,Council Dwelling Adaptations,03-Nov-23,Pts Plumbing Trade Supplies,"£3,352.59"
Manchester City Council,Housing Revenue Account,Council Dwelling Adaptations,03-Nov-23,Pts Plumbing Trade Supplies,"£1,657.63"
Manchester City Council,Housing Revenue Account,Council Dwelling Adaptations,03-Nov-23,Pts Plumbing Trade Supplies,"£1,672.47"
Manchester City Council,Housing Revenue Account,Council Dwelling Adaptations,03-Nov-23,Pts Plumbing Trade Supplies,"£6,339.64"
Manchester City Council,Adult Social Care,Professional fees,03-Nov-23,Bennett Workplace Solutions Ltd,"£1,278.00"
Manchester City Council,Adult Social Care,Professional fees,03-Nov-23,Bennett Workplace Solutions Ltd,"-£1,278.00"
Manchester City Council,Childrens & Education Services,Public Transport,03-Nov-23,Stagecoach Manchester,"£1,900.00"
Manchester City Council,Corporate Services,Travel Season TLS,03-Nov-23,Stagecoach Manchester,£670.00
Manchester City Council,Corporate Services,Travel Season TLS,03-Nov-23,Stagecoach Manchester,£670.00
Manchester City Council,Corporate Services,Transport Taxis,03-Nov-23,City Car Club Ltd,"£3,755.50"
Manchester City Council,Regeneration Finance,Printing,03-Nov-23,Bay Media,"£2,443.00"
Manchester City Council,Chief Executives,Postage,03-Nov-23,Whistl North Ltd,"£5,663.27"
Manchester City Council,Chief Executives,Legal Fees,03-Nov-23,Russell & Russell Solicitors LLP,"£5,106.25"
Manchester City Council,Chief Executives,Legal Fees,03-Nov-23,Russell & Russell Solicitors LLP,"£4,064.10"
Manchester City Council,Adult Social Care,Rents,03-Nov-23,Southway Housing Trust,"£4,110.00"
Manchester City Council,Adult Social Care,Rents,03-Nov-23,Southway Housing Trust,"£4,167.00"
Manchester City Council,Adult Social Care,Rents,03-Nov-23,Southway Housing Trust,"£8,221.50"
Manchester City Council,Adult Social Care,Rents,03-Nov-23,Southway Housing Trust,"£8,334.50"
Manchester City Council,Corporate Services,Payments to Sub-Contractors,03-Nov-23,Video Receiving Centre Ltd,"£1,440.00"
Manchester City Council,Chief Executives,Licences Purchase,03-Nov-23,Snap Surveys Ltd,"£1,535.00"
Manchester City Council,Chief Executives,Hire of Equipment,03-Nov-23,Sterling Event Group,£720.00
Manchester City Council,Environment and Operations,Construction Works,03-Nov-23,Wilde Consultants Ltd,"£1,100.00"
Manchester City Council,Adult Social Care,Professional fees,03-Nov-23,Penna PLC,"£8,981.00"
Manchester City Council,Manchester Leisure,Payments to Sub-Contractors,03-Nov-23,Scrutiny Cleaning Services,"£8,935.80"
Manchester City Council,Adult Social Care,Bed & Breakfast Acc,03-Nov-23,Redacted Personal Information,"£8,940.00"
Manchester City Council,Childrens & Education Services,Payments for services,03-Nov-23,SOL Christian Academy,"£25,122.68"
Manchester City Council,Manchester Leisure,Equipment,03-Nov-23,One Green World,"£1,250.00"
Manchester City Council,Manchester Leisure,Equipment,03-Nov-23,One Green World,"£1,070.00"
Manchester City Council,Manchester Leisure,Equipment,03-Nov-23,Cromwell Polythene Limited,"£10,626.00"
Manchester City Council,Corporate Services,Data Links,03-Nov-23,The Networking People (TNP) Ltd,"£2,513.30"
Manchester City Council,Environment and Operations,Construction Works,03-Nov-23,IWJS Ltd,"£7,125.00"
Manchester City Council,Adult Social Care,Rents,03-Nov-23,District Homes Cic,"£6,129.14"
Manchester City Council,Childrens & Education Services,Payments for services,03-Nov-23,Fairfield Care Ltd,"£4,672.76"
Manchester City Council,Childrens & Education Services,Payments for services,03-Nov-23,Fairfield Care Ltd,"£2,325.96"
Manchester City Council,Childrens & Education Services,Payments for services,03-Nov-23,Prospero Teaching,£500.00
Manchester City Council,Childrens & Education Services,Payments for services,03-Nov-23,Prospero Teaching,£500.00
Manchester City Council,Childrens & Education Services,Payments for services,03-Nov-23,Prospero Teaching,£500.00
Manchester City Council,Childrens & Education Services,Payments for services,03-Nov-23,Prospero Teaching,£500.00
Manchester City Council,Childrens & Education Services,Payments for services,03-Nov-23,Prospero Teaching,£500.00
Manchester City Council,Childrens & Education Services,Payments for services,03-Nov-23,Prospero Teaching,£500.00
Manchester City Council,Manchester Leisure,Grant and subscriptions awarded,03-Nov-23,Manchester Active,"£30,000.00"
Manchester City Council,Highways Services,Payments to Sub-Contractors,03-Nov-23,Conservation Contracts Northwest,£537.75
Manchester City Council,Corporate Services,Training and Development,03-Nov-23,Abuka Ltd,£850.00
Manchester City Council,Highways Services,Professional fees,03-Nov-23,Waterman Infrastructure and,"£3,439.50"
Manchester City Council,Highways Services,Professional fees,03-Nov-23,Waterman Infrastructure and,"-£3,439.50"
Manchester City Council,Corporate Services,Surveys Fees other,03-Nov-23,Shield Environmental Services,"£1,100.00"
Manchester City Council,Childrens & Education Services,Professional fees,03-Nov-23,WALKING TOGETHER,£560.00
Manchester City Council,Environment and Operations,Construction Works,03-Nov-23,Ventbrook,"£16,038.75"
Manchester City Council,Corporate Services,Car Parking Permits,03-Nov-23,Yunex Ltd,"£18,726.38"
Manchester City Council,Manchester Leisure,Special Event,03-Nov-23,Redacted Personal Information,£750.00
Manchester City Council,Manchester Leisure,Payments to Sub-Contractors,03-Nov-23,APSE,£700.00
Manchester City Council,Childrens & Education Services,Payments for services,03-Nov-23,Care Solutions Recruitment,"£1,038.40"
Manchester City Council,Adult Social Care,Rents,03-Nov-23,NWA Housing Ltd,"£1,660.12"
Manchester City Council,Manchester Leisure,Grant and subscriptions awarded,03-Nov-23,Age Friendly Wythenshawe,"£1,000.00"
Manchester City Council,Manchester Leisure,Grant and subscriptions awarded,03-Nov-23,Age Friendly Wythenshawe,"£1,000.00"
Manchester City Council,Corporate Services,Training and Development,03-Nov-23,ASK Europe Limited,£750.00
Manchester City Council,Adult Social Care,Rents,03-Nov-23,Devon Homes,"£2,650.00"
Manchester City Council,Adult Social Care,Furniture,03-Nov-23,Devon Homes,"£4,050.00"
Manchester City Council,Childrens & Education Services,Foster Payments,03-Nov-23,Five Rivers Ireland Limited,"£3,857.74"
Manchester City Council,Childrens & Education Services,Foster Payments,03-Nov-23,Five Rivers Ireland Limited,"£3,857.73"
Manchester City Council,Manchester Leisure,Goods purchased for resale in Council outlets,03-Nov-23,Stockwell Ceramics,£619.20
Manchester City Council,Adult Social Care,Furniture,03-Nov-23,R&S Properties Ltd,"£3,750.00"
Manchester City Council,Manchester Leisure,Grant and subscriptions awarded,03-Nov-23,Focus and Fly CIC,"£2,500.00"
Manchester City Council,Childrens & Education Services,Transport Taxis,03-Nov-23,Travel Deluxe Limited,"£4,800.00"
Manchester City Council,Manchester Leisure,Goods purchased for resale in Council outlets,03-Nov-23,Nineteen Seventy Three Ltd,£738.00
Manchester City Council,Chief Executives,Professional fees,03-Nov-23,ISW Assessments Ltd,"£1,889.50"
Manchester City Council,Adult Social Care,Rents,03-Nov-23,Ben Rob Estates,"£5,000.00"
Manchester City Council,Adult Social Care,Rents,03-Nov-23,Ben Rob Estates,"£5,796.78"
Manchester City Council,Adult Social Care,Rents,03-Nov-23,RENNSOLUTION,"£2,400.00"
Manchester City Council,Adult Social Care,Rents,03-Nov-23,Woodberry Group,"£4,780.00"
Manchester City Council,Adult Social Care,Rents,03-Nov-23,Woodberry Group,"£1,415.94"
Manchester City Council,Manchester Leisure,Special Event,03-Nov-23,Aggreko UK Ltd,"£22,024.99"
Manchester City Council,Regeneration Finance,Grant and subscriptions awarded,06-Nov-23,Redacted personal info,"£2,500.00"
Manchester City Council,Regeneration Finance,Grant and subscriptions awarded,06-Nov-23,Redacted personal info,"£2,500.00"
Manchester City Council,Regeneration Finance,Grant and subscriptions awarded,06-Nov-23,Redacted personal info,"£2,500.00"
Manchester City Council,Highways Services,Professional fees,06-Nov-23,Vaisala Ltd,"£2,732.00"
Manchester City Council,Corporate Services,Agency staff provision,06-Nov-23,Michael Page International,£672.00
Manchester City Council,Corporate Services,Agency staff provision,06-Nov-23,Michael Page International,-£672.00
Manchester City Council,Adult Social Care,Day Care Payments,06-Nov-23,Age Concern Manchester,"£10,000.00"
Manchester City Council,Adult Social Care,Day Care Payments,06-Nov-23,Age Concern Manchester,"£14,165.43"
Manchester City Council,Adult Social Care,Day Care Payments,06-Nov-23,Age Concern Manchester,"£10,520.49"
Manchester City Council,Highways Services,Grounds Maintenance,06-Nov-23,The Fountain Company Ltd,£930.75
Manchester City Council,Highways Services,Grounds Maintenance,06-Nov-23,The Fountain Company Ltd,"£3,915.00"
Manchester City Council,Highways Services,Building Materials for direct delivery,06-Nov-23,William Smith Sons (Barnard Castle),£693.92
Manchester City Council,Adult Social Care,Home Care ,06-Nov-23,Standwalk Ltd,£846.40
Manchester City Council,Highways Services,Building Materials for direct delivery,06-Nov-23,TARMAC,£916.54
Manchester City Council,Corporate Services,Grounds Maintenance,06-Nov-23,Arboricultural Services Treework,£600.00
Manchester City Council,Manchester Leisure,Cleaning Equipment and Materials,06-Nov-23,Redgate Holdings Ltd,"£14,028.84"
Manchester City Council,Manchester Leisure,Refuse Collection,06-Nov-23,Redgate Holdings Ltd,"£79,691.90"
Manchester City Council,Manchester Leisure,Grounds Maintenance,06-Nov-23,Redgate Holdings Ltd,"£11,246.50"
Manchester City Council,Manchester Leisure,Disposables,06-Nov-23,Redgate Holdings Ltd,"£117,558.64"
Manchester City Council,Manchester Leisure,Liquid Contnr Recycl,06-Nov-23,Redgate Holdings Ltd,"£8,900.96"
Manchester City Council,Manchester Leisure,Tipping - Tonnage,06-Nov-23,Redgate Holdings Ltd,"£96,028.97"
Manchester City Council,Childrens & Education Services,Professional fees,06-Nov-23,Greater Manchester Police Sports &,£560.00
Manchester City Council,Childrens & Education Services,Hire of Premises,06-Nov-23,Greater Manchester Police Sports &,£592.40
Manchester City Council,Manchester Leisure,Payments to Sub-Contractors,06-Nov-23,Swans Travel Ltd,£990.00
Manchester City Council,Chief Executives,Counsel Costs,06-Nov-23,Redacted Personal Information,"£2,770.83"
Manchester City Council,Chief Executives,Legal Fees,06-Nov-23,Warwickshire County Council,"£6,003.86"
Manchester City Council,Chief Executives,Legal Fees,06-Nov-23,Warwickshire County Council,£790.18
Manchester City Council,Chief Executives,Legal Fees,06-Nov-23,Warwickshire County Council,£552.93
Manchester City Council,Chief Executives,Legal Fees,06-Nov-23,Warwickshire County Council,"£1,666.75"
Manchester City Council,Chief Executives,Legal Fees,06-Nov-23,Warwickshire County Council,"£1,710.26"
Manchester City Council,Childrens & Education Services,Payments for services,06-Nov-23,Teaching Personnel Ltd,£600.00
Manchester City Council,Manchester Leisure,Professional fees,06-Nov-23,Manchester Professional,"£6,250.00"
Manchester City Council,Chief Executives,Grant Payments,06-Nov-23,Commonwealth Local Government Forum,"£2,390.00"
Manchester City Council,Manchester Leisure,Mobilephone Charges,06-Nov-23,O2 (UK) Ltd,"£2,084.09"
Manchester City Council,Childrens & Education Services,Professional fees,06-Nov-23,Museum of Science & Industry,£934.00
Manchester City Council,Manchester Leisure,Grant and subscriptions awarded,06-Nov-23,Cheetham Cultural Festival T/a,"£2,000.00"
Manchester City Council,Childrens & Education Services,Third party payments relating to Voluntary Organisations,06-Nov-23,Remedi,"£7,500.00"
Manchester City Council,Childrens & Education Services,Third party payments relating to Voluntary Organisations,06-Nov-23,Remedi,"£2,500.00"
Manchester City Council,Chief Executives,Legal Fees,06-Nov-23,Weightmans LLP Solicitors,"£3,420.50"
Manchester City Council,Chief Executives,Legal Fees,06-Nov-23,Weightmans LLP Solicitors,"£2,025.75"
Manchester City Council,Chief Executives,Legal Fees,06-Nov-23,Weightmans LLP Solicitors,"£2,296.50"
Manchester City Council,Manchester Leisure,Special Event,06-Nov-23,MK Illuminations UK Ltd,"£1,778.00"
Manchester City Council,Childrens & Education Services,Professional fees,06-Nov-23,Signis Group,£871.50
Manchester City Council,Manchester Leisure,Special Event,06-Nov-23,Redacted Personal Information,£500.00
Manchester City Council,Chief Executives,Professional fees,06-Nov-23,Pickering Psychology Services Ltd,£799.63
Manchester City Council,Chief Executives,Counsel Costs,06-Nov-23,Central Chambers,£650.00
Manchester City Council,Childrens & Education Services,Professional fees,06-Nov-23,Prospero Teaching,£500.00
Manchester City Council,Childrens & Education Services,Professional fees,06-Nov-23,Prospero Teaching,£500.00
Manchester City Council,Childrens & Education Services,Professional fees,06-Nov-23,Prospero Teaching,£500.00
Manchester City Council,Childrens & Education Services,Professional fees,06-Nov-23,Prospero Teaching,£500.00
Manchester City Council,Childrens & Education Services,Professional fees,06-Nov-23,Prospero Teaching,£500.00
Manchester City Council,Childrens & Education Services,Professional fees,06-Nov-23,Prospero Teaching,£500.00
Manchester City Council,Hospitality + Trading Services,Vehicle Fuel Costs,06-Nov-23,Standard Fuels Oils,"£18,937.50"
Manchester City Council,Adult Social Care,Bed & Breakfast Acc,06-Nov-23,Hala Guest House,£780.00
Manchester City Council,Childrens & Education Services,Personal needs of client,06-Nov-23,Furniture Resource Centre Ltd,£574.66
Manchester City Council,Childrens & Education Services,Personal needs of client,06-Nov-23,Furniture Resource Centre Ltd,£744.58
Manchester City Council,Corporate Services,WPS Awards,06-Nov-23,Furniture Resource Centre Ltd,"£2,025.16"
Manchester City Council,Adult Social Care,Personal needs of client,06-Nov-23,YOURmedpack Ltd,"£1,229.00"
Manchester City Council,Adult Social Care,Payments for services,06-Nov-23,Slimming World,"£10,410.00"
Manchester City Council,Adult Social Care,Third party payments relating to Voluntary Organisations,06-Nov-23,Quays Housing,"£15,376.26"
Manchester City Council,Chief Executives,Legal Fees,06-Nov-23,Isherwood Legal Limited,£960.00
Manchester City Council,Adult Social Care,Third party payments relating to Voluntary Organisations,06-Nov-23,Change Grow Live Services Ltd,"£540,735.67"
Manchester City Council,Adult Social Care,Third party payments relating to Voluntary Organisations,06-Nov-23,Change Grow Live Services Ltd,"£54,374.28"
Manchester City Council,Adult Social Care,Third party payments relating to Voluntary Organisations,06-Nov-23,Change Grow Live Services Ltd,"£3,768.67"
Manchester City Council,Adult Social Care,Third party payments relating to Voluntary Organisations,06-Nov-23,Change Grow Live Services Ltd,"£65,663.75"
Manchester City Council,Manchester Leisure,Construction Works,06-Nov-23,WSP UK Limited,"£12,500.00"
Manchester City Council,Manchester Leisure,Photocopying,06-Nov-23,Arena Group Ltd,£939.54
Manchester City Council,Corporate Services,Works and associated costs for Land and Buildings,06-Nov-23,FEC Northern Gateway Development Lt,"£1,666.67"
Manchester City Council,Manchester Leisure,Professional fees,06-Nov-23,Redacted Personal Information,£850.00
Manchester City Council,Insurance Fund,Insurance,06-Nov-23,COSGROVE COSTINGS LIMITED,£900.00
Manchester City Council,Housing Revenue Account,Council Dwelling Fees,06-Nov-23,Forever Manchester,"£15,827.00"
Manchester City Council,Corporate Services,I T Provision,06-Nov-23,ThinkProject UK Limited,"£2,250.00"
Manchester City Council,Manchester Leisure,Hire of Equipment,06-Nov-23,Arena Group,"£1,675.00"
Manchester City Council,Corporate Services,Payments to Sub-Contractors,06-Nov-23,Sants Fabrications Ltd,"£3,800.00"
Manchester City Council,Corporate Services,Payments to Sub-Contractors,06-Nov-23,Sants Fabrications Ltd,"£3,200.00"
Manchester City Council,Manchester Leisure,Special Event,06-Nov-23,Redacted Personal Information,£527.33
Manchester City Council,Corporate Services,Training and Development,06-Nov-23,ASK Europe Limited,£750.00
Manchester City Council,Manchester Leisure,Compensation Payments,06-Nov-23,KPHP Limited,"£12,750.00"
Manchester City Council,Corporate Services,Compensation Payments,06-Nov-23,Robert Bingham Limited – Client Acc,"£2,000.00"
Manchester City Council,Highways Services,Legal Fees,06-Nov-23,Fletchers Solicitors Ltd,"£9,368.16"
Manchester City Council,Regeneration Finance,Grant and subscriptions awarded,07-Nov-23,Redacted personal info,"£2,500.00"
Manchester City Council,Regeneration Finance,Grant and subscriptions awarded,07-Nov-23,Redacted personal info,"£2,500.00"
Manchester City Council,Adult Social Care,Rents,07-Nov-23,Redacted personal info,"-£3,590.00"
Manchester City Council,Adult Social Care,Rents,07-Nov-23,Redacted personal info,"£3,590.00"
Manchester City Council,Adult Social Care,Rents,07-Nov-23,Redacted personal info,"£2,300.00"
Manchester City Council,Adult Social Care,Rents,07-Nov-23,Redacted personal info,"£1,290.00"
Manchester City Council,Childrens & Education Services,Transport Taxis,07-Nov-23,Hastings Private Hire,"£9,144.00"
Manchester City Council,Childrens & Education Services,Transport Taxis,07-Nov-23,Hastings Private Hire,"-£9,144.00"
Manchester City Council,Corporate Services,I T Provision,07-Nov-23,EE/T-Mobile,"£1,090.87"
Manchester City Council,Chief Executives,Publications,07-Nov-23,NLA Media Access Ltd,"£12,453.48"
Manchester City Council,Manchester Leisure,Contract Cleaning External,07-Nov-23,Clearview Event Services Limited,"£13,128.42"
Manchester City Council,Housing Revenue Account,Council Dwelling Adaptations,07-Nov-23,Handicare Accessibility Ltd,"£4,027.00"
Manchester City Council,Manchester Leisure,Refuse Collection,07-Nov-23,Ramora Ltd,"£2,490.00"
Manchester City Council,Manchester Leisure,Grant and subscriptions awarded,07-Nov-23,Moss Side Millennium Powerhouse Ltd,"£1,808.00"
Manchester City Council,Highways Services,Building Materials for direct delivery,07-Nov-23,TARMAC,"£1,372.37"
Manchester City Council,Adult Social Care,Payments for services,07-Nov-23,Big Life Centres,"£6,024.50"
Manchester City Council,Manchester Leisure,Grant and subscriptions awarded,07-Nov-23,Wai Yin Society,"£1,550.12"
Manchester City Council,Manchester Leisure,Grant and subscriptions awarded,07-Nov-23,Wai Yin Society,£617.88
Manchester City Council,Housing Revenue Account,Council Dwelling Adaptations,07-Nov-23,Stannah Lift Services Ltd,"£6,872.00"
Manchester City Council,Childrens & Education Services,Payments for services,07-Nov-23,Central Mcr Uni Hospital t/a,"£7,652.40"
Manchester City Council,Childrens & Education Services,Childminding Fee Pay,07-Nov-23,Central Mcr Uni Hospital t/a,£779.01
Manchester City Council,Childrens & Education Services,Payments for services,07-Nov-23,Irwell Valley Housing Association,"£5,254.58"
Manchester City Council,Childrens & Education Services,Payments for services,07-Nov-23,Irwell Valley Housing Association,"£5,254.58"
Manchester City Council,Childrens & Education Services,Private Finance and Public Private partnership initiatives,07-Nov-23,Manchester School Services Limited,"£457,087.67"
Manchester City Council,Childrens & Education Services,Gas,07-Nov-23,Manchester School Services Limited,"£80,017.95"
Manchester City Council,Regeneration Finance,External repairs and maintenance for buildings,07-Nov-23,P Mcguinness & Co Ltd,£860.00
Manchester City Council,Highways Services,Legal Fees,07-Nov-23,Department For Work & Pensions,£766.00
Manchester City Council,Chief Executives,Legal Fees,07-Nov-23,Warwickshire County Council,£777.47
Manchester City Council,Chief Executives,Legal Fees,07-Nov-23,Warwickshire County Council,£628.65
Manchester City Council,Chief Executives,Legal Fees,07-Nov-23,Warwickshire County Council,"£1,116.80"
Manchester City Council,Chief Executives,Legal Fees,07-Nov-23,Warwickshire County Council,£501.65
Manchester City Council,Childrens & Education Services,Contract Cleaning External,07-Nov-23,Brighter Beginnings (Newton Heath),"£2,231.25"
Manchester City Council,Childrens & Education Services,Contract Cleaning External,07-Nov-23,Brighter Beginnings Day Nursery,"£1,673.43"
Manchester City Council,Childrens & Education Services,Contract Cleaning External,07-Nov-23,Brighter Beginnings Day Nursery,"£1,673.43"
Manchester City Council,Childrens & Education Services,Contract Cleaning External,07-Nov-23,Brighter Beginnings (Charlestown),"£2,231.25"
Manchester City Council,Adult Social Care,Legal Fees,07-Nov-23,Redacted Personal Information,£500.00
Manchester City Council,Adult Social Care,Legal Fees,07-Nov-23,11KBW,£500.00
Manchester City Council,Manchester Leisure,Grant and subscriptions awarded,07-Nov-23,Healthy Me Healthy Communities,"£1,715.00"
Manchester City Council,Regeneration Finance,Third party payments relating to Voluntary Organisations,07-Nov-23,Reform Radio CIC,"£4,380.00"
Manchester City Council,Adult Social Care,Third party payments relating to Voluntary Organisations,07-Nov-23,One Manchester Limited,"£10,140.00"
Manchester City Council,Adult Social Care,Bed & Breakfast Acc,07-Nov-23,Redacted Personal Information,£860.00
Manchester City Council,Adult Social Care,Rents,07-Nov-23,K L Properties,"£17,480.53"
Manchester City Council,Manchester Leisure,Grant Payments,07-Nov-23,The Bread and Butter Thing,"£27,843.72"
Manchester City Council,Childrens & Education Services,Payments for services,07-Nov-23,Prospero Teaching,£500.00
Manchester City Council,Childrens & Education Services,Payments for services,07-Nov-23,Prospero Teaching,£500.00
Manchester City Council,Childrens & Education Services,Payments for services,07-Nov-23,Prospero Teaching,£500.00
Manchester City Council,Childrens & Education Services,Payments for services,07-Nov-23,Prospero Teaching,£500.00
Manchester City Council,Childrens & Education Services,Payments for services,07-Nov-23,Prospero Teaching,£500.00
Manchester City Council,Childrens & Education Services,Payments for services,07-Nov-23,Prospero Teaching,£500.00
Manchester City Council,Childrens & Education Services,Payments for services,07-Nov-23,Prospero Teaching,£500.00
Manchester City Council,Childrens & Education Services,Payments for services,07-Nov-23,Prospero Teaching,£500.00
Manchester City Council,Childrens & Education Services,Payments for services,07-Nov-23,Prospero Teaching,£500.00
Manchester City Council,Childrens & Education Services,Payments for services,07-Nov-23,Prospero Teaching,£787.50
Manchester City Council,Childrens & Education Services,Payments for services,07-Nov-23,Prospero Teaching,£787.50
Manchester City Council,Childrens & Education Services,Payments for services,07-Nov-23,Prospero Teaching,£500.00
Manchester City Council,Childrens & Education Services,Payments for services,07-Nov-23,Prospero Teaching,£550.00
Manchester City Council,Childrens & Education Services,Payments for services,07-Nov-23,Prospero Teaching,£500.00
Manchester City Council,Childrens & Education Services,Payments for services,07-Nov-23,Prospero Teaching,£500.00
Manchester City Council,Adult Social Care,Equipment,07-Nov-23,Herida Healthcare Plc,"£2,019.60"
Manchester City Council,Manchester Leisure,Building Materials for direct delivery,07-Nov-23,CPD Property Services,"£2,795.00"
Manchester City Council,Manchester Leisure,Cleaning Equipment,07-Nov-23,CPD Property Services,£895.00
Manchester City Council,Manchester Leisure,Library Materials Acquisition,07-Nov-23,Chorlton News,£852.72
Manchester City Council,Manchester Leisure,Grant and subscriptions awarded,07-Nov-23,Green Fingers Moston Community,"£1,500.00"
Manchester City Council,Hospitality + Trading Services,Professional fees,07-Nov-23,APSE,"£8,680.00"
Manchester City Council,Regeneration Finance,Professional fees,07-Nov-23,OTB Engineering Limited,"£48,760.48"
Manchester City Council,Regeneration Finance,Professional fees,07-Nov-23,OTB Engineering Limited,"£1,900.00"
Manchester City Council,Regeneration Finance,Professional fees,07-Nov-23,OTB Engineering Limited,"£4,750.00"
Manchester City Council,Childrens & Education Services,Payments for services,07-Nov-23,Positive Care Solutions Ltd,£720.00
Manchester City Council,Childrens & Education Services,Third party payments to other Local Authorities,07-Nov-23,Marlborough Primary School,"£3,481.00"
Manchester City Council,Childrens & Education Services,Professional fees,07-Nov-23,Expert Psychology Consultancy Ltd,£748.80
Manchester City Council,Manchester Leisure,Professional fees,07-Nov-23,OH Digital Limited,"£4,100.00"
Manchester City Council,Adult Social Care,Rents,07-Nov-23,MODUSSIR CHOUDHURY,"£5,600.00"
Manchester City Council,Hospitality + Trading Services,Hire of Equipment,07-Nov-23,Marks & Spencer PLC,"£5,000.00"
Manchester City Council,Adult Social Care,Rents,08-Nov-23,Redacted personal info,"£4,900.00"
Manchester City Council,Adult Social Care,Rents,08-Nov-23,Redacted personal info,"£9,600.00"
Manchester City Council,Adult Social Care,Rents,08-Nov-23,Redacted personal info,"£7,178.60"
Manchester City Council,Childrens & Education Services,Rents,08-Nov-23,Redacted personal info,"£8,993.63"
Manchester City Council,Corporate Services,Sanitary/Medcal Wast,08-Nov-23,Initial Medical Services,"£1,037.66"
Manchester City Council,Adult Social Care,Equipment,08-Nov-23,RNIB,£750.00
Manchester City Council,Hospitality + Trading Services,Hire of Machinery,08-Nov-23,F.R.Sharrock Ltd,"-£33,294.53"
Manchester City Council,Hospitality + Trading Services,Hire of Machinery,08-Nov-23,F.R.Sharrock Ltd,"£32,594.53"
Manchester City Council,Hospitality + Trading Services,Hire of Machinery,08-Nov-23,F.R.Sharrock Ltd,"£32,594.53"
Manchester City Council,Adult Social Care,Payments for services,08-Nov-23,Holgate House,"£1,188.59"
Manchester City Council,Adult Social Care,Payments for services,08-Nov-23,Holgate House,"-£1,188.59"
Manchester City Council,Chief Executives,Advertising,08-Nov-23,Hemming Group Ltd,£675.00
Manchester City Council,Chief Executives,Advertising,08-Nov-23,Hemming Group Ltd,£675.00
Manchester City Council,Chief Executives,Advertising,08-Nov-23,Hemming Group Ltd,£675.00
Manchester City Council,Chief Executives,Advertising,08-Nov-23,Hemming Group Ltd,£562.50
Manchester City Council,Chief Executives,Advertising,08-Nov-23,Hemming Group Ltd,£675.00
Manchester City Council,Chief Executives,Advertising,08-Nov-23,Hemming Group Ltd,£675.00
Manchester City Council,Chief Executives,Advertising,08-Nov-23,Hemming Group Ltd,£675.00
Manchester City Council,Hospitality + Trading Services,Hire of Machinery,08-Nov-23,R & M Developments Ltd,"£1,073.50"
Manchester City Council,Regeneration Finance,Legal Fees,08-Nov-23,Redacted Personal Information,"£18,400.00"
Manchester City Council,Manchester Leisure,Building Materials for direct delivery,08-Nov-23,Arboricultural Services Treework,£700.00
Manchester City Council,Manchester Leisure,Building Materials for direct delivery,08-Nov-23,Arboricultural Services Treework,"£1,000.00"
Manchester City Council,Manchester Leisure,Payments to Sub-Contractors,08-Nov-23,Arboricultural Services Treework,"£11,250.00"
Manchester City Council,Corporate Services,Grounds Maintenance,08-Nov-23,Arboricultural Services Treework,£600.00
Manchester City Council,Highways Services,Private Finance and Public Private partnership initiatives,08-Nov-23,Amey Highways Lighting (Manchester),"£772,527.80"
Manchester City Council,Adult Social Care,Third party payments to Health Authority,08-Nov-23,Greater Manchester Mental Health,"-£401,023.00"
Manchester City Council,Chief Executives,Professional fees,08-Nov-23,Manchester International Festival,"£45,715.50"
Manchester City Council,Adult Social Care,Third party payments relating to Voluntary Organisations,08-Nov-23,Citizens Advice Manchester,"£80,000.00"
Manchester City Council,Chief Executives,Printing,08-Nov-23,Wallace Printers Ltd,£553.00
Manchester City Council,Manchester Leisure,Grant and subscriptions awarded,08-Nov-23,University Of Manchester,"£16,946.70"
Manchester City Council,Chief Executives,Printing,08-Nov-23,Browns CTP Ltd,£698.00
Manchester City Council,Childrens & Education Services,Legal Fees,08-Nov-23,Warwickshire County Council,"£1,851.42"
Manchester City Council,Chief Executives,Legal Fees,08-Nov-23,Warwickshire County Council,"£1,651.20"
Manchester City Council,Chief Executives,Legal Fees,08-Nov-23,Warwickshire County Council,£829.35
Manchester City Council,Adult Social Care,Professional fees,08-Nov-23,Bennett Workplace Solutions Ltd,£947.99
Manchester City Council,Adult Social Care,Furniture,08-Nov-23,Bennett Workplace Solutions Ltd,"£1,373.00"
Manchester City Council,Adult Social Care,Furniture,08-Nov-23,Bennett Workplace Solutions Ltd,"£1,234.95"
Manchester City Council,Childrens & Education Services,Payments for services,08-Nov-23,Teaching Personnel Ltd,£640.00
Manchester City Council,Childrens & Education Services,Payments for services,08-Nov-23,Teaching Personnel Ltd,£500.00
Manchester City Council,Childrens & Education Services,Personal needs of client,08-Nov-23,Phonak UK,"-£6,172.12"
Manchester City Council,Environment and Operations,Construction Works,08-Nov-23,Malcolm Hughes Land Surveyors Ltd,"£1,950.00"
Manchester City Council,Manchester Leisure,Payments to Sub-Contractors,08-Nov-23,Lubbe & Sons (Bulbs) Ltd,"£13,249.50"
Manchester City Council,Manchester Leisure,Payments to Sub-Contractors,08-Nov-23,Lubbe & Sons (Bulbs) Ltd,"£1,770.50"
Manchester City Council,Chief Executives,Legal Fees,08-Nov-23,Weightmans LLP Solicitors,"£8,060.42"
Manchester City Council,Regeneration Finance,Storage Costs,08-Nov-23,Oasis UK formerly Box-It (NW),"£23,889.61"
Manchester City Council,Manchester Leisure,Payments to Sub-Contractors,08-Nov-23,Groundwork & Leisure Services Ltd,£890.00
Manchester City Council,Corporate Services,Agency staff provision,08-Nov-23,Ashberry Recruitment Ltd,"£1,968.30"
Manchester City Council,Adult Social Care,Grant and subscriptions awarded,08-Nov-23,Manchester Mind,"£5,602.16"
Manchester City Council,Manchester Leisure,Heating Oil,08-Nov-23,Greenwich Leisure Limited,"£12,662.96"
Manchester City Council,Chief Executives,Floral Decorations,08-Nov-23,Eventures,£825.00
Manchester City Council,Chief Executives,Payments to Sub-Contractors,08-Nov-23,Redacted Personal Information,£559.65
Manchester City Council,Adult Social Care,Payments for services,08-Nov-23,Delphi Medical,"£1,995.00"
Manchester City Council,Adult Social Care,Water - Metered,08-Nov-23,Water Plus Limited,"£3,089.95"
Manchester City Council,Chief Executives,Printing,08-Nov-23,Impression (Bolton) Ltd,£958.00
Manchester City Council,Chief Executives,Printing,08-Nov-23,Impression (Bolton) Ltd,"£2,691.00"
Manchester City Council,Chief Executives,Printing,08-Nov-23,Geiger Limited,£587.50
Manchester City Council,Manchester Leisure,Grant Payments,08-Nov-23,The Bread and Butter Thing,"£3,168.00"
Manchester City Council,Childrens & Education Services,Personal needs of client,08-Nov-23,Furniture Resource Centre Ltd,£755.24
Manchester City Council,Adult Social Care,Personal needs of client,08-Nov-23,YOURmedpack Ltd,"£9,443.57"
Manchester City Council,Adult Social Care,Personal needs of client,08-Nov-23,YOURmedpack Ltd,"-£9,443.57"
Manchester City Council,Manchester Leisure,GRIR,08-Nov-23,Grahams (Holdings) Ltd,-£962.00
Manchester City Council,Manchester Leisure,Cleaning Equipment,08-Nov-23,CPD Property Services,£595.00
Manchester City Council,Chief Executives,Payments to Sub-Contractors,08-Nov-23,Redacted Personal Information,£690.00
Manchester City Council,Highways Services,Building Materials for direct delivery,08-Nov-23,STANDARD SIGNS & TRAFFIC SYSTEMS,"£1,126.00"
Manchester City Council,Corporate Services,Training and Development,08-Nov-23,ASK Europe Limited,£750.00
Manchester City Council,Manchester Leisure,Water - Unmetered,08-Nov-23,Business Stream,"£4,073.74"
Manchester City Council,Manchester Leisure,Water - Unmetered,08-Nov-23,Business Stream,"£16,154.00"
Manchester City Council,Manchester Leisure,Water - Unmetered,08-Nov-23,Business Stream,"£16,340.20"
Manchester City Council,Manchester Leisure,Water - Unmetered,08-Nov-23,Business Stream,"£15,574.82"
Manchester City Council,Manchester Leisure,Special Event,08-Nov-23,Ambrose Musiyiwa,"£1,183.20"
Manchester City Council,Adult Social Care,Rents,09-Nov-23,Redacted personal info,"£1,600.00"
Manchester City Council,Chief Executives,Counsel Costs,09-Nov-23,Redacted personal info,£937.50
Manchester City Council,Chief Executives,Counsel Costs,09-Nov-23,Redacted personal info,£666.66
Manchester City Council,Chief Executives,Grant Payments,09-Nov-23,Oldham Borough Council,"£5,925.00"
Manchester City Council,Adult Social Care,Supporting People Payments,09-Nov-23,People First Housing Association,"£13,833.27"
Manchester City Council,Adult Social Care,Supporting People Payments,09-Nov-23,People First Housing Association,"£13,833.27"
Manchester City Council,Adult Social Care,Supporting People Payments,09-Nov-23,People First Housing Association,"£13,833.27"
Manchester City Council,Corporate Services,Legal Fees,09-Nov-23,Eversheds Llp,"£11,043.00"
Manchester City Council,Adult Social Care,Equipment,09-Nov-23,Prism Medical UK Carefree Division,"£5,950.00"
Manchester City Council,Manchester Leisure,Grant and subscriptions awarded,09-Nov-23,Benchill Community Centre,"£1,085.00"
Manchester City Council,Adult Social Care,Equipment,09-Nov-23,Drive Devilbiss Sidhil Ltd,£523.60
Manchester City Council,Corporate Services,Cash Collection,09-Nov-23,NSL Ltd,"£5,343.37"
Manchester City Council,Corporate Services,Cash Collection,09-Nov-23,NSL Ltd,"-£5,502.43"
Manchester City Council,Corporate Services,Cash Collection,09-Nov-23,NSL Ltd,"£5,502.43"
Manchester City Council,Manchester Leisure,Payments to Contractors,09-Nov-23,NSL Ltd,"£16,663.31"
Manchester City Council,Corporate Services,Payments to Contractors,09-Nov-23,NSL Ltd,"-£5,343.37"
Manchester City Council,Chief Executives,Publications,09-Nov-23,Lexis Nexis Uk,"£26,432.00"
Manchester City Council,Adult Social Care,Gas,09-Nov-23,Scottish & Southern Energy Plc,"-£1,067.10"
Manchester City Council,Adult Social Care,Gas,09-Nov-23,Scottish & Southern Energy Plc,"£1,200.83"
Manchester City Council,Adult Social Care,Gas,09-Nov-23,Scottish & Southern Energy Plc,"£1,017.22"
Manchester City Council,Adult Social Care,Gas,09-Nov-23,Scottish & Southern Energy Plc,£983.85
Manchester City Council,Adult Social Care,Gas,09-Nov-23,Scottish & Southern Energy Plc,"£1,769.79"
Manchester City Council,Adult Social Care,Gas,09-Nov-23,Scottish & Southern Energy Plc,"£1,245.91"
Manchester City Council,Adult Social Care,Gas,09-Nov-23,Scottish & Southern Energy Plc,£684.92
Manchester City Council,Housing Revenue Account,Gas,09-Nov-23,Scottish & Southern Energy Plc,"£1,223.75"
Manchester City Council,Manchester Leisure,Electricity,09-Nov-23,Scottish & Southern Energy Plc,-£595.05
Manchester City Council,Manchester Leisure,Electricity,09-Nov-23,Scottish & Southern Energy Plc,-£515.81
Manchester City Council,Manchester Leisure,Electricity,09-Nov-23,Scottish & Southern Energy Plc,-£542.02
Manchester City Council,Manchester Leisure,Electricity,09-Nov-23,Scottish & Southern Energy Plc,-£663.30
Manchester City Council,Manchester Leisure,Electricity,09-Nov-23,Scottish & Southern Energy Plc,-£697.27
Manchester City Council,Manchester Leisure,Electricity,09-Nov-23,Scottish & Southern Energy Plc,-£551.98
Manchester City Council,Manchester Leisure,Electricity,09-Nov-23,Scottish & Southern Energy Plc,-£654.67
Manchester City Council,Manchester Leisure,Electricity,09-Nov-23,Scottish & Southern Energy Plc,£564.07
Manchester City Council,Manchester Leisure,Electricity,09-Nov-23,Scottish & Southern Energy Plc,£508.35
Manchester City Council,Manchester Leisure,Electricity,09-Nov-23,Scottish & Southern Energy Plc,£597.79
Manchester City Council,Childrens & Education Services,Electricity,09-Nov-23,Scottish & Southern Energy Plc,-£513.86
Manchester City Council,Childrens & Education Services,Electricity,09-Nov-23,Scottish & Southern Energy Plc,"-£5,426.43"
Manchester City Council,Childrens & Education Services,Electricity,09-Nov-23,Scottish & Southern Energy Plc,"-£3,053.35"
Manchester City Council,Childrens & Education Services,Electricity,09-Nov-23,Scottish & Southern Energy Plc,"-£3,054.28"
Manchester City Council,Childrens & Education Services,Electricity,09-Nov-23,Scottish & Southern Energy Plc,"-£3,054.28"
Manchester City Council,Childrens & Education Services,Electricity,09-Nov-23,Scottish & Southern Energy Plc,"-£1,983.24"
Manchester City Council,Adult Social Care,Electricity,09-Nov-23,Scottish & Southern Energy Plc,-£582.66
Manchester City Council,Adult Social Care,Electricity,09-Nov-23,Scottish & Southern Energy Plc,-£629.34
Manchester City Council,Adult Social Care,Electricity,09-Nov-23,Scottish & Southern Energy Plc,-£651.82
Manchester City Council,Adult Social Care,Electricity,09-Nov-23,Scottish & Southern Energy Plc,-£681.13
Manchester City Council,Adult Social Care,Electricity,09-Nov-23,Scottish & Southern Energy Plc,£629.34
Manchester City Council,Adult Social Care,Electricity,09-Nov-23,Scottish & Southern Energy Plc,£582.66
Manchester City Council,Adult Social Care,Electricity,09-Nov-23,Scottish & Southern Energy Plc,£604.07
Manchester City Council,Adult Social Care,Electricity,09-Nov-23,Scottish & Southern Energy Plc,£614.82
Manchester City Council,Adult Social Care,Electricity,09-Nov-23,Scottish & Southern Energy Plc,£839.24
Manchester City Council,Adult Social Care,Electricity,09-Nov-23,Scottish & Southern Energy Plc,£956.05
Manchester City Council,Adult Social Care,Electricity,09-Nov-23,Scottish & Southern Energy Plc,"£1,982.45"
Manchester City Council,Adult Social Care,Electricity,09-Nov-23,Scottish & Southern Energy Plc,£706.56
Manchester City Council,Adult Social Care,Electricity,09-Nov-23,Scottish & Southern Energy Plc,£603.16
Manchester City Council,Adult Social Care,Electricity,09-Nov-23,Scottish & Southern Energy Plc,£583.20
Manchester City Council,Corporate Services,Electricity,09-Nov-23,Scottish & Southern Energy Plc,"£1,488.58"
Manchester City Council,Corporate Services,Electricity,09-Nov-23,Scottish & Southern Energy Plc,"£1,036.90"
Manchester City Council,Corporate Services,Electricity,09-Nov-23,Scottish & Southern Energy Plc,"£1,288.90"
Manchester City Council,Regeneration Finance,Electricity,09-Nov-23,Scottish & Southern Energy Plc,"£6,542.67"
Manchester City Council,Regeneration Finance,Electricity,09-Nov-23,Scottish & Southern Energy Plc,"£4,846.85"
Manchester City Council,Manchester Leisure,Library Materials Acquisition,09-Nov-23,Martin-Lavell Limited,"£1,532.71"
Manchester City Council,Hospitality + Trading Services,Building Materials for direct delivery,09-Nov-23,Killgerm Chemicals Ltd,"£1,080.00"
Manchester City Council,Hospitality + Trading Services,Vehicle Hire Costs,09-Nov-23,F.R.Sharrock Ltd,£609.00
Manchester City Council,Hospitality + Trading Services,Hire of Machinery,09-Nov-23,F.R.Sharrock Ltd,"£5,124.00"
Manchester City Council,Regeneration Finance,Gas,09-Nov-23,British Gas Plc,£552.14
Manchester City Council,Corporate Services,Landline Telephone,09-Nov-23,BT PLC,"£46,524.17"
Manchester City Council,Chief Executives,Publications,09-Nov-23,NLA Media Access Ltd,"£1,245.35"
Manchester City Council,Childrens & Education Services,Transport Coach Hire,09-Nov-23,Street Cars,"£5,000.00"
Manchester City Council,Childrens & Education Services,Transport Coach Hire,09-Nov-23,Street Cars,"£10,000.00"
Manchester City Council,Childrens & Education Services,Transport Coach Hire,09-Nov-23,Street Cars,"£10,000.00"
Manchester City Council,Childrens & Education Services,Transport Coach Hire,09-Nov-23,Street Cars,"£5,000.00"
Manchester City Council,Childrens & Education Services,Transport Coach Hire,09-Nov-23,Street Cars,"£1,541.00"
Manchester City Council,Childrens & Education Services,Transport Coach Hire,09-Nov-23,Street Cars,"£20,000.00"
Manchester City Council,Childrens & Education Services,Transport Coach Hire,09-Nov-23,Street Cars,"£10,000.00"
Manchester City Council,Childrens & Education Services,Transport Coach Hire,09-Nov-23,Street Cars,"£8,012.00"
Manchester City Council,Housing Revenue Account,Training and Development,09-Nov-23,The Manchester College,£650.00
Manchester City Council,Adult Social Care,Third party payments relating to Voluntary Organisations,09-Nov-23,Gaddum Centre,"£143,401.00"
Manchester City Council,Corporate Services,I T Provision,09-Nov-23,NEC Software Solutions UK Ltd,"£6,300.00"
Manchester City Council,Highways Services,Payments to Sub-Contractors,09-Nov-23,Utilities Design & Planning Ltd,"£9,367.36"
Manchester City Council,Highways Services,Payments to Sub-Contractors,09-Nov-23,Utilities Design & Planning Ltd,"£1,728.00"
Manchester City Council,Highways Services,Payments to Sub-Contractors,09-Nov-23,Utilities Design & Planning Ltd,"£1,100.00"
Manchester City Council,Highways Services,Payments to Sub-Contractors,09-Nov-23,Utilities Design & Planning Ltd,£575.00
Manchester City Council,Highways Services,Payments to Sub-Contractors,09-Nov-23,Utilities Design & Planning Ltd,"£1,200.00"
Manchester City Council,Highways Services,Payments to Sub-Contractors,09-Nov-23,Utilities Design & Planning Ltd,£600.00
Manchester City Council,Highways Services,Payments to Sub-Contractors,09-Nov-23,Utilities Design & Planning Ltd,"£4,052.00"
Manchester City Council,Highways Services,Payments to Sub-Contractors,09-Nov-23,Utilities Design & Planning Ltd,"£2,000.00"
Manchester City Council,Highways Services,Payments to Sub-Contractors,09-Nov-23,Utilities Design & Planning Ltd,"£3,257.50"
Manchester City Council,Highways Services,Payments to Sub-Contractors,09-Nov-23,Utilities Design & Planning Ltd,"£2,000.00"
Manchester City Council,Highways Services,Payments to Sub-Contractors,09-Nov-23,Utilities Design & Planning Ltd,"£2,000.00"
Manchester City Council,Highways Services,Grounds Maintenance,09-Nov-23,Utilities Design & Planning Ltd,£570.93
Manchester City Council,Highways Services,Grounds Maintenance,09-Nov-23,Utilities Design & Planning Ltd,-£570.93
Manchester City Council,Hospitality + Trading Services,Hire of Machinery,09-Nov-23,R & M Developments Ltd,"£1,073.50"
Manchester City Council,Hospitality + Trading Services,Hire of Machinery,09-Nov-23,R & M Developments Ltd,"£1,073.50"
Manchester City Council,Hospitality + Trading Services,Hire of Machinery,09-Nov-23,R & M Developments Ltd,"£1,073.50"
Manchester City Council,Manchester Leisure,Cleaning Equipment and Materials,09-Nov-23,Moston Janitorial Supplies Ltd,£641.07
Manchester City Council,Adult Social Care,Rents,09-Nov-23,Mosscare Housing Ltd,"£1,737.84"
Manchester City Council,Housing Revenue Account,Council Dwelling Adaptations,09-Nov-23,Rexel UK Ltd,"£1,567.89"
Manchester City Council,Housing Revenue Account,Council Dwelling Adaptations,09-Nov-23,Rexel UK Ltd,"£24,922.26"
Manchester City Council,Chief Executives,Counsel Costs,09-Nov-23,Redacted Personal Information,£700.00
Manchester City Council,Regeneration Finance,Professional fees,09-Nov-23,Savills (UK) Ltd,"£17,425.00"
Manchester City Council,Regeneration Finance,Professional fees,09-Nov-23,Savills (UK) Ltd,"£5,500.00"
Manchester City Council,Regeneration Finance,Professional fees,09-Nov-23,Savills (UK) Ltd,"£2,800.00"
Manchester City Council,Regeneration Finance,Professional fees,09-Nov-23,Savills (UK) Ltd,"£7,000.00"
Manchester City Council,Regeneration Finance,Professional fees,09-Nov-23,Savills (UK) Ltd,"£7,000.00"
Manchester City Council,Manchester Leisure,Building Materials for direct delivery,09-Nov-23,Arboricultural Services Treework,"£1,820.00"
Manchester City Council,Manchester Leisure,Payments to Sub-Contractors,09-Nov-23,Arboricultural Services Treework,"£13,510.00"
Manchester City Council,Manchester Leisure,Payments to Sub-Contractors,09-Nov-23,Arboricultural Services Treework,"£1,350.00"
Manchester City Council,Manchester Leisure,Payments to Sub-Contractors,09-Nov-23,Arboricultural Services Treework,"£1,740.00"
Manchester City Council,Corporate Services,Works and associated costs for Land and Buildings,09-Nov-23,Arboricultural Services Treework,"£1,380.00"
Manchester City Council,Corporate Services,Works and associated costs for Land and Buildings,09-Nov-23,Arboricultural Services Treework,"£1,530.00"
Manchester City Council,Adult Social Care,Grant and subscriptions awarded,09-Nov-23,Saheli,"£26,627.75"
Manchester City Council,Adult Social Care,Third party payments relating to Voluntary Organisations,09-Nov-23,Saheli,"£6,259.75"
Manchester City Council,Adult Social Care,Third party payments relating to Voluntary Organisations,09-Nov-23,Saheli,"£6,259.75"
Manchester City Council,Adult Social Care,Third party payments relating to Voluntary Organisations,09-Nov-23,Saheli,"£6,259.75"
Manchester City Council,Adult Social Care,Signers/Interpreters,09-Nov-23,Language Line Ltd,£578.95
Manchester City Council,Housing General Fund,Building Works,09-Nov-23,Stannah Lift Services Ltd,"£7,055.00"
Manchester City Council,Housing General Fund,Building Works,09-Nov-23,Stannah Lift Services Ltd,"£3,638.00"
Manchester City Council,Housing General Fund,Building Works,09-Nov-23,Stannah Lift Services Ltd,"£3,293.00"
Manchester City Council,Housing General Fund,Building Works,09-Nov-23,Stannah Lift Services Ltd,"£4,950.90"
Manchester City Council,Housing General Fund,Building Works,09-Nov-23,Stannah Lift Services Ltd,"£4,602.00"
Manchester City Council,Housing General Fund,Building Works,09-Nov-23,Stannah Lift Services Ltd,"£7,205.00"
Manchester City Council,Housing General Fund,Building Works,09-Nov-23,Stannah Lift Services Ltd,"£7,563.00"
Manchester City Council,Housing General Fund,Building Works,09-Nov-23,Stannah Lift Services Ltd,"£6,745.00"
Manchester City Council,Childrens & Education Services,Internal Repairs and Maintenance for buildings,09-Nov-23,NU3PS,£842.46
Manchester City Council,Manchester Leisure,Professional fees,09-Nov-23,Wythenshawe Forum Trust Ltd,"£6,625.92"
Manchester City Council,Manchester Leisure,Professional fees,09-Nov-23,Wythenshawe Forum Trust Ltd,"£6,059.64"
Manchester City Council,Housing Revenue Account,Private Finance and Public Private partnership initiatives,09-Nov-23,Grove Village Ltd,"£536,182.58"
Manchester City Council,Childrens & Education Services,Hire of Premises,09-Nov-23,Greater Manchester Police Sports &,£807.92
Manchester City Council,Manchester Leisure,Electricity,09-Nov-23,Npower,"£1,329.89"
Manchester City Council,Manchester Leisure,Electricity,09-Nov-23,Npower,"£1,679.46"
Manchester City Council,Manchester Leisure,Electricity,09-Nov-23,Npower,"£1,538.58"
Manchester City Council,Manchester Leisure,Electricity,09-Nov-23,Npower,£723.20
Manchester City Council,Manchester Leisure,Electricity,09-Nov-23,Npower,£781.65
Manchester City Council,Manchester Leisure,Electricity,09-Nov-23,Npower,£829.78
Manchester City Council,Manchester Leisure,Electricity,09-Nov-23,Npower,£779.67
Manchester City Council,Manchester Leisure,Electricity,09-Nov-23,Npower,£765.35
Manchester City Council,Manchester Leisure,Electricity,09-Nov-23,Npower,£788.26
Manchester City Council,Manchester Leisure,Electricity,09-Nov-23,Npower,"£1,542.06"
Manchester City Council,Manchester Leisure,Electricity,09-Nov-23,Npower,£866.03
Manchester City Council,Manchester Leisure,Electricity,09-Nov-23,Npower,"£1,644.11"
Manchester City Council,Manchester Leisure,Electricity,09-Nov-23,Npower,"£1,683.51"
Manchester City Council,Hospitality + Trading Services,Electricity,09-Nov-23,Npower,"£42,746.31"
Manchester City Council,Hospitality + Trading Services,Vehicle Hire Costs,09-Nov-23,Verizon Connect UK Ltd,"£1,424.50"
Manchester City Council,Regeneration Finance,External repairs and maintenance for buildings,09-Nov-23,P Mcguinness & Co Ltd,£600.00
Manchester City Council,Regeneration Finance,External repairs and maintenance for buildings,09-Nov-23,P Mcguinness & Co Ltd,"£1,375.00"
Manchester City Council,Chief Executives,Legal Fees,09-Nov-23,Warwickshire County Council,"£2,057.70"
Manchester City Council,Chief Executives,Legal Fees,09-Nov-23,Warwickshire County Council,"£1,412.45"
Manchester City Council,Corporate Services,I T Provision,09-Nov-23,Insight Direct (Uk) Ltd,"£4,659.00"
Manchester City Council,Childrens & Education Services,Licences Purchase,09-Nov-23,Insight Direct (Uk) Ltd,£511.17
Manchester City Council,Corporate Services,Telecoms Equip,09-Nov-23,Insight Direct (Uk) Ltd,£658.99
Manchester City Council,Corporate Services,Travel Season TLS,09-Nov-23,Stagecoach Manchester,£670.00
Manchester City Council,Corporate Services,Professional fees,09-Nov-23,Cloud9 Management Limited,"£5,000.00"
Manchester City Council,Childrens & Education Services,Personal needs of client,09-Nov-23,Phonak UK,"£6,830.79"
Manchester City Council,Childrens & Education Services,Personal needs of client,09-Nov-23,Phonak UK,"-£6,830.79"
Manchester City Council,Childrens & Education Services,Personal needs of client,09-Nov-23,Phonak UK,"£6,172.12"
Manchester City Council,Adult Social Care,Bed & Breakfast Acc,09-Nov-23,Redacted Personal Information,"£12,236.00"
Manchester City Council,Housing General Fund,Building Works,09-Nov-23,Hoist & Shower Chair Company,"£2,548.00"
Manchester City Council,Housing General Fund,Building Works,09-Nov-23,Hoist & Shower Chair Company,"£2,625.50"
Manchester City Council,Housing General Fund,Building Works,09-Nov-23,Hoist & Shower Chair Company,"£3,231.50"
Manchester City Council,Adult Social Care,Cleaning Equipment and Materials,09-Nov-23,Alliance Disposables Ltd,£715.00
Manchester City Council,Corporate Services,Cleaning Equipment and Materials,09-Nov-23,Alliance Disposables Ltd,"£1,481.68"
Manchester City Council,Adult Social Care,ClothsUniformLaundry,09-Nov-23,Alliance Disposables Ltd,£550.00
Manchester City Council,Manchester Leisure,External repairs and maintenance for buildings,09-Nov-23,Pro-Kill Environmental Services,"£2,460.00"
Manchester City Council,Corporate Services,Car Parking Permits,09-Nov-23,Taranto Systems Ltd,"£4,000.00"
Manchester City Council,Hospitality + Trading Services,Equipment,09-Nov-23,Stapletons Tyre Services,"£4,089.14"
Manchester City Council,Corporate Services,Window Cleaning,09-Nov-23,Ultra Cleaning Service,"£1,790.00"
Manchester City Council,Chief Executives,Counsel Costs,09-Nov-23,18 St John Street Chambers,"-£1,250.00"
Manchester City Council,Chief Executives,Counsel Costs,09-Nov-23,18 St John Street Chambers,£950.00
Manchester City Council,Corporate Services,Catering,09-Nov-23,The Monastery Manchester Ltd,£966.67
Manchester City Council,Corporate Services,Special Event,09-Nov-23,The Monastery Manchester Ltd,"£2,747.65"
Manchester City Council,Childrens & Education Services,Rates,09-Nov-23,Brighter Beginnings (Newton Heath),"£1,634.38"
Manchester City Council,Housing General Fund,Building Works,09-Nov-23,Southway Housing Trust,"£43,390.47"
Manchester City Council,Childrens & Education Services,Childminding Fee Pay,09-Nov-23,Tiddlywinks Day Nursery,£649.00
Manchester City Council,Childrens & Education Services,Contract Cleaning External,09-Nov-23,Brighter Beginnings Day Nursery,"£2,231.25"
Manchester City Council,Childrens & Education Services,Rates,09-Nov-23,Brighter Beginnings Day Nursery,£875.93
Manchester City Council,Chief Executives,Legal Fees,09-Nov-23,Weightmans LLP Solicitors,£551.00
Manchester City Council,Chief Executives,Legal Fees,09-Nov-23,Weightmans LLP Solicitors,"£2,836.25"
Manchester City Council,Chief Executives,Legal Fees,09-Nov-23,Weightmans LLP Solicitors,"£8,788.50"
Manchester City Council,Chief Executives,Legal Fees,09-Nov-23,Weightmans LLP Solicitors,"£1,286.25"
Manchester City Council,Chief Executives,Legal Fees,09-Nov-23,Weightmans LLP Solicitors,"£1,100.50"
Manchester City Council,Highways Services,Professional fees,09-Nov-23,Wilde Consultants Ltd,"£7,894.02"
Manchester City Council,Corporate Services,Vehicle Costs,09-Nov-23,Cyclescheme Ltd,"£3,223.33"
Manchester City Council,Corporate Services,Vehicle Costs,09-Nov-23,Cyclescheme Ltd,"£7,800.97"
Manchester City Council,Manchester Leisure,Equipment,09-Nov-23,MGB Plastics Limited,"£15,804.00"
Manchester City Council,Manchester Leisure,Equipment,09-Nov-23,MGB Plastics Limited,"£15,804.00"
Manchester City Council,Corporate Services,Licences Purchase,09-Nov-23,Trustmarque Solutions Ltd,"£24,135.94"
Manchester City Council,Regeneration Finance,Hire of Premises,09-Nov-23,Levenshulme Inspire,"£4,872.24"
Manchester City Council,Regeneration Finance,Hire of Premises,09-Nov-23,Levenshulme Inspire,£627.00
Manchester City Council,Adult Social Care,Personal needs of client,09-Nov-23,Care & Independence Ltd,"-£1,560.00"
Manchester City Council,Adult Social Care,Personal needs of client,09-Nov-23,Care & Independence Ltd,"£1,560.00"
Manchester City Council,Housing Revenue Account,Council Dwelling Adaptations,09-Nov-23,"Jackson, Jackson & Sons Ltd","£36,947.14"
Manchester City Council,Adult Social Care,Rents,09-Nov-23,MJ Rental Ltd,"£2,521.98"
Manchester City Council,Regeneration Finance,Third party payments relating to Voluntary Organisations,09-Nov-23,Sow the City,"£3,096.00"
Manchester City Council,Regeneration Finance,Expenditure re Internal Trading Ordered Externally,09-Nov-23,Greater Manchester Chamber of,£575.00
Manchester City Council,Regeneration Finance,Grant Payments,09-Nov-23,Maths Watch Limited,£500.00
Manchester City Council,Adult Social Care,Bed & Breakfast Acc,09-Nov-23,Redacted Personal Information,"£11,625.00"
Manchester City Council,Chief Executives,Grant and subscriptions awarded,09-Nov-23,Manchester Histories,"£6,069.83"
Manchester City Council,Adult Social Care,Furniture,09-Nov-23,Wythenshawe Community Housing Group,£500.00
Manchester City Council,Adult Social Care,Furniture,09-Nov-23,Wythenshawe Community Housing Group,£500.00
Manchester City Council,Manchester Leisure,Responsive Repairs Work,09-Nov-23,EQUANS Regeneration Limited,"£222,702.22"
Manchester City Council,Manchester Leisure,Responsive Repairs Work,09-Nov-23,EQUANS Regeneration Limited,"£552,170.14"
Manchester City Council,Manchester Leisure,Responsive Repairs Work,09-Nov-23,EQUANS Regeneration Limited,"-£222,702.22"
Manchester City Council,Manchester Leisure,Responsive Repairs Work,09-Nov-23,EQUANS Regeneration Limited,"-£552,170.14"
Manchester City Council,Manchester Leisure,Refuse Collection,09-Nov-23,Biffa Municipal Limited,"£5,400.00"
Manchester City Council,Manchester Leisure,Works and associated costs for Land and Buildings,09-Nov-23,One Green World,"£4,250.00"
Manchester City Council,Regeneration Finance,Travel,09-Nov-23,Legacy 90.1,£870.00
Manchester City Council,Chief Executives,Payments to Sub-Contractors,09-Nov-23,Redacted Personal Information,£676.50
Manchester City Council,Chief Executives,Payments to Sub-Contractors,09-Nov-23,Redacted Personal Information,£686.85
Manchester City Council,Adult Social Care,Rents,09-Nov-23,Eeven Homes Ltd.,"£17,436.00"
Manchester City Council,Chief Executives,Professional fees,09-Nov-23,Target Psychology Ltd,£514.28
Manchester City Council,Chief Executives,Printing,09-Nov-23,Mortons Media Group Ltd,"£7,329.00"
Manchester City Council,Regeneration Finance,I T Provision,09-Nov-23,NSEP CIC,"£7,622.00"
Manchester City Council,Adult Social Care,Equipment,09-Nov-23,Direct Healthcare Group Ltd,"£6,000.00"
Manchester City Council,Chief Executives,Advertising,09-Nov-23,Fonemedia Limited,"£2,000.00"
Manchester City Council,Chief Executives,Legal Fees,09-Nov-23,Central Chambers,£750.00
Manchester City Council,Chief Executives,Counsel Costs,09-Nov-23,Central Chambers,£500.00
Manchester City Council,Regeneration Finance,I T Provision,09-Nov-23,Vitalize Consultancy,"£6,325.00"
Manchester City Council,Corporate Services,Heating Oil,09-Nov-23,Standard Fuels Oils,"£16,119.74"
Manchester City Council,Childrens & Education Services,Third party payments to other Local Authorities,09-Nov-23,Carrington Riding Centre,"£196,666.64"
Manchester City Council,Chief Executives,Legal Fees,09-Nov-23,Waddington & Son Solicitors,"£1,037.50"
Manchester City Council,Chief Executives,Legal Fees,09-Nov-23,Waddington & Son Solicitors,"£3,647.92"
Manchester City Council,Chief Executives,Legal Fees,09-Nov-23,Waddington & Son Solicitors,"£1,641.24"
Manchester City Council,Corporate Services,WPS Awards,09-Nov-23,Furniture Resource Centre Ltd,"£1,467.60"
Manchester City Council,Corporate Services,WPS Awards,09-Nov-23,Furniture Resource Centre Ltd,"£1,041.01"
Manchester City Council,Manchester Leisure,Grant and subscriptions awarded,09-Nov-23,Keem Youth Shout Out (KYSO),"£1,455.00"
Manchester City Council,Adult Social Care,Payments for services,09-Nov-23,Morelife (UK) Ltd,"£1,184.04"
Manchester City Council,Childrens Services,Works and associated costs for Land and Buildings,09-Nov-23,R Development Ltd,"£49,644.71"
Manchester City Council,Adult Social Care,Bed & Breakfast Acc,09-Nov-23,Medlock House Ltd,"£7,840.00"
Manchester City Council,Adult Social Care,Bed & Breakfast Acc,09-Nov-23,Medlock House Ltd,"£7,399.00"
Manchester City Council,Highways Services,Professional fees,09-Nov-23,Pell Frischmann Consultants Ltd,"-£1,897.50"
Manchester City Council,Highways Services,Professional fees,09-Nov-23,Pell Frischmann Consultants Ltd,"£6,630.00"
Manchester City Council,Adult Social Care,Rents,09-Nov-23,Houses4Homes 4U Ltd,"£9,026.00"
Manchester City Council,Corporate Services,Agency staff provision,09-Nov-23,The Oyster Partnership Limited,"£2,497.50"
Manchester City Council,Childrens & Education Services,Third party payments to other Local Authorities,09-Nov-23,Pinc College NW,"£42,806.57"
Manchester City Council,Corporate Services,Training and Development,09-Nov-23,Ginger Dog.Com,"£1,050.00"
Manchester City Council,Adult Social Care,Third party payments relating to Voluntary Organisations,09-Nov-23,Shared Habitat Limited,£510.00
Manchester City Council,Childrens & Education Services,Professional fees,09-Nov-23,Liam Trippier School Improvement,£950.00
Manchester City Council,Childrens & Education Services,Professional fees,09-Nov-23,Pennine School Improvement Ltd,"£1,425.00"
Manchester City Council,Childrens & Education Services,Professional fees,09-Nov-23,Term2term Ltd,£950.00
Manchester City Council,Childrens & Education Services,Training and Development,09-Nov-23,Term2term Ltd,"£1,425.00"
Manchester City Council,Chief Executives,Counsel Costs,09-Nov-23,DEANS COURT CHAMBERS,£750.00
Manchester City Council,Manchester Leisure,Grant and subscriptions awarded,09-Nov-23,Lee Court Social Club,"£2,000.00"
Manchester City Council,Chief Executives,Printing,09-Nov-23,The Purple Company (UK) Ltd,"£1,050.00"
Manchester City Council,Chief Executives,Printing,09-Nov-23,The Purple Company (UK) Ltd,£800.00
Manchester City Council,Childrens & Education Services,Carer Support Payments ,09-Nov-23,Care Solutions Recruitment,"£5,334.75"
Manchester City Council,Childrens & Education Services,Third party payments to other Local Authorities,09-Nov-23,Dragon Occupational Therapy Ltd,"£1,500.00"
Manchester City Council,Manchester Leisure,Building Materials for direct delivery,09-Nov-23,My Sports Turf,"£7,500.00"
Manchester City Council,Chief Executives,Works and associated costs for Land and Buildings,09-Nov-23,Barclays Eagle Labs,"£9,888.00"
Manchester City Council,Manchester Leisure,Professional fees,09-Nov-23,Ruche Marketing,"£1,250.00"
Manchester City Council,Manchester Leisure,Special Event,09-Nov-23,The Zebra Partnership,"£1,500.00"
Manchester City Council,Manchester Leisure,Special Event,09-Nov-23,The Zebra Partnership,"£1,000.00"
Manchester City Council,Manchester Leisure,Professional fees,09-Nov-23,AV Resilience Ltd,£612.80
Manchester City Council,Childrens & Education Services,Professional fees,09-Nov-23,Beate Wagner Associates Ltd,"£1,800.00"
Manchester City Council,Chief Executives,Works and associated costs for Land and Buildings,09-Nov-23,Allied London Campfield,"£308,650.56"
Manchester City Council,Adult Social Care,Rents,09-Nov-23,VSPG Housing Ltd,"£46,853.00"
Manchester City Council,Manchester Leisure,Grant and subscriptions awarded,09-Nov-23,Age Friendly Wythenshawe,"£1,000.00"
Manchester City Council,Manchester Leisure,Grant and subscriptions awarded,09-Nov-23,Age Friendly Wythenshawe,"£1,000.00"
Manchester City Council,Childrens & Education Services,Third party payments to other Local Authorities,09-Nov-23,Safe Start School Ltd,"£18,999.99"
Manchester City Council,Manchester Leisure,Professional fees,09-Nov-23,Royal Society of Arts (RSA),"£20,000.00"
Manchester City Council,Hospitality + Trading Services,Funeral and coroner related services,09-Nov-23,LEEC Limited,"£9,895.00"
Manchester City Council,Adult Social Care,Rents,09-Nov-23,The Whiteluck Group,"£28,010.00"
Manchester City Council,Regeneration Finance,Professional fees,09-Nov-23,JV Associates Ltd,£500.00
Manchester City Council,Chief Executives,Grant Payments,09-Nov-23,HALO Psychology Ltd,£600.00
Manchester City Council,Manchester Leisure,"Consumable items eg Toilet rolls, soap etc",09-Nov-23,SPEEDY ASSET SERVICES LTD,"£1,500.00"
Manchester City Council,Manchester Leisure,"Consumable items eg Toilet rolls, soap etc",09-Nov-23,THE CONSCIOUS FAIRE,"£2,460.30"
Manchester City Council,Manchester Leisure,"Consumable items eg Toilet rolls, soap etc",09-Nov-23,WILLARDCONSERVATIONLTD,"£3,060.00"
Manchester City Council,Corporate Services,Professional fees,09-Nov-23,Laura Serrant Ltd,"£1,579.20"
Manchester City Council,Corporate Services,Professional fees,09-Nov-23,Richie & Nickie Ltd,£900.00
Manchester City Council,Corporate Services,Transport Taxis,09-Nov-23,STREET CARS MANCHESTER LT,"£18,086.90"
Manchester City Council,Manchester Leisure,Works and associated costs for Land and Buildings,09-Nov-23,BLOOLOOP LTD,"£3,500.00"
Manchester City Council,Corporate Services,Electricity,09-Nov-23,Manchester Heat Network SupplyCo Lt,"£97,249.05"
Manchester City Council,Adult Social Care,Rents,09-Nov-23,Kramer & Company,"£1,350.00"
Manchester City Council,Adult Social Care,Rents,09-Nov-23,MJ Rental Ltd,"£4,800.00"
Manchester City Council,Adult Social Care,Rents,09-Nov-23,MJ Rental Ltd,"£1,430.94"
Manchester City Council,Adult Social Care,Rents,09-Nov-23,Primegold Properties Limited,£900.00
Manchester City Council,Manchester Leisure,Furniture,09-Nov-23,RED INDUSTRIES (BROWNHILL,"£2,164.03"
Manchester City Council,Childrens & Education Services,Legal Fees,09-Nov-23,NW Sexual Abuse Consultancy,"-£3,200.00"
Manchester City Council,Manchester Leisure,Special Event,09-Nov-23,INTERNATIONAL SPORTS BROADCASTING C,"£35,179.01"
Manchester City Council,Regeneration Finance,Grant and subscriptions awarded,10-Nov-23,Redacted personal info,"£2,500.00"
Manchester City Council,Regeneration Finance,Grant and subscriptions awarded,10-Nov-23,Redacted personal info,"£2,500.00"
Manchester City Council,Regeneration Finance,Grant and subscriptions awarded,10-Nov-23,Redacted personal info,"£2,500.00"
Manchester City Council,Manchester Leisure,Professional fees,10-Nov-23,Redacted personal info,£500.00
Manchester City Council,Manchester Leisure,Responsive Repairs Work,10-Nov-23,Redacted personal info,"£6,000.00"
Manchester City Council,Adult Social Care,Rents,10-Nov-23,Redacted personal info,"£4,900.00"
Manchester City Council,Manchester Leisure,Equipment,10-Nov-23,Redacted personal info,"£1,740.00"
Manchester City Council,Adult Social Care,Furniture,10-Nov-23,Redacted personal info,"£4,050.00"
Manchester City Council,Corporate Services,I T Provision,10-Nov-23,Iron Mountain,£539.36
Manchester City Council,Corporate Services,I T Provision,10-Nov-23,Iron Mountain,£511.89
Manchester City Council,Corporate Services,Cash Collection,10-Nov-23,NSL Ltd,"£5,180.42"
Manchester City Council,Highways Services,Payments to Sub-Contractors,10-Nov-23,Townscape Ltd,"£11,530.00"
Manchester City Council,Highways Services,Building Materials for direct delivery,10-Nov-23,Marshalls Mono Ltd,"£1,500.00"
Manchester City Council,Highways Services,Purchase of stores for re-distribution,10-Nov-23,Marshalls Mono Ltd,"£3,170.48"
Manchester City Council,Highways Services,Purchase of stores for re-distribution,10-Nov-23,Marshalls Mono Ltd,"£1,940.00"
Manchester City Council,Corporate Services,Licences Purchase,10-Nov-23,Trojan Consultants Ltd (CASPAR),"£19,947.00"
Manchester City Council,Manchester Leisure,Refuse Collection,10-Nov-23,GTS Steam Cleaners,£646.34
Manchester City Council,Environment and Operations,Construction Works,10-Nov-23,Bethell Construction Ltd,"£40,228.11"
Manchester City Council,Environment and Operations,Construction Works,10-Nov-23,Bethell Construction Ltd,"£72,426.14"
Manchester City Council,Environment and Operations,Construction Works,10-Nov-23,Bethell Construction Ltd,"£5,010.96"
Manchester City Council,Environment and Operations,Construction Works,10-Nov-23,Bethell Construction Ltd,"£164,855.34"
Manchester City Council,Highways Services,Payments to Sub-Contractors,10-Nov-23,Utilities Design & Planning Ltd,£807.71
Manchester City Council,Highways Services,Payments to Sub-Contractors,10-Nov-23,Utilities Design & Planning Ltd,"£2,000.00"
Manchester City Council,Highways Services,Grounds Maintenance,10-Nov-23,Utilities Design & Planning Ltd,£570.93
Manchester City Council,Highways Services,Grounds Maintenance,10-Nov-23,Utilities Design & Planning Ltd,£877.50
Manchester City Council,Corporate Services,Professional fees,10-Nov-23,Mace Ltd,"£7,439.00"
Manchester City Council,Corporate Services,Professional fees,10-Nov-23,Mace Ltd,"£5,552.43"
Manchester City Council,Manchester Leisure,External repairs and maintenance for buildings,10-Nov-23,Dickinson Environmental,£727.00
Manchester City Council,Regeneration Finance,Removal and Storage of Furniture,10-Nov-23,Master Moves Ltd,"£1,202.16"
Manchester City Council,Regeneration Finance,Removal and Storage of Furniture,10-Nov-23,Master Moves Ltd,£989.32
Manchester City Council,Corporate Services,Licences Purchase,10-Nov-23,GBM Digital Technologies Ltd,"£4,464.00"
Manchester City Council,Housing Revenue Account,Council Dwelling Adaptations,10-Nov-23,Rexel UK Ltd,"£38,109.28"
Manchester City Council,Environment and Operations,Construction Works,10-Nov-23,Dowhigh Ltd,"£18,962.21"
Manchester City Council,Environment and Operations,Construction Works,10-Nov-23,Dowhigh Ltd,"-£18,962.21"
Manchester City Council,Environment and Operations,Construction Works,10-Nov-23,Dowhigh Ltd,"£18,962.21"
Manchester City Council,Environment and Operations,Construction Works,10-Nov-23,J.Hopkins (Contractors) Ltd.,"£22,250.00"
Manchester City Council,Environment and Operations,Construction Works,10-Nov-23,J.Hopkins (Contractors) Ltd.,"£8,007.03"
Manchester City Council,Environment and Operations,Construction Works,10-Nov-23,J.Hopkins (Contractors) Ltd.,"£14,550.00"
Manchester City Council,Environment and Operations,Construction Works,10-Nov-23,J.Hopkins (Contractors) Ltd.,"£9,500.00"
Manchester City Council,Environment and Operations,Construction Works,10-Nov-23,J.Hopkins (Contractors) Ltd.,"£4,257.90"
Manchester City Council,Environment and Operations,Construction Works,10-Nov-23,J.Hopkins (Contractors) Ltd.,"£8,700.00"
Manchester City Council,Environment and Operations,Construction Works,10-Nov-23,J.Hopkins (Contractors) Ltd.,"£3,376.14"
Manchester City Council,Environment and Operations,Construction Works,10-Nov-23,J.Hopkins (Contractors) Ltd.,"£12,650.00"
Manchester City Council,Environment and Operations,Construction Works,10-Nov-23,J.Hopkins (Contractors) Ltd.,"£6,260.41"
Manchester City Council,Environment and Operations,Construction Works,10-Nov-23,J.Hopkins (Contractors) Ltd.,"£26,900.00"
Manchester City Council,Environment and Operations,Construction Works,10-Nov-23,J.Hopkins (Contractors) Ltd.,"£51,650.00"
Manchester City Council,Environment and Operations,Construction Works,10-Nov-23,J.Hopkins (Contractors) Ltd.,"£57,700.88"
Manchester City Council,Environment and Operations,Construction Works,10-Nov-23,J.Hopkins (Contractors) Ltd.,"£29,044.41"
Manchester City Council,Environment and Operations,Construction Works,10-Nov-23,J.Hopkins (Contractors) Ltd.,"£14,550.00"
Manchester City Council,Environment and Operations,Construction Works,10-Nov-23,J.Hopkins (Contractors) Ltd.,"£24,542.08"
Manchester City Council,Environment and Operations,Construction Works,10-Nov-23,J.Hopkins (Contractors) Ltd.,"£14,550.00"
Manchester City Council,Environment and Operations,Construction Works,10-Nov-23,J.Hopkins (Contractors) Ltd.,"£25,900.00"
Manchester City Council,Environment and Operations,Construction Works,10-Nov-23,J.Hopkins (Contractors) Ltd.,"£2,887.87"
Manchester City Council,Environment and Operations,Construction Works,10-Nov-23,J.Hopkins (Contractors) Ltd.,"£26,850.00"
Manchester City Council,Environment and Operations,Construction Works,10-Nov-23,J.Hopkins (Contractors) Ltd.,"£31,364.91"
Manchester City Council,Environment and Operations,Construction Works,10-Nov-23,J.Hopkins (Contractors) Ltd.,"£44,091.89"
Manchester City Council,Environment and Operations,Construction Works,10-Nov-23,J.Hopkins (Contractors) Ltd.,"£1,662.00"
Manchester City Council,Childrens & Education Services,Transport Coach Hire,10-Nov-23,Redacted Personal Information,"£2,805.68"
Manchester City Council,Adult Social Care,Supporting People Payments,10-Nov-23,Creative Support Ltd,"£154,898.12"
Manchester City Council,Adult Social Care,Personal needs of client,10-Nov-23,Neater Solutions Ltd,"£6,778.00"
Manchester City Council,Regeneration Finance,Grant and subscriptions awarded,10-Nov-23,Salford City Council,"£15,000.00"
Manchester City Council,Corporate Services,External repairs and maintenance for buildings,10-Nov-23,Electricity North West Limited,"£2,095.48"
Manchester City Council,Regeneration Finance,Grant Payments,10-Nov-23,Back On Track,£791.99
Manchester City Council,Corporate Services,Legal Fees,10-Nov-23,HMCTS (Manchester),"£1,707.50"
Manchester City Council,Manchester Leisure,Works and associated costs for Land and Buildings,10-Nov-23,Lanes Landscapes Ltd,£845.64
Manchester City Council,Corporate Services,I T Provision,10-Nov-23,Insight Direct (Uk) Ltd,"£10,944.00"
Manchester City Council,Childrens & Education Services,Furniture,10-Nov-23,Bennett Workplace Solutions Ltd,£550.00
Manchester City Council,Corporate Services,Travel Season TLS,10-Nov-23,Stagecoach Manchester,£670.00
Manchester City Council,Manchester Leisure,Grant and subscriptions awarded,10-Nov-23,REEL mcr,"£2,000.00"
Manchester City Council,Regeneration Finance,Grant Payments,10-Nov-23,Objective Corporation UK Ltd,"£9,616.18"
Manchester City Council,Adult Social Care,Equipment,10-Nov-23,Drive Devilbiss Healthcare Ltd,"£4,486.50"
Manchester City Council,Adult Social Care,Equipment,10-Nov-23,Drive Devilbiss Healthcare Ltd,"£4,486.50"
Manchester City Council,Manchester Leisure,Professional fees,10-Nov-23,Sensormatic Solutions,£837.31
Manchester City Council,Adult Social Care,Professional fees,10-Nov-23,North West Media Ltd,"£3,000.00"
Manchester City Council,Highways Services,Payments to Sub-Contractors,10-Nov-23,Northern Marking Limited,"£5,635.54"
Manchester City Council,Highways Services,Payments to Sub-Contractors,10-Nov-23,Northern Marking Limited,"£1,586.29"
Manchester City Council,Highways Services,Payments to Sub-Contractors,10-Nov-23,Northern Marking Limited,£566.10
Manchester City Council,Highways Services,Payments to Sub-Contractors,10-Nov-23,Northern Marking Limited,"£1,172.60"
Manchester City Council,Highways Services,Payments to Sub-Contractors,10-Nov-23,Northern Marking Limited,"£3,404.94"
Manchester City Council,Corporate Services,Works and associated costs for Land and Buildings,10-Nov-23,Turner & Townsend Project,"£11,620.00"
Manchester City Council,Adult Social Care,Equipment,10-Nov-23,Aidapt Bathrooms Ltd,"£1,140.00"
Manchester City Council,Adult Social Care,Equipment,10-Nov-23,Aidapt Bathrooms Ltd,£900.00
Manchester City Council,Regeneration Finance,Professional fees,10-Nov-23,AA Projects Ltd,"£1,380.00"
Manchester City Council,Regeneration Finance,Professional fees,10-Nov-23,AA Projects Ltd,"£2,940.00"
Manchester City Council,Corporate Services,Works and associated costs for Land and Buildings,10-Nov-23,Rider Levett Bucknall UK Ltd,"£16,940.00"
Manchester City Council,Adult Social Care,Grant Payments,10-Nov-23,Care Quality Commission,"£7,311.00"
Manchester City Council,Chief Executives,Storage Costs,10-Nov-23,Oasis UK formerly Box-It (NW),£728.82
Manchester City Council,Adult Social Care,Catering Provisions,10-Nov-23,TC Meats Ltd,£881.41
Manchester City Council,Adult Social Care,Catering Provisions,10-Nov-23,TC Meats Ltd,"£1,010.83"
Manchester City Council,Adult Social Care,Bed & Breakfast Acc,10-Nov-23,Redacted Personal Information,"£8,325.00"
Manchester City Council,Housing Revenue Account,Vehicle Plant Furniture and Equipment,10-Nov-23,CDW Limited,"£1,538.46"
Manchester City Council,Manchester Leisure,Grant and subscriptions awarded,10-Nov-23,One Manchester Limited,"£3,747.50"
Manchester City Council,Regeneration Finance,Subvention Payments,10-Nov-23,Manchester Creative Digital Assets,"£250,648.00"
Manchester City Council,Regeneration Finance,Subvention Payments,10-Nov-23,Manchester Creative Digital Assets,"£22,457.00"
Manchester City Council,Regeneration Finance,Subvention Payments,10-Nov-23,Manchester Creative Digital Assets,"£210,243.00"
Manchester City Council,Regeneration Finance,Subvention Payments,10-Nov-23,Manchester Creative Digital Assets,"£51,631.00"
Manchester City Council,Regeneration Finance,Subvention Payments,10-Nov-23,Manchester Creative Digital Assets,"£222,518.00"
Manchester City Council,Chief Executives,Payments to Sub-Contractors,10-Nov-23,Redacted Personal Information,£654.90
Manchester City Council,Chief Executives,I T Provision,10-Nov-23,The Networking People (TNP) Ltd,"£1,817.81"
Manchester City Council,Manchester Leisure,Payments for services,10-Nov-23,Redacted Personal Information,"£1,200.00"
Manchester City Council,Adult Social Care,Funeral and coroner related services,10-Nov-23,Greater Manchester Funeral Service,"£2,892.00"
Manchester City Council,Childrens & Education Services,Transport Coach Hire,10-Nov-23,Sumi Travel Ltd.,"£15,385.00"
Manchester City Council,Regeneration Finance,Removal and Storage of Furniture,10-Nov-23,Restore PLC,£657.34
Manchester City Council,Environment and Operations,Construction Works,10-Nov-23,IWJS Ltd,"£3,690.00"
Manchester City Council,Adult Social Care,Payments for services,10-Nov-23,Kaleidoscope Project,"£9,520.00"
Manchester City Council,Chief Executives,Advertising,10-Nov-23,MA Education Limited,"£1,590.00"
Manchester City Council,Adult Social Care,Equipment,10-Nov-23,Direct Healthcare Group Ltd,"£9,000.00"
Manchester City Council,Chief Executives,ICT Sup & Maintnance,10-Nov-23,Elected Technologies,"£12,320.00"
Manchester City Council,Childrens & Education Services,Payments for services,10-Nov-23,Prospero Teaching,£500.00
Manchester City Council,Childrens & Education Services,Payments for services,10-Nov-23,Prospero Teaching,£500.00
Manchester City Council,Childrens & Education Services,Payments for services,10-Nov-23,Prospero Teaching,£500.00
Manchester City Council,Childrens & Education Services,Payments for services,10-Nov-23,Prospero Teaching,£500.00
Manchester City Council,Childrens & Education Services,Payments for services,10-Nov-23,Prospero Teaching,£500.00
Manchester City Council,Childrens & Education Services,Payments for services,10-Nov-23,Prospero Teaching,£500.00
Manchester City Council,Childrens & Education Services,Payments for services,10-Nov-23,Prospero Teaching,£500.00
Manchester City Council,Childrens & Education Services,Payments for services,10-Nov-23,Prospero Teaching,£500.00
Manchester City Council,Childrens & Education Services,Payments for services,10-Nov-23,Prospero Teaching,£500.00
Manchester City Council,Childrens & Education Services,Professional fees,10-Nov-23,Prospero Teaching,£500.00
Manchester City Council,Childrens & Education Services,Professional fees,10-Nov-23,Prospero Teaching,£500.00
Manchester City Council,Hospitality + Trading Services,Vehicle Fuel Costs,10-Nov-23,Standard Fuels Oils,"£1,280.06"
Manchester City Council,Hospitality + Trading Services,Vehicle Fuel Costs,10-Nov-23,Standard Fuels Oils,"£1,277.50"
Manchester City Council,Chief Executives,Legal Fees,10-Nov-23,Waddington & Son Solicitors,"£2,218.75"
Manchester City Council,Chief Executives,Legal Fees,10-Nov-23,Waddington & Son Solicitors,"£2,215.00"
Manchester City Council,Chief Executives,Legal Fees,10-Nov-23,Waddington & Son Solicitors,"£1,535.75"
Manchester City Council,Chief Executives,Legal Fees,10-Nov-23,Waddington & Son Solicitors,"£1,981.25"
Manchester City Council,Chief Executives,Legal Fees,10-Nov-23,Waddington & Son Solicitors,"£2,025.00"
Manchester City Council,Chief Executives,Legal Fees,10-Nov-23,Waddington & Son Solicitors,"£1,950.00"
Manchester City Council,Corporate Services,WPS Awards,10-Nov-23,Furniture Resource Centre Ltd,£887.06
Manchester City Council,Adult Social Care,Third party payments to Health Authority,10-Nov-23,Europia,"£3,312.00"
Manchester City Council,Childrens & Education Services,Transport Coach Hire,10-Nov-23,Home to School Travel Ltd,"£6,527.00"
Manchester City Council,Childrens & Education Services,Transport Coach Hire,10-Nov-23,MCR Elite Taxis Ltd,"£6,450.00"
Manchester City Council,Adult Social Care,Grant Payments,10-Nov-23,Symetri,"£6,290.00"
Manchester City Council,Corporate Services,Grant Payments,10-Nov-23,Symetri,"£1,110.00"
Manchester City Council,Corporate Services,Grant Payments,10-Nov-23,Symetri,"£3,450.00"
Manchester City Council,Adult Social Care,Security,10-Nov-23,UNIQUE SPECIALIST SERVICES,"£1,404.00"
Manchester City Council,Adult Social Care,Security,10-Nov-23,UNIQUE SPECIALIST SERVICES,"£1,134.00"
Manchester City Council,Manchester Leisure,Equipment,10-Nov-23,Wex Photographic,"£3,192.46"
Manchester City Council,Chief Executives,Payments to Sub-Contractors,10-Nov-23,Redacted Personal Information,"£2,165.18"
Manchester City Council,Corporate Services,Professional fees,10-Nov-23,NE1 Procurement Services Limited,"£5,641.03"
Manchester City Council,Adult Social Care,Rents,10-Nov-23,M&D Residential Ltd,"£15,818.00"
Manchester City Council,Adult Social Care,Rents,10-Nov-23,M&D Residential Ltd,"£16,734.95"
Manchester City Council,Housing Revenue Account,Works and associated costs for Land and Buildings,10-Nov-23,Northern Gateway (FEC) No.10 Limite,"£8,729.14"
Manchester City Council,Housing Revenue Account,Works and associated costs for Land and Buildings,10-Nov-23,Northern Gateway (FEC) No.10 Limite,"£436,457.00"
Manchester City Council,Chief Executives,Payments to Sub-Contractors,10-Nov-23,Redacted Personal Information,£690.00
Manchester City Council,Chief Executives,Payments to Sub-Contractors,10-Nov-23,Redacted Personal Information,£690.00
Manchester City Council,Childrens & Education Services,Grant Payments,10-Nov-23,Paypoint,"£9,751.79"
Manchester City Council,Corporate Services,Gas,10-Nov-23,M\cr Heat Network Supply Co Ltd,"£16,945.60"
Manchester City Council,Corporate Services,Electricity,10-Nov-23,M\cr Heat Network Supply Co Ltd,"£97,249.05"
Manchester City Council,Childrens & Education Services,Ind Budget Payment,10-Nov-23,Harrison McCarthy,"£2,660.00"
Manchester City Council,Chief Executives,Payments to Sub-Contractors,10-Nov-23,Redacted Personal Information,£789.20
Manchester City Council,Adult Social Care,Furniture,10-Nov-23,Rtech Group Limited,"£5,524.99"
Manchester City Council,Manchester Leisure,Professional fees,10-Nov-23,Topscan (UK) Limited,"£3,461.00"
Manchester City Council,Highways Services,Payments to Sub-Contractors,10-Nov-23,CW Studio,"£2,000.00"
Manchester City Council,Highways Services,Professional fees,10-Nov-23,BWB Consulting Ltd,"£6,380.00"
Manchester City Council,Adult Social Care,Rents,10-Nov-23,Intra City Investments,"£1,160.00"
Manchester City Council,Corporate Services,Transport Taxis,10-Nov-23,STREET CARS MANCHESTER LT,"£5,000.00"
Manchester City Council,Corporate Services,Transport Taxis,10-Nov-23,STREET CARS MANCHESTER LT,"£10,000.00"
Manchester City Council,Corporate Services,Transport Taxis,10-Nov-23,STREET CARS MANCHESTER LT,"£6,719.40"
Manchester City Council,Corporate Services,Transport Taxis,10-Nov-23,STREET CARS MANCHESTER LT,"£5,000.00"
Manchester City Council,Corporate Services,Gas,10-Nov-23,Manchester Heat Network SupplyCo Lt,"£16,945.60"
Manchester City Council,Corporate Services,Gas,10-Nov-23,Manchester Heat Network SupplyCo Lt,"£12,185.04"
Manchester City Council,Childrens & Education Services,Rents,10-Nov-23,B&A PROPERTIES (LYELL) LTD,"£1,790.00"
Manchester City Council,Chief Executives,Counsel Costs,13-Nov-23,Redacted personal info,"£9,937.50"
Manchester City Council,Manchester Leisure,Management Fee Inc,13-Nov-23,Redacted personal info,£542.50
Manchester City Council,Chief Executives,Postage,13-Nov-23,Royal Mail Group Plc,"£37,508.25"
Manchester City Council,Adult Social Care,Third party payments relating to Voluntary Organisations,13-Nov-23,Nacro,"£117,306.00"
Manchester City Council,Manchester Leisure,Removal and Storage of Furniture,13-Nov-23,BCL,£883.82
Manchester City Council,Corporate Services,Removal and Storage of Furniture,13-Nov-23,BCL,£524.20
Manchester City Council,Hospitality + Trading Services,Vehicle Hire Costs,13-Nov-23,F.R.Sharrock Ltd,£638.00
Manchester City Council,Regeneration Finance,Removal and Storage of Furniture,13-Nov-23,M&G Transport & Technical Services,"£4,629.00"
Manchester City Council,Manchester Leisure,ICT Hardware,13-Nov-23,BT PLC,"£3,602.03"
Manchester City Council,Childrens & Education Services,Transport Coach Hire,13-Nov-23,Street Cars,"£47,224.80"
Manchester City Council,Childrens & Education Services,Transport Coach Hire,13-Nov-23,Street Cars,"-£47,224.80"
Manchester City Council,Childrens & Education Services,Transport Coach Hire,13-Nov-23,Street Cars,"£39,354.00"
Manchester City Council,Childrens & Education Services,Transport Coach Hire,13-Nov-23,Street Cars,"£4,166.67"
Manchester City Council,Childrens & Education Services,Transport Coach Hire,13-Nov-23,Street Cars,"£2,433.00"
Manchester City Council,Childrens & Education Services,Transport Coach Hire,13-Nov-23,Street Cars,"£16,666.67"
Manchester City Council,Childrens & Education Services,Transport Coach Hire,13-Nov-23,Street Cars,"£4,166.67"
Manchester City Council,Corporate Services,Gas,13-Nov-23,Calor Gas Ltd,£793.50
Manchester City Council,Hospitality + Trading Services,Hire of Machinery,13-Nov-23,R & M Developments Ltd,"£1,073.50"
Manchester City Council,Hospitality + Trading Services,Security,13-Nov-23,Showsec International Ltd,"£60,544.22"
Manchester City Council,Hospitality + Trading Services,Security,13-Nov-23,Showsec International Ltd,"£10,544.40"
Manchester City Council,Highways Services,Professional fees,13-Nov-23,Mace Ltd,"£10,636.20"
Manchester City Council,Highways Services,Professional fees,13-Nov-23,Mace Ltd,"£10,636.20"
Manchester City Council,Highways Services,Professional fees,13-Nov-23,Mace Ltd,"£6,360.98"
Manchester City Council,Highways Services,Professional fees,13-Nov-23,Mace Ltd,"£7,510.50"
Manchester City Council,Highways Services,Professional fees,13-Nov-23,Mace Ltd,"£5,451.75"
Manchester City Council,Chief Executives,Legal Fees,13-Nov-23,Kings Chambers,£500.00
Manchester City Council,Corporate Services,Fees,13-Nov-23,Jacobs,"£3,686.35"
Manchester City Council,Corporate Services,Fees,13-Nov-23,Jacobs,"-£3,686.35"
Manchester City Council,Adult Social Care,Third party payments relating to Voluntary Organisations,13-Nov-23,Riverside ECHG,"£4,812.00"
Manchester City Council,Childrens & Education Services,Transport Coach Hire,13-Nov-23,M Travel,"£73,757.00"
Manchester City Council,Manchester Leisure,Equipment,13-Nov-23,Groundwork Landscapes Ltd,"£1,050.00"
Manchester City Council,Environment and Operations,Construction Works,13-Nov-23,J.Hopkins (Contractors) Ltd.,"£4,334.00"
Manchester City Council,Environment and Operations,Construction Works,13-Nov-23,J.Hopkins (Contractors) Ltd.,"£54,756.99"
Manchester City Council,Environment and Operations,Construction Works,13-Nov-23,J.Hopkins (Contractors) Ltd.,"£55,693.51"
Manchester City Council,Environment and Operations,Construction Works,13-Nov-23,J.Hopkins (Contractors) Ltd.,"£26,011.85"
Manchester City Council,Environment and Operations,Construction Works,13-Nov-23,J.Hopkins (Contractors) Ltd.,"£31,787.75"
Manchester City Council,Environment and Operations,Construction Works,13-Nov-23,J.Hopkins (Contractors) Ltd.,"£53,329.64"
Manchester City Council,Environment and Operations,Construction Works,13-Nov-23,J.Hopkins (Contractors) Ltd.,"£49,150.53"
Manchester City Council,Environment and Operations,Construction Works,13-Nov-23,J.Hopkins (Contractors) Ltd.,"£62,039.39"
Manchester City Council,Environment and Operations,Construction Works,13-Nov-23,J.Hopkins (Contractors) Ltd.,"£35,216.76"
Manchester City Council,Chief Executives,Counsel Costs,13-Nov-23,Redacted Personal Information,"£1,687.50"
Manchester City Council,Manchester Leisure,Payments to Sub-Contractors,13-Nov-23,Arboricultural Services Treework,"£4,940.00"
Manchester City Council,Manchester Leisure,I T Provision,13-Nov-23,Civica UK Ltd,£708.75
Manchester City Council,Manchester Leisure,I T Provision,13-Nov-23,Civica UK Ltd,£882.48
Manchester City Council,Manchester Leisure,Compensation Payments,13-Nov-23,Antony Hodari Holding Ltd,"£2,900.00"
Manchester City Council,Adult Social Care,"Consumable items eg Toilet rolls, soap etc",13-Nov-23,All 4 Pets Limited,£960.00
Manchester City Council,Adult Social Care,"Consumable items eg Toilet rolls, soap etc",13-Nov-23,All 4 Pets Limited,-£960.00
Manchester City Council,Adult Social Care,"Consumable items eg Toilet rolls, soap etc",13-Nov-23,All 4 Pets Limited,£960.00
Manchester City Council,Housing General Fund,Building Works,13-Nov-23,Stannah Lift Services Ltd,£684.01
Manchester City Council,Manchester Leisure,Equipment,13-Nov-23,Countryscape,"£2,286.00"
Manchester City Council,Adult Social Care,Third party payments relating to Voluntary Organisations,13-Nov-23,Independent Choices Gtr Manchester,"£4,390.00"
Manchester City Council,Manchester Leisure,Grant and subscriptions awarded,13-Nov-23,4CT Limited,£950.00
Manchester City Council,Adult Social Care,Payments for services,13-Nov-23,Brook,"£44,851.65"
Manchester City Council,Manchester Leisure,Refuse Collection,13-Nov-23,Redgate Holdings Ltd,"£5,922.06"
Manchester City Council,Highways Services,Professional fees,13-Nov-23,A T G Access Ltd,"£1,432.74"
Manchester City Council,Adult Social Care,Rents,13-Nov-23,Amco Management,"£41,630.51"
Manchester City Council,Manchester Leisure,Grant and subscriptions awarded,13-Nov-23,University Of Manchester,"£276,765.00"
Manchester City Council,Highways Services,Payments to Sub-Contractors,13-Nov-23,Rosgal Ltd,"£5,332.41"
Manchester City Council,Chief Executives,Land Registry fees,13-Nov-23,The Coal Authority,£908.66
Manchester City Council,Chief Executives,Works and associated costs for Land and Buildings,13-Nov-23,Eric Wright Civil Engineering Limit,"£404,625.44"
Manchester City Council,Hospitality + Trading Services,Rents,13-Nov-23,Network Rail Property,"£1,597.00"
Manchester City Council,Chief Executives,Legal Fees,13-Nov-23,Warwickshire County Council,"£1,437.31"
Manchester City Council,Corporate Services,I T Provision,13-Nov-23,Insight Direct (Uk) Ltd,£543.50
Manchester City Council,Corporate Services,Agency staff provision,13-Nov-23,Hays Personnel,"£71,916.99"
Manchester City Council,Corporate Services,Fees,13-Nov-23,Newlyn Plc,"-£13,075.97"
Manchester City Council,Corporate Services,Works and associated costs for Land and Buildings,13-Nov-23,Morgan Sindall C & I Ltd,"£466,235.88"
Manchester City Council,Corporate Services,Works and associated costs for Land and Buildings,13-Nov-23,Morgan Sindall C & I Ltd,"£1,165,845.47"
Manchester City Council,Chief Executives,Counsel Costs,13-Nov-23,18 St John Street Chambers,"£4,450.00"
Manchester City Council,Chief Executives,Counsel Costs,13-Nov-23,18 St John Street Chambers,£650.00
Manchester City Council,Chief Executives,Counsel Costs,13-Nov-23,18 St John Street Chambers,£650.00
Manchester City Council,Hospitality + Trading Services,Compensation Payments,13-Nov-23,Redacted Personal Information,£750.00
Manchester City Council,Childrens & Education Services,Transport Coach Hire,13-Nov-23,Ricks Travel,"£2,210.00"
Manchester City Council,Adult Social Care,Rents,13-Nov-23,Accommodation Links Ltd,£600.00
Manchester City Council,Corporate Services,Landline Telephone,13-Nov-23,Daisy Corporate Services Trading,"£1,912.68"
Manchester City Council,Corporate Services,Works and associated costs for Land and Buildings,13-Nov-23,Green-Tech Ltd,"£4,589.20"
Manchester City Council,Manchester Leisure,Special Event,13-Nov-23,SilverbackUk,"£3,210.00"
Manchester City Council,Hospitality + Trading Services,Vehicle Hire Costs,13-Nov-23,Peter Douglass Platforms,"£1,760.00"
Manchester City Council,Childrens & Education Services,Professional fees,13-Nov-23,One Education Ltd,"£1,000.00"
Manchester City Council,Adult Social Care,Third party payments relating to Voluntary Organisations,13-Nov-23,Sow the City,"£7,448.00"
Manchester City Council,Manchester Leisure,Grant and subscriptions awarded,13-Nov-23,TLC St Luke's,£500.00
Manchester City Council,Corporate Services,Rents,13-Nov-23,ANS Group PLC,"£50,020.00"
Manchester City Council,Regeneration Finance,Professional fees,13-Nov-23,Colliers International,"£1,950.00"
Manchester City Council,Regeneration Finance,Professional fees,13-Nov-23,Bennetts Associates Architects,"£9,015.00"
Manchester City Council,Corporate Services,I T Provision,13-Nov-23,Greater Manchester Chamber of,£892.00
Manchester City Council,Adult Social Care,Rents,13-Nov-23,Mack Residential Letting Ltd,£750.00
Manchester City Council,Adult Social Care,Rents,13-Nov-23,Mack Residential Letting Ltd,"£194,646.37"
Manchester City Council,Adult Social Care,Third party payments to Health Authority,13-Nov-23,NHS Supply Chain,£598.92
Manchester City Council,Adult Social Care,Third party payments to Health Authority,13-Nov-23,NHS Supply Chain,£727.80
Manchester City Council,Adult Social Care,Third party payments to Health Authority,13-Nov-23,NHS Supply Chain,£570.40
Manchester City Council,Manchester Leisure,Building Materials for direct delivery,13-Nov-23,Biffa Municipal Limited,"£10,228.50"
Manchester City Council,Manchester Leisure,Payments to Contractors,13-Nov-23,Biffa Municipal Limited,"£221,814.06"
Manchester City Council,Manchester Leisure,Refuse Collection,13-Nov-23,Biffa Municipal Limited,"£1,352,583.14"
Manchester City Council,Manchester Leisure,Refuse Collection,13-Nov-23,Biffa Municipal Limited,"£54,780.54"
Manchester City Council,Hospitality + Trading Services,Refuse Collection,13-Nov-23,Biffa Municipal Limited,"£118,087.86"
Manchester City Council,Corporate Services,Refuse Collection,13-Nov-23,Biffa Municipal Limited,"£56,678.37"
Manchester City Council,Corporate Services,Works and associated costs for Land and Buildings,13-Nov-23,Biffa Municipal Limited,"£51,099.00"
Manchester City Council,Manchester Leisure,Reuse credits,13-Nov-23,Biffa Municipal Limited,"£3,975.00"
Manchester City Council,Manchester Leisure,Reuse credits,13-Nov-23,Biffa Municipal Limited,"£2,275.00"
Manchester City Council,Manchester Leisure,Reuse credits,13-Nov-23,Biffa Municipal Limited,"£5,166.67"
Manchester City Council,Adult Social Care,Personal needs of client,13-Nov-23,Doro Care Ltd,"£2,908.00"
Manchester City Council,Chief Executives,Professional fees,13-Nov-23,Forensic Testing Service Ltd,£658.55
Manchester City Council,Manchester Leisure,Grant and subscriptions awarded,13-Nov-23,Manchester North End Football Club,"£2,249.98"
Manchester City Council,Adult Social Care,Rents,13-Nov-23,Housing Social Ltd,"£4,720.00"
Manchester City Council,Adult Social Care,Funeral and coroner related services,13-Nov-23,Greater Manchester Funeral Service,"£1,792.00"
Manchester City Council,Adult Social Care,Funeral and coroner related services,13-Nov-23,Greater Manchester Funeral Service,£875.00
Manchester City Council,Adult Social Care,Funeral and coroner related services,13-Nov-23,Greater Manchester Funeral Service,"£1,505.00"
Manchester City Council,Adult Social Care,Funeral and coroner related services,13-Nov-23,Greater Manchester Funeral Service,£705.00
Manchester City Council,Corporate Services,Professional fees,13-Nov-23,Redacted Personal Information,£980.00
Manchester City Council,Corporate Services,Professional fees,13-Nov-23,Redacted Personal Information,"£1,400.00"
Manchester City Council,Adult Social Care,Rents,13-Nov-23,Manchester Housing Group Ltd,£550.00
Manchester City Council,Manchester Leisure,Grounds Maintenance,13-Nov-23,Tivoli Group Ltd,"£5,429.64"
Manchester City Council,Manchester Leisure,Grounds Maintenance,13-Nov-23,Tivoli Group Ltd,"£6,311.17"
Manchester City Council,Manchester Leisure,Cash Collection,13-Nov-23,APCOA PARKING UK Ltd,"£22,948.38"
Manchester City Council,Manchester Leisure,External repairs and maintenance for buildings,13-Nov-23,Event Buggy Hire,"£1,430.00"
Manchester City Council,Childrens & Education Services,Payments for services,13-Nov-23,A S K Healthcare Ltd,"£1,288.00"
Manchester City Council,Adult Social Care,Personal needs of client,13-Nov-23,Anywhere Care Ltd,"£2,280.00"
Manchester City Council,Adult Social Care,Rents,13-Nov-23,Houses4Homes 4U Ltd,"£9,026.00"
Manchester City Council,Chief Executives,Counsel Costs,13-Nov-23,Redacted Personal Information,£875.00
Manchester City Council,Adult Social Care,Grant and subscriptions awarded,13-Nov-23,Revolving Doors Housing Trust,"£49,824.77"
Manchester City Council,Highways Services,Professional fees,13-Nov-23,Waterman Infrastructure and,"£3,439.50"
Manchester City Council,Adult Social Care,Third party payments relating to Voluntary Organisations,13-Nov-23,Onward Group Ltd,"£2,447.10"
Manchester City Council,Adult Social Care,Third party payments relating to Voluntary Organisations,13-Nov-23,Onward Group Ltd,"£2,447.10"
Manchester City Council,Adult Social Care,Third party payments relating to Voluntary Organisations,13-Nov-23,Onward Group Ltd,"£2,447.10"
Manchester City Council,Regeneration Finance,External repairs and maintenance for buildings,13-Nov-23,SMS Solar Maintenance Services,"£1,548.87"
Manchester City Council,Manchester Leisure,Other Allowances,13-Nov-23,Tusker Direct,"£2,565.82"
Manchester City Council,Manchester Leisure,Other Allowances,13-Nov-23,Tusker Direct,£910.27
Manchester City Council,Childrens & Education Services,Payments for services,13-Nov-23,Sendcode CIC,"£2,196.92"
Manchester City Council,Corporate Services,Works and associated costs for Land and Buildings,13-Nov-23,Bam Nuttall Ltd,"£634,319.38"
Manchester City Council,Childrens & Education Services,Transport Coach Hire,13-Nov-23,Britannia Minibuses Ltd,"£3,230.00"
Manchester City Council,Childrens & Education Services,Transport Coach Hire,13-Nov-23,Britannia Minibuses Ltd,"£2,720.00"
Manchester City Council,Childrens & Education Services,Transport Coach Hire,13-Nov-23,Britannia Minibuses Ltd,"£2,295.00"
Manchester City Council,Adult Social Care,Bed & Breakfast Acc,13-Nov-23,VSP BEAUCLIFFE LTD,"£123,660.00"
Manchester City Council,Corporate Services,Gas,13-Nov-23,M\cr Heat Network Supply Co Ltd,"£12,185.04"
Manchester City Council,Environment and Operations,Construction Works,13-Nov-23,Urban 360 Ltd,"£12,380.75"
Manchester City Council,Environment and Operations,Construction Works,13-Nov-23,Urban 360 Ltd,"£12,307.26"
Manchester City Council,Adult Social Care,Furniture,13-Nov-23,Rtech Group Limited,"£4,995.82"
Manchester City Council,Childrens & Education Services,Grant and subscriptions awarded,13-Nov-23,The Movez Movement,"£3,274.42"
Manchester City Council,Corporate Services,Grant Payments,13-Nov-23,Precisely Software Limited,"£11,769.51"
Manchester City Council,Chief Executives,Counsel Costs,13-Nov-23,Holborn Chambers,£626.00
Manchester City Council,Chief Executives,Counsel Costs,13-Nov-23,Holborn Chambers,£649.00
Manchester City Council,Regeneration Finance,External repairs and maintenance for buildings,13-Nov-23,Belgrave Conservation,"£7,850.00"
Manchester City Council,Manchester Leisure,Grant and subscriptions awarded,13-Nov-23,Loveworld UK Zone 4,"£1,000.00"
Manchester City Council,Manchester Leisure,Professional fees,13-Nov-23,Mitchell Charlesworth (Audit) Ltd,"£2,500.00"
Manchester City Council,Highways Services,Compensation Payments,14-Nov-23,Redacted personal info,£635.57
Manchester City Council,Regeneration Finance,Grant and subscriptions awarded,14-Nov-23,Redacted personal info,"£2,500.00"
Manchester City Council,Regeneration Finance,Grant and subscriptions awarded,14-Nov-23,Redacted personal info,"£2,500.00"
Manchester City Council,Chief Executives,Professional fees,14-Nov-23,Redacted personal info,£596.70
Manchester City Council,Adult Social Care,Supporting People Payments,14-Nov-23,Praxis Care Group,"£6,524.81"
Manchester City Council,Chief Executives,Works and associated costs for Land and Buildings,14-Nov-23,Eversheds Llp,"£17,235.00"
Manchester City Council,Corporate Services,Removal and Storage of Furniture,14-Nov-23,BCL,£570.00
Manchester City Council,Childrens & Education Services,Transport Coach Hire,14-Nov-23,Street Cars,"£4,166.67"
Manchester City Council,Childrens & Education Services,Transport Coach Hire,14-Nov-23,Street Cars,"£2,433.00"
Manchester City Council,Childrens & Education Services,Transport Coach Hire,14-Nov-23,Street Cars,"£16,666.67"
Manchester City Council,Childrens & Education Services,Transport Coach Hire,14-Nov-23,Street Cars,"£4,166.67"
Manchester City Council,Childrens & Education Services,Transport Coach Hire,14-Nov-23,Street Cars,"-£4,166.67"
Manchester City Council,Childrens & Education Services,Transport Coach Hire,14-Nov-23,Street Cars,"-£2,433.00"
Manchester City Council,Childrens & Education Services,Transport Coach Hire,14-Nov-23,Street Cars,"-£16,666.67"
Manchester City Council,Childrens & Education Services,Transport Coach Hire,14-Nov-23,Street Cars,"-£4,166.67"
Manchester City Council,Highways Services,Grounds Maintenance,14-Nov-23,The Fountain Company Ltd,£535.00
Manchester City Council,Housing Revenue Account,Professional fees,14-Nov-23,Switch2 Energey Limited,"£2,413.46"
Manchester City Council,Housing Revenue Account,Professional fees,14-Nov-23,Switch2 Energey Limited,"£2,413.46"
Manchester City Council,Manchester Leisure,Special Event,14-Nov-23,Utilities Design & Planning Ltd,"£3,708.00"
Manchester City Council,Hospitality + Trading Services,Hire of Machinery,14-Nov-23,R & M Developments Ltd,£720.79
Manchester City Council,Manchester Leisure,Equipment,14-Nov-23,JLA Ltd,"£3,186.77"
Manchester City Council,Adult Social Care,Grant and subscriptions awarded,14-Nov-23,LGBT Foundation,"£4,795.25"
Manchester City Council,Adult Social Care,Grant and subscriptions awarded,14-Nov-23,LGBT Foundation,"£10,484.33"
Manchester City Council,Regeneration Finance,Professional fees,14-Nov-23,Savills (UK) Ltd,"£5,600.00"
Manchester City Council,Chief Executives,Counsel Costs,14-Nov-23,No 5 Chambers Ltd,"£1,500.00"
Manchester City Council,Regeneration Finance,Hire of Premises,14-Nov-23,Rochdale Mbc,"£1,860.00"
Manchester City Council,Corporate Services,"Consumable items eg Toilet rolls, soap etc",14-Nov-23,United Flags & Flagstaffs Ltd,£567.50
Manchester City Council,Manchester Leisure,Library Materials Acquisition,14-Nov-23,Dandy Booksellers,"£1,455.20"
Manchester City Council,Housing Revenue Account,Council Dwelling Adaptations,14-Nov-23,British Gas Social Housing Ltd,"£4,411.00"
Manchester City Council,Housing Revenue Account,Council Dwelling Adaptations,14-Nov-23,British Gas Social Housing Ltd,"£2,407.97"
Manchester City Council,Housing Revenue Account,Council Dwelling Adaptations,14-Nov-23,British Gas Social Housing Ltd,"£1,365.90"
Manchester City Council,Housing Revenue Account,Council Dwelling Adaptations,14-Nov-23,British Gas Social Housing Ltd,"£2,454.19"
Manchester City Council,Housing Revenue Account,Council Dwelling Adaptations,14-Nov-23,British Gas Social Housing Ltd,"£9,294.69"
Manchester City Council,Chief Executives,Printing,14-Nov-23,Browns CTP Ltd,£620.00
Manchester City Council,Childrens & Education Services,Transport Coach Hire,14-Nov-23,David'S Handy Rider,"-£1,250.00"
Manchester City Council,Childrens & Education Services,Transport Coach Hire,14-Nov-23,David'S Handy Rider,"-£1,145.00"
Manchester City Council,Childrens & Education Services,Transport Coach Hire,14-Nov-23,David'S Handy Rider,"-£1,160.00"
Manchester City Council,Childrens & Education Services,Transport Coach Hire,14-Nov-23,David'S Handy Rider,"-£9,329.00"
Manchester City Council,Childrens & Education Services,Transport Coach Hire,14-Nov-23,David'S Handy Rider,-£560.00
Manchester City Council,Childrens & Education Services,Transport Coach Hire,14-Nov-23,David'S Handy Rider,"-£6,078.25"
Manchester City Council,Childrens & Education Services,Transport Coach Hire,14-Nov-23,David'S Handy Rider,"-£1,400.00"
Manchester City Council,Childrens & Education Services,Transport Coach Hire,14-Nov-23,David'S Handy Rider,"-£3,846.50"
Manchester City Council,Childrens & Education Services,Transport Coach Hire,14-Nov-23,David'S Handy Rider,"-£11,400.00"
Manchester City Council,Childrens & Education Services,Transport Coach Hire,14-Nov-23,David'S Handy Rider,"-£16,025.00"
Manchester City Council,Childrens & Education Services,Transport Coach Hire,14-Nov-23,David'S Handy Rider,"-£4,320.00"
Manchester City Council,Manchester Leisure,Works and associated costs for Land and Buildings,14-Nov-23,Kier Construction North and,"£287,093.86"
Manchester City Council,Manchester Leisure,Goods purchased for resale in Council outlets,14-Nov-23,Cornflower Ltd,"£2,100.00"
Manchester City Council,Chief Executives,Legal Fees,14-Nov-23,Warwickshire County Council,"£1,110.18"
Manchester City Council,Chief Executives,Legal Fees,14-Nov-23,Warwickshire County Council,"£1,588.85"
Manchester City Council,Chief Executives,Legal Fees,14-Nov-23,Warwickshire County Council,£748.88
Manchester City Council,Chief Executives,Legal Fees,14-Nov-23,Warwickshire County Council,"£2,236.81"
Manchester City Council,Chief Executives,Legal Fees,14-Nov-23,Warwickshire County Council,"£1,934.69"
Manchester City Council,Chief Executives,Legal Fees,14-Nov-23,Warwickshire County Council,"£1,830.72"
Manchester City Council,Adult Social Care,Equipment,14-Nov-23,Bennett Workplace Solutions Ltd,"£1,072.35"
Manchester City Council,Adult Social Care,Equipment,14-Nov-23,Bennett Workplace Solutions Ltd,"-£1,072.35"
Manchester City Council,Environment and Operations,Vehicle Plant Furniture and Equipment,14-Nov-23,M247 UK Ltd,"£11,277.49"
Manchester City Council,Childrens & Education Services,Rents,14-Nov-23,Diocese of Salford,"£7,604.39"
Manchester City Council,Corporate Services,Prof Qualifications,14-Nov-23,Kaplan Financial - Manchester,"£1,336.67"
Manchester City Council,Adult Social Care,Rents,14-Nov-23,Accommodation Links Ltd,£600.00
Manchester City Council,Adult Social Care,Rents,14-Nov-23,Accommodation Links Ltd,£600.00
Manchester City Council,Chief Executives,Legal Fees,14-Nov-23,Weightmans LLP Solicitors,"£4,657.47"
Manchester City Council,Chief Executives,Legal Fees,14-Nov-23,Weightmans LLP Solicitors,£891.50
Manchester City Council,Chief Executives,I T Provision,14-Nov-23,Trustmarque Solutions Ltd,"£4,885.00"
Manchester City Council,Corporate Services,Works and associated costs for Land and Buildings,14-Nov-23,Green-Tech Ltd,"£2,650.00"
Manchester City Council,Adult Social Care,Rents,14-Nov-23,United Property Management Ltd,"£26,886.60"
Manchester City Council,Childrens & Education Services,Professional fees,14-Nov-23,One Education Ltd,"£1,046.00"
Manchester City Council,Childrens & Education Services,Professional fees,14-Nov-23,One Education Ltd,"£1,046.00"
Manchester City Council,Corporate Services,Collection Commision,14-Nov-23,Verrus (UK) T/A paybyphone,"£26,443.05"
Manchester City Council,Hospitality + Trading Services,Vehicle Hire Costs,14-Nov-23,Fleet Dynamic Consultancy Ltd,"£1,261.68"
Manchester City Council,Chief Executives,Printing,14-Nov-23,t/a R.C.D.,"£1,045.54"
Manchester City Council,Adult Social Care,Payments for services,14-Nov-23,Urban Village Medical Practice,"£12,850.00"
Manchester City Council,Corporate Services,Fees,14-Nov-23,Pannone Corporate LLP,"£2,750.00"
Manchester City Council,Adult Social Care,Rents,14-Nov-23,Mack Residential Letting Ltd,"£200,938.90"
Manchester City Council,Manchester Leisure,Grant and subscriptions awarded,14-Nov-23,Freshstart Smart,£500.00
Manchester City Council,Corporate Services,Refuse Collection,14-Nov-23,Restore Datashred Limited,"£4,064.42"
Manchester City Council,Adult Social Care,Grant and subscriptions awarded,14-Nov-23,Coffee4Craig Ltd,"£8,750.00"
Manchester City Council,Adult Social Care,Bed & Breakfast Acc,14-Nov-23,Redacted Personal Information,"£1,540.00"
Manchester City Council,Adult Social Care,Rents,14-Nov-23,T15 Consultancy Ltd,"£3,115.39"
Manchester City Council,Housing Revenue Account,Professional fees,14-Nov-23,Capita Property & Infras'ture Ltd,"£6,575.00"
Manchester City Council,Environment and Operations,Construction Works,14-Nov-23,IWJS Ltd,"£5,535.00"
Manchester City Council,Adult Social Care,Grant and subscriptions awarded,14-Nov-23,On The Out CIC,"£20,985.58"
Manchester City Council,Adult Social Care,Grant and subscriptions awarded,14-Nov-23,On The Out CIC,"£2,147.58"
Manchester City Council,Adult Social Care,Grant and subscriptions awarded,14-Nov-23,On The Out CIC,"£3,113.60"
Manchester City Council,Adult Social Care,Contract Cleaning External,14-Nov-23,YD Healthcare Ltd,"£1,256.00"
Manchester City Council,Childrens & Education Services,Professional fees,14-Nov-23,CPOMS Systems Limited,"£1,395.00"
Manchester City Council,Hospitality + Trading Services,Vehicle Fuel Costs,14-Nov-23,Standard Fuels Oils,"£10,930.89"
Manchester City Council,Chief Executives,Legal Fees,14-Nov-23,Waddington & Son Solicitors,£579.50
Manchester City Council,Chief Executives,Legal Fees,14-Nov-23,Waddington & Son Solicitors,"£1,072.35"
Manchester City Council,Chief Executives,Legal Fees,14-Nov-23,Waddington & Son Solicitors,"£2,656.25"
Manchester City Council,Chief Executives,Legal Fees,14-Nov-23,Waddington & Son Solicitors,£898.25
Manchester City Council,Chief Executives,Legal Fees,14-Nov-23,Waddington & Son Solicitors,"£5,646.38"
Manchester City Council,Chief Executives,Legal Fees,14-Nov-23,Waddington & Son Solicitors,£742.00
Manchester City Council,Chief Executives,Legal Fees,14-Nov-23,Waddington & Son Solicitors,"£2,437.25"
Manchester City Council,Chief Executives,Legal Fees,14-Nov-23,Waddington & Son Solicitors,"£1,693.75"
Manchester City Council,Chief Executives,Legal Fees,14-Nov-23,Waddington & Son Solicitors,"£1,885.75"
Manchester City Council,Chief Executives,Legal Fees,14-Nov-23,Waddington & Son Solicitors,"£1,695.00"
Manchester City Council,Chief Executives,Legal Fees,14-Nov-23,Waddington & Son Solicitors,"£1,516.96"
Manchester City Council,Adult Social Care,Grant and subscriptions awarded,14-Nov-23,Supporting People In Need,"£22,000.00"
Manchester City Council,Adult Social Care,Grant and subscriptions awarded,14-Nov-23,Supporting People In Need,"£1,100.00"
Manchester City Council,Childrens & Education Services,Payments for services,14-Nov-23,Thompsons Academy Ltd,"-£1,050.00"
Manchester City Council,Childrens & Education Services,Payments for services,14-Nov-23,Thompsons Academy Ltd,"-£1,575.00"
Manchester City Council,Childrens & Education Services,Payments for services,14-Nov-23,Thompsons Academy Ltd,"-£5,818.00"
Manchester City Council,Childrens & Education Services,Payments for services,14-Nov-23,Thompsons Academy Ltd,"-£2,100.00"
Manchester City Council,Adult Social Care,Bed & Breakfast Acc,14-Nov-23,Medlock House Ltd,"-£7,056.00"
Manchester City Council,Corporate Services,Security,14-Nov-23,MITIE SECURITY LIMITED,"£128,034.38"
Manchester City Council,Regeneration Finance,Professional fees,14-Nov-23,NE1 Procurement Services Limited,"£25,000.00"
Manchester City Council,Regeneration Finance,Professional fees,14-Nov-23,NE1 Procurement Services Limited,"£25,000.00"
Manchester City Council,Adult Social Care,Third party payments relating to Voluntary Organisations,14-Nov-23,Shared Habitat Limited,£935.00
Manchester City Council,Adult Social Care,Bed & Breakfast Acc,14-Nov-23,247Hotel.Com,"£1,120.00"
Manchester City Council,Adult Social Care,Bed & Breakfast Acc,14-Nov-23,VSP BEAUCLIFFE LTD,"£141,174.00"
Manchester City Council,Regeneration Finance,Electricity,14-Nov-23,M\cr Heat Network Supply Co Ltd,"£49,556.06"
Manchester City Council,Childrens & Education Services,Transport Coach Hire,14-Nov-23,AFJ Ltd,"£4,572.00"
Manchester City Council,Childrens & Education Services,Transport Coach Hire,14-Nov-23,AFJ Ltd,"£5,922.00"
Manchester City Council,Childrens & Education Services,Transport Coach Hire,14-Nov-23,AFJ Ltd,"£2,490.00"
Manchester City Council,Childrens & Education Services,Transport Coach Hire,14-Nov-23,AFJ Ltd,"£4,318.00"
Manchester City Council,Childrens & Education Services,Transport Coach Hire,14-Nov-23,AFJ Ltd,"£2,490.00"
Manchester City Council,Childrens & Education Services,Transport Coach Hire,14-Nov-23,AFJ Ltd,"£3,154.00"
Manchester City Council,Childrens & Education Services,Transport Coach Hire,14-Nov-23,AFJ Ltd,"£4,318.00"
Manchester City Council,Childrens & Education Services,Transport Coach Hire,14-Nov-23,AFJ Ltd,"-£4,590.00"
Manchester City Council,Childrens & Education Services,Transport Coach Hire,14-Nov-23,AFJ Ltd,"£4,590.00"
Manchester City Council,Childrens & Education Services,Transport Coach Hire,14-Nov-23,AFJ Ltd,"£4,828.00"
Manchester City Council,Childrens & Education Services,Transport Coach Hire,14-Nov-23,AFJ Ltd,"£4,590.00"
Manchester City Council,Childrens & Education Services,Transport Coach Hire,14-Nov-23,AFJ Ltd,"£5,066.00"
Manchester City Council,Childrens & Education Services,Transport Coach Hire,14-Nov-23,AFJ Ltd,"£2,490.00"
Manchester City Council,Childrens & Education Services,Transport Coach Hire,14-Nov-23,AFJ Ltd,"£4,318.00"
Manchester City Council,Childrens & Education Services,Transport Coach Hire,14-Nov-23,AFJ Ltd,"£4,318.00"
Manchester City Council,Childrens & Education Services,Transport Coach Hire,14-Nov-23,AFJ Ltd,"£5,338.00"
Manchester City Council,Childrens & Education Services,Transport Coach Hire,14-Nov-23,AFJ Ltd,"£1,663.20"
Manchester City Council,Childrens & Education Services,Transport Coach Hire,14-Nov-23,AFJ Ltd,"£4,590.00"
Manchester City Council,Childrens & Education Services,Transport Coach Hire,14-Nov-23,AFJ Ltd,"£4,470.00"
Manchester City Council,Childrens & Education Services,Transport Coach Hire,14-Nov-23,AFJ Ltd,"£4,318.00"
Manchester City Council,Childrens & Education Services,Transport Coach Hire,14-Nov-23,AFJ Ltd,"£4,350.00"
Manchester City Council,Childrens & Education Services,Transport Taxis,14-Nov-23,AFJ Ltd,"£2,286.00"
Manchester City Council,Childrens & Education Services,Transport Taxis,14-Nov-23,AFJ Ltd,"£2,540.00"
Manchester City Council,Childrens & Education Services,Transport Taxis,14-Nov-23,AFJ Ltd,"£1,710.00"
Manchester City Council,Childrens & Education Services,Transport Taxis,14-Nov-23,AFJ Ltd,"£1,710.00"
Manchester City Council,Childrens & Education Services,Transport Taxis,14-Nov-23,AFJ Ltd,"£1,710.00"
Manchester City Council,Childrens & Education Services,Transport Taxis,14-Nov-23,AFJ Ltd,"£2,540.00"
Manchester City Council,Childrens & Education Services,Transport Taxis,14-Nov-23,AFJ Ltd,"£2,540.00"
Manchester City Council,Childrens & Education Services,Transport Taxis,14-Nov-23,AFJ Ltd,"£1,710.00"
Manchester City Council,Childrens & Education Services,Transport Taxis,14-Nov-23,AFJ Ltd,"£2,540.00"
Manchester City Council,Childrens & Education Services,Transport Taxis,14-Nov-23,AFJ Ltd,"£2,840.00"
Manchester City Council,Adult Social Care,Rents,14-Nov-23,NWA Housing Ltd,"£1,422.96"
Manchester City Council,Adult Social Care,Furniture,14-Nov-23,Rtech Group Limited,"£1,362.50"
Manchester City Council,Adult Social Care,Furniture,14-Nov-23,Rtech Group Limited,"£5,275.00"
Manchester City Council,Adult Social Care,Furniture,14-Nov-23,Rtech Group Limited,"£22,655.00"
Manchester City Council,Childrens & Education Services,Grant and subscriptions awarded,14-Nov-23,The Movez Movement,"£3,274.42"
Manchester City Council,Adult Social Care,Rents,14-Nov-23,VSPG Housing Ltd,"£15,000.00"
Manchester City Council,Corporate Services,Training and Development,14-Nov-23,ASK Europe Limited,£750.00
Manchester City Council,Corporate Services,Training and Development,14-Nov-23,ASK Europe Limited,£750.00
Manchester City Council,Adult Social Care,Rents,14-Nov-23,R&S Properties Ltd,"£4,650.00"
Manchester City Council,Corporate Services,Compensation Payments,14-Nov-23,PD Law (NW) LTD,"£1,977.00"
Manchester City Council,Adult Social Care,Furniture,14-Nov-23,New Tech Ltd,"£1,720.00"
Manchester City Council,Manchester Leisure,Compensation Payments,15-Nov-23,Redacted personal info,£500.00
Manchester City Council,Manchester Leisure,Compensation Payments,15-Nov-23,Redacted personal info,"£6,500.00"
Manchester City Council,Childrens & Education Services,Transport Coach Hire,15-Nov-23,Redacted personal info,"£1,512.00"
Manchester City Council,Manchester Leisure,Special Event,15-Nov-23,Redacted personal info,"£1,280.00"
Manchester City Council,Chief Executives,Advertising,15-Nov-23,Haymarket Publishing Services Ltd,£925.00
Manchester City Council,Chief Executives,Advertising,15-Nov-23,Haymarket Publishing Services Ltd,£925.00
Manchester City Council,Corporate Services,Agency staff provision,15-Nov-23,Venn Group Ltd,"£13,140.36"
Manchester City Council,Hospitality + Trading Services,Security,15-Nov-23,Dante Fire & Security Ltd,-£668.00
Manchester City Council,Hospitality + Trading Services,Hire of Machinery,15-Nov-23,R & M Developments Ltd,"£1,073.50"
Manchester City Council,Hospitality + Trading Services,Security,15-Nov-23,Showsec International Ltd,"-£11,153.43"
Manchester City Council,Corporate Services,Licences Purchase,15-Nov-23,NTT Data,"£11,140.14"
Manchester City Council,Chief Executives,Works and associated costs for Land and Buildings,15-Nov-23,Laing O'Rourke Construction Ltd,"£434,376.97"
Manchester City Council,Chief Executives,Works and associated costs for Land and Buildings,15-Nov-23,Laing O'Rourke Construction Ltd,"£1,817,992.03"
Manchester City Council,Childrens & Education Services,Carer Support Payments ,15-Nov-23,Mosscare Housing Ltd,"£65,228.45"
Manchester City Council,Adult Social Care,Professional fees,15-Nov-23,Riverside ECHG,"£5,616.10"
Manchester City Council,Adult Social Care,Professional fees,15-Nov-23,Riverside ECHG,"£3,045.00"
Manchester City Council,Corporate Services,Tracing fees,15-Nov-23,Experian Limited,"£2,212.59"
Manchester City Council,Hospitality + Trading Services,Cash Collection,15-Nov-23,G4S Cash Solutions (Uk) Ltd,"£1,042.87"
Manchester City Council,Manchester Leisure,Grant and subscriptions awarded,15-Nov-23,Moss Side Millennium Powerhouse Ltd,"£16,142.50"
Manchester City Council,Corporate Services,Grounds Maintenance,15-Nov-23,Arboricultural Services Treework,£600.00
Manchester City Council,Adult Social Care,Payments for services,15-Nov-23,Big Life Centres,"£238,508.00"
Manchester City Council,Adult Social Care,Payments for services,15-Nov-23,Big Life Centres,"£10,560.25"
Manchester City Council,Adult Social Care,Payments for services,15-Nov-23,Big Life Centres,"£238,508.00"
Manchester City Council,Adult Social Care,Payments for services,15-Nov-23,Big Life Centres,"£10,560.25"
Manchester City Council,Corporate Services,Agency staff provision,15-Nov-23,Deekay Technical Recruitment Ltd,"£11,141.29"
Manchester City Council,Adult Social Care,"Consumable items eg Toilet rolls, soap etc",15-Nov-23,All 4 Pets Limited,"£1,248.00"
Manchester City Council,Adult Social Care,"Consumable items eg Toilet rolls, soap etc",15-Nov-23,All 4 Pets Limited,£992.00
Manchester City Council,Housing Revenue Account,Council Dwelling Adaptations,15-Nov-23,Stannah Lift Services Ltd,"-£2,905.00"
Manchester City Council,Childrens & Education Services,Private Finance and Public Private partnership initiatives,15-Nov-23,NU3PS,"£91,494.92"
Manchester City Council,Regeneration Finance,Professional fees,15-Nov-23,Creative Concern Ltd,£550.87
Manchester City Council,General Fund,Levies,15-Nov-23,Bolton Mbc,"£36,007.25"
Manchester City Council,Adult Social Care,Third party payments relating to Voluntary Organisations,15-Nov-23,Greater Manchester Immigration Aid,"£8,158.00"
Manchester City Council,Childrens & Education Services,Payments for services,15-Nov-23,Manchester Settlement,£522.00
Manchester City Council,General Fund,Levies,15-Nov-23,Trafford M B C,"£12,896.23"
Manchester City Council,Adult Social Care,Third party payments relating to Voluntary Organisations,15-Nov-23,Albert Kennedy Trust,£758.33
Manchester City Council,Childrens & Education Services,Day Care Payments,15-Nov-23,Medlock Primary School,"£16,740.13"
Manchester City Council,Childrens & Education Services,Payments for services,15-Nov-23,The Birtenshaw Group,"£7,281.00"
Manchester City Council,Childrens & Education Services,Payments for services,15-Nov-23,The Birtenshaw Group,"£1,762.52"
Manchester City Council,Chief Executives,Printing,15-Nov-23,Wallace Printers Ltd,"£1,459.00"
Manchester City Council,Adult Social Care,Professional fees,15-Nov-23,Royal Exchange Theatre Co Ltd,£500.00
Manchester City Council,Chief Executives,Printing,15-Nov-23,Tharstern Limited,£742.50
Manchester City Council,Adult Social Care,I T Provision,15-Nov-23,The Booth Centre,"£1,179.72"
Manchester City Council,Adult Social Care,Licences Purchase,15-Nov-23,Insight Direct (Uk) Ltd,£511.17
Manchester City Council,Corporate Services,Licences Purchase,15-Nov-23,Insight Direct (Uk) Ltd,£511.17
Manchester City Council,Chief Executives,Courier Costs,15-Nov-23,Speed Couriers (Northern) Ltd,"£1,288.67"
Manchester City Council,General Fund,Levies,15-Nov-23,GMCA,"£3,905,500.00"
Manchester City Council,Childrens & Education Services,Third party payments to other Local Authorities,15-Nov-23,Broomwood Primary School,"£2,604.00"
Manchester City Council,Adult Social Care,Rents,15-Nov-23,Ashley Property services,"£3,320.00"
Manchester City Council,Chief Executives,Advertising,15-Nov-23,Redactive Publishing Limited,£845.00
Manchester City Council,Childrens & Education Services,Transport Coach Hire,15-Nov-23,Galaxy Transport (Manchester) Ltd,"£12,555.00"
Manchester City Council,Chief Executives,Postage,15-Nov-23,Whistl North Ltd,"£2,836.02"
Manchester City Council,Childrens & Education Services,Hire of Premises,15-Nov-23,The Monastery Manchester Ltd,£791.00
Manchester City Council,Hospitality + Trading Services,Funeral and coroner related services,15-Nov-23,Zagota Creations Limited,£895.00
Manchester City Council,Chief Executives,Legal Fees,15-Nov-23,Weightmans LLP Solicitors,"£7,450.00"
Manchester City Council,Chief Executives,Legal Fees,15-Nov-23,Weightmans LLP Solicitors,"£3,799.50"
Manchester City Council,Chief Executives,Legal Fees,15-Nov-23,Weightmans LLP Solicitors,"£1,533.00"
Manchester City Council,Chief Executives,Legal Fees,15-Nov-23,Weightmans LLP Solicitors,"£1,418.00"
Manchester City Council,Chief Executives,Legal Fees,15-Nov-23,Weightmans LLP Solicitors,"£8,631.19"
Manchester City Council,Chief Executives,Legal Fees,15-Nov-23,Weightmans LLP Solicitors,"£6,620.36"
Manchester City Council,Chief Executives,Legal Fees,15-Nov-23,Weightmans LLP Solicitors,"£2,582.00"
Manchester City Council,Chief Executives,Advertising,15-Nov-23,Global Radio Services Ltd,"£1,200.00"
Manchester City Council,Chief Executives,Advertising,15-Nov-23,Global Radio Services Ltd,"£3,284.11"
Manchester City Council,Chief Executives,Advertising,15-Nov-23,Global Radio Services Ltd,"£2,093.57"
Manchester City Council,Adult Social Care,Equipment,15-Nov-23,Aidapt Bathrooms Ltd,"£3,150.00"
Manchester City Council,Manchester Leisure,Grant and subscriptions awarded,15-Nov-23,Youth Project @ Apostles &,"£30,000.00"
Manchester City Council,Chief Executives,Professional fees,15-Nov-23,Cornerstone Barristers,"£10,000.00"
Manchester City Council,Chief Executives,Legal Fees,15-Nov-23,Cornerstone Barristers,"£5,000.00"
Manchester City Council,Adult Social Care,Counsel Costs,15-Nov-23,Cornerstone Barristers,"£1,000.00"
Manchester City Council,Regeneration Finance,Professional fees,15-Nov-23,Penna PLC,"£5,000.00"
Manchester City Council,Regeneration Finance,Professional fees,15-Nov-23,Penna PLC,"£3,000.00"
Manchester City Council,Corporate Services,Agency staff provision,15-Nov-23,Ashberry Recruitment Ltd,"£1,968.30"
Manchester City Council,Chief Executives,Postage,15-Nov-23,Quadient Ltd (Credifon),"£10,875.60"
Manchester City Council,Manchester Leisure,Environmental Services,15-Nov-23,Custodian Monitoring,£575.32
Manchester City Council,Manchester Leisure,Environmental Services,15-Nov-23,Custodian Monitoring,£575.32
Manchester City Council,Manchester Leisure,Environmental Services,15-Nov-23,Custodian Monitoring,£575.32
Manchester City Council,Adult Social Care,Rents,15-Nov-23,Cromwood Ltd,"£158,113.15"
Manchester City Council,Hospitality + Trading Services,Vehicle Hire Costs,15-Nov-23,Dawsongroup Sweepers,"£1,605.71"
Manchester City Council,Manchester Leisure,External repairs and maintenance for buildings,15-Nov-23,Cornthwaite Tree Care,"£4,500.00"
Manchester City Council,Manchester Leisure,External repairs and maintenance for buildings,15-Nov-23,Cornthwaite Tree Care,"£4,900.00"
Manchester City Council,Hospitality + Trading Services,Vehicle Hire Costs,15-Nov-23,Gibsons Garden Machinery Limited,"£7,282.00"
Manchester City Council,Corporate Services,Fees,15-Nov-23,Pannone Corporate LLP,"£4,946.20"
Manchester City Council,Manchester Leisure,External repairs and maintenance for buildings,15-Nov-23,Willfab Ltd,"£1,280.00"
Manchester City Council,Adult Social Care,Third party payments to Health Authority,15-Nov-23,Liverpool University Hospitals,£751.00
Manchester City Council,Childrens & Education Services,Professional fees,15-Nov-23,Alpha Biolaboratories Limited,-£952.80
Manchester City Council,Manchester Leisure,Cleaning Equipment and Materials,15-Nov-23,Biffa Municipal Limited,-£880.50
Manchester City Council,Manchester Leisure,Cleaning Equipment and Materials,15-Nov-23,Biffa Municipal Limited,-£880.50
Manchester City Council,Manchester Leisure,Cleaning Equipment and Materials,15-Nov-23,Biffa Municipal Limited,-£880.50
Manchester City Council,Corporate Services,Elec Car L-VAT contr,15-Nov-23,Northumbria Healthcare NHS FT,"£1,534.51"
Manchester City Council,Corporate Services,Elec Car L-VAT contr,15-Nov-23,Northumbria Healthcare NHS FT,"£5,439.90"
Manchester City Council,Corporate Services,Elec Car Lease,15-Nov-23,Northumbria Healthcare NHS FT,"£17,456.10"
Manchester City Council,Corporate Services,Elec Car Lease,15-Nov-23,Northumbria Healthcare NHS FT,"£61,345.63"
Manchester City Council,Childrens & Education Services,Transport Coach Hire,15-Nov-23,Middleton Cars Ltd,"£1,360.00"
Manchester City Council,Corporate Services,Agency staff provision,15-Nov-23,Buckingham Futures Limited,"-£6,272.94"
Manchester City Council,Corporate Services,Agency staff provision,15-Nov-23,Buckingham Futures Limited,"£5,227.45"
Manchester City Council,Chief Executives,Advertising,15-Nov-23,In Touch Local Media Ltd,£550.00
Manchester City Council,Adult Social Care,Rents,15-Nov-23,K L Properties,"£17,645.00"
Manchester City Council,Chief Executives,Payments to Sub-Contractors,15-Nov-23,Redacted Personal Information,"£1,156.43"
Manchester City Council,Chief Executives,Payments to Sub-Contractors,15-Nov-23,Redacted Personal Information,£681.45
Manchester City Council,Chief Executives,Payments to Sub-Contractors,15-Nov-23,Redacted Personal Information,£506.08
Manchester City Council,Chief Executives,Payments to Sub-Contractors,15-Nov-23,Redacted Personal Information,£737.93
Manchester City Council,Chief Executives,Payments to Sub-Contractors,15-Nov-23,Redacted Personal Information,"£1,403.25"
Manchester City Council,Childrens & Education Services,Training and Development,15-Nov-23,Family Links,"-£2,160.00"
Manchester City Council,Childrens & Education Services,Training and Development,15-Nov-23,Family Links,"£2,160.00"
Manchester City Council,Manchester Leisure,Postage,15-Nov-23,Integrity Print Ltd,"£2,092.26"
Manchester City Council,Chief Executives,Works and associated costs for Land and Buildings,15-Nov-23,BMS Software (Northern) Ltd,"£34,582.50"
Manchester City Council,Childrens & Education Services,Ind Budget Payment,15-Nov-23,Samuel Bennett,"£1,080.00"
Manchester City Council,Corporate Services,Bank Charges,15-Nov-23,Pay360 Ltd,"£10,011.64"
Manchester City Council,Corporate Services,Contract Cleaning External,15-Nov-23,Westgrove Support Services Ltd,"£9,808.77"
Manchester City Council,Corporate Services,Agency staff provision,15-Nov-23,G2V Recruitment Grp t/a Vivid Resou,"£8,235.00"
Manchester City Council,Corporate Services,Agency staff provision,15-Nov-23,G2V Recruitment Grp t/a Vivid Resou,"£1,875.00"
Manchester City Council,Corporate Services,Agency staff provision,15-Nov-23,G2V Recruitment Grp t/a Vivid Resou,"£2,058.75"
Manchester City Council,Corporate Services,Agency staff provision,15-Nov-23,G2V Recruitment Grp t/a Vivid Resou,"£1,890.00"
Manchester City Council,Adult Social Care,Supported Accommodation,15-Nov-23,Redacted Personal Information,"£39,617.36"
Manchester City Council,Manchester Leisure,Grant and subscriptions awarded,15-Nov-23,Ivy Green Allotments,"£2,000.00"
Manchester City Council,Childrens & Education Services,Carer Support Payments ,15-Nov-23,Amore Complex Care,"£43,070.00"
Manchester City Council,Childrens & Education Services,Third party payments to other Local Authorities,15-Nov-23,Firwood High School,"£4,453.00"
Manchester City Council,Manchester Leisure,External repairs and maintenance for buildings,15-Nov-23,Norman Ashworth Limited,"£26,760.00"
Manchester City Council,Chief Executives,Counsel Costs,15-Nov-23,DEANS COURT CHAMBERS,£500.00
Manchester City Council,Adult Social Care,Grant and subscriptions awarded,15-Nov-23,Divrse Ltd,"£17,550.00"
Manchester City Council,Manchester Leisure,Grant and subscriptions awarded,15-Nov-23,Friends of Mauldeth Road Station,"£2,044.77"
Manchester City Council,Childrens & Education Services,Grant Payments,15-Nov-23,Paypoint,"£9,258.30"
Manchester City Council,Chief Executives,Licences Purchase,15-Nov-23,ITS Software Systems Ltd,"£3,750.00"
Manchester City Council,Adult Social Care,Payments for services,15-Nov-23,Druglink Ltd,"£3,146.40"
Manchester City Council,Adult Social Care,Payments for services,15-Nov-23,Druglink Ltd,£561.00
Manchester City Council,Childrens & Education Services,Payments for services,15-Nov-23,Side By Side (Children) Limited,"£2,833.33"
Manchester City Council,Adult Social Care,Furniture,15-Nov-23,Rtech Group Limited,"-£1,654.17"
Manchester City Council,Childrens & Education Services,Payments for services,15-Nov-23,Redacted Personal Information,"£4,165.00"
Manchester City Council,Childrens & Education Services,Payments for services,15-Nov-23,SENsational Tutors Ltd,"£1,487.50"
Manchester City Council,Childrens & Education Services,Payments for services,15-Nov-23,SENsational Tutors Ltd,"£1,105.00"
Manchester City Council,Childrens & Education Services,Home Care ,15-Nov-23,Emotional and Trauma Support,"£1,950.00"
Manchester City Council,Regeneration Finance,External repairs and maintenance for buildings,15-Nov-23,Cesar Santos Cerejo,"£1,201.17"
Manchester City Council,Regeneration Finance,External repairs and maintenance for buildings,15-Nov-23,Cesar Santos Cerejo,£995.77
Manchester City Council,Childrens & Education Services,Payments for services,15-Nov-23,Redacted Personal Information,"£3,094.00"
Manchester City Council,Regeneration Finance,External repairs and maintenance for buildings,15-Nov-23,Temple Studios,"£1,740.00"
Manchester City Council,Corporate Services,Building Works,15-Nov-23,Mayfield Development (General,"£91,700.00"
Manchester City Council,Housing Revenue Account,Works and associated costs for Land and Buildings,15-Nov-23,Haworth Brotherton Solicitors,"£207,000.00"
Manchester City Council,Corporate Services,Works and associated costs for Land and Buildings,15-Nov-23,Kuits Solicitors,"£2,000.00"
Manchester City Council,Adult Social Care,Rents,15-Nov-23,Apex Properties North Ltd,"£4,800.00"
Manchester City Council,Adult Social Care,Rents,15-Nov-23,Iian Tyson,"£1,400.00"
Manchester City Council,Corporate Services,Hire of Premises,15-Nov-23,Factory International Trading Servi,"£5,000.00"
Manchester City Council,Manchester Leisure,Special Event,15-Nov-23,International Doping Tests & Mgmt,"£3,494.61"
Manchester City Council,Childrens & Education Services,Public Transport,16-Nov-23,Redacted personal info,"£1,060.00"
Manchester City Council,Manchester Leisure,Special Event,16-Nov-23,Redacted personal info,"£1,280.00"
Manchester City Council,Manchester Leisure,Special Event,16-Nov-23,Redacted personal info,"£1,920.00"
Manchester City Council,Manchester Leisure,Special Event,16-Nov-23,Redacted personal info,"£1,280.00"
Manchester City Council,Regeneration Finance,Professional fees,16-Nov-23,GVA Grimley Ltd,"£2,647.75"
Manchester City Council,Regeneration Finance,Professional fees,16-Nov-23,GVA Grimley Ltd,"£1,260.00"
Manchester City Council,Manchester Leisure,Electricity,16-Nov-23,Scottish & Southern Energy Plc,-£557.22
Manchester City Council,Manchester Leisure,Electricity,16-Nov-23,Scottish & Southern Energy Plc,-£564.07
Manchester City Council,Manchester Leisure,Electricity,16-Nov-23,Scottish & Southern Energy Plc,-£562.02
Manchester City Council,Manchester Leisure,Electricity,16-Nov-23,Scottish & Southern Energy Plc,-£628.58
Manchester City Council,Manchester Leisure,Electricity,16-Nov-23,Scottish & Southern Energy Plc,-£585.77
Manchester City Council,Manchester Leisure,Electricity,16-Nov-23,Scottish & Southern Energy Plc,-£548.13
Manchester City Council,Manchester Leisure,Electricity,16-Nov-23,Scottish & Southern Energy Plc,-£696.03
Manchester City Council,Manchester Leisure,Electricity,16-Nov-23,Scottish & Southern Energy Plc,-£979.02
Manchester City Council,Manchester Leisure,Electricity,16-Nov-23,Scottish & Southern Energy Plc,-£928.68
Manchester City Council,Manchester Leisure,Electricity,16-Nov-23,Scottish & Southern Energy Plc,-£854.55
Manchester City Council,Manchester Leisure,Electricity,16-Nov-23,Scottish & Southern Energy Plc,-£753.75
Manchester City Council,Manchester Leisure,Electricity,16-Nov-23,Scottish & Southern Energy Plc,-£629.22
Manchester City Council,Manchester Leisure,Electricity,16-Nov-23,Scottish & Southern Energy Plc,-£578.73
Manchester City Council,Manchester Leisure,Electricity,16-Nov-23,Scottish & Southern Energy Plc,-£547.82
Manchester City Council,Manchester Leisure,Electricity,16-Nov-23,Scottish & Southern Energy Plc,-£504.41
Manchester City Council,Manchester Leisure,Electricity,16-Nov-23,Scottish & Southern Energy Plc,-£545.00
Manchester City Council,Manchester Leisure,Electricity,16-Nov-23,Scottish & Southern Energy Plc,-£515.78
Manchester City Council,Manchester Leisure,Electricity,16-Nov-23,Scottish & Southern Energy Plc,-£586.55
Manchester City Council,Manchester Leisure,Electricity,16-Nov-23,Scottish & Southern Energy Plc,-£610.01
Manchester City Council,Manchester Leisure,Electricity,16-Nov-23,Scottish & Southern Energy Plc,-£527.67
Manchester City Council,Manchester Leisure,Electricity,16-Nov-23,Scottish & Southern Energy Plc,-£592.27
Manchester City Council,Manchester Leisure,Electricity,16-Nov-23,Scottish & Southern Energy Plc,-£642.27
Manchester City Council,Manchester Leisure,Electricity,16-Nov-23,Scottish & Southern Energy Plc,-£601.60
Manchester City Council,Manchester Leisure,Electricity,16-Nov-23,Scottish & Southern Energy Plc,-£559.27
Manchester City Council,Manchester Leisure,Electricity,16-Nov-23,Scottish & Southern Energy Plc,-£584.10
Manchester City Council,Manchester Leisure,Electricity,16-Nov-23,Scottish & Southern Energy Plc,-£663.30
Manchester City Council,Manchester Leisure,Electricity,16-Nov-23,Scottish & Southern Energy Plc,-£697.27
Manchester City Council,Manchester Leisure,Electricity,16-Nov-23,Scottish & Southern Energy Plc,-£700.38
Manchester City Council,Manchester Leisure,Electricity,16-Nov-23,Scottish & Southern Energy Plc,-£543.54
Manchester City Council,Manchester Leisure,Electricity,16-Nov-23,Scottish & Southern Energy Plc,-£657.91
Manchester City Council,Manchester Leisure,Electricity,16-Nov-23,Scottish & Southern Energy Plc,-£780.53
Manchester City Council,Manchester Leisure,Electricity,16-Nov-23,Scottish & Southern Energy Plc,-£638.55
Manchester City Council,Manchester Leisure,Electricity,16-Nov-23,Scottish & Southern Energy Plc,-£719.41
Manchester City Council,Manchester Leisure,Electricity,16-Nov-23,Scottish & Southern Energy Plc,-£580.48
Manchester City Council,Manchester Leisure,Electricity,16-Nov-23,Scottish & Southern Energy Plc,-£650.41
Manchester City Council,Manchester Leisure,Electricity,16-Nov-23,Scottish & Southern Energy Plc,-£861.84
Manchester City Council,Manchester Leisure,Electricity,16-Nov-23,Scottish & Southern Energy Plc,-£630.14
Manchester City Council,Manchester Leisure,Electricity,16-Nov-23,Scottish & Southern Energy Plc,-£691.09
Manchester City Council,Manchester Leisure,Electricity,16-Nov-23,Scottish & Southern Energy Plc,-£564.35
Manchester City Council,Manchester Leisure,Electricity,16-Nov-23,Scottish & Southern Energy Plc,-£610.01
Manchester City Council,Manchester Leisure,Electricity,16-Nov-23,Scottish & Southern Energy Plc,-£527.67
Manchester City Council,Manchester Leisure,Electricity,16-Nov-23,Scottish & Southern Energy Plc,-£592.27
Manchester City Council,Manchester Leisure,Electricity,16-Nov-23,Scottish & Southern Energy Plc,-£556.73
Manchester City Council,Manchester Leisure,Electricity,16-Nov-23,Scottish & Southern Energy Plc,-£544.52
Manchester City Council,Manchester Leisure,Electricity,16-Nov-23,Scottish & Southern Energy Plc,-£507.55
Manchester City Council,Manchester Leisure,Electricity,16-Nov-23,Scottish & Southern Energy Plc,-£508.35
Manchester City Council,Manchester Leisure,Electricity,16-Nov-23,Scottish & Southern Energy Plc,-£571.15
Manchester City Council,Manchester Leisure,Electricity,16-Nov-23,Scottish & Southern Energy Plc,-£500.04
Manchester City Council,Manchester Leisure,Electricity,16-Nov-23,Scottish & Southern Energy Plc,-£917.56
Manchester City Council,Manchester Leisure,Electricity,16-Nov-23,Scottish & Southern Energy Plc,-£714.11
Manchester City Council,Manchester Leisure,Electricity,16-Nov-23,Scottish & Southern Energy Plc,-£665.76
Manchester City Council,Manchester Leisure,Electricity,16-Nov-23,Scottish & Southern Energy Plc,-£623.13
Manchester City Council,Manchester Leisure,Electricity,16-Nov-23,Scottish & Southern Energy Plc,-£597.79
Manchester City Council,Manchester Leisure,Electricity,16-Nov-23,Scottish & Southern Energy Plc,-£610.01
Manchester City Council,Manchester Leisure,Electricity,16-Nov-23,Scottish & Southern Energy Plc,-£527.67
Manchester City Council,Manchester Leisure,Electricity,16-Nov-23,Scottish & Southern Energy Plc,-£592.27
Manchester City Council,Manchester Leisure,Electricity,16-Nov-23,Scottish & Southern Energy Plc,-£671.59
Manchester City Council,Manchester Leisure,Electricity,16-Nov-23,Scottish & Southern Energy Plc,-£619.82
Manchester City Council,Manchester Leisure,Electricity,16-Nov-23,Scottish & Southern Energy Plc,-£887.98
Manchester City Council,Manchester Leisure,Electricity,16-Nov-23,Scottish & Southern Energy Plc,-£711.61
Manchester City Council,Manchester Leisure,Electricity,16-Nov-23,Scottish & Southern Energy Plc,-£665.08
Manchester City Council,Manchester Leisure,Electricity,16-Nov-23,Scottish & Southern Energy Plc,-£652.85
Manchester City Council,Manchester Leisure,Electricity,16-Nov-23,Scottish & Southern Energy Plc,-£502.95
Manchester City Council,Manchester Leisure,Electricity,16-Nov-23,Scottish & Southern Energy Plc,"-£3,309.30"
Manchester City Council,Manchester Leisure,Electricity,16-Nov-23,Scottish & Southern Energy Plc,"-£3,184.88"
Manchester City Council,Manchester Leisure,Electricity,16-Nov-23,Scottish & Southern Energy Plc,"-£3,122.03"
Manchester City Council,Manchester Leisure,Electricity,16-Nov-23,Scottish & Southern Energy Plc,"-£2,253.36"
Manchester City Council,Manchester Leisure,Electricity,16-Nov-23,Scottish & Southern Energy Plc,"-£2,104.90"
Manchester City Council,Manchester Leisure,Electricity,16-Nov-23,Scottish & Southern Energy Plc,"-£1,457.24"
Manchester City Council,Manchester Leisure,Electricity,16-Nov-23,Scottish & Southern Energy Plc,"-£2,308.21"
Manchester City Council,Manchester Leisure,Electricity,16-Nov-23,Scottish & Southern Energy Plc,"-£1,596.66"
Manchester City Council,Manchester Leisure,Electricity,16-Nov-23,Scottish & Southern Energy Plc,"-£2,208.18"
Manchester City Council,Manchester Leisure,Electricity,16-Nov-23,Scottish & Southern Energy Plc,"-£2,267.29"
Manchester City Council,Manchester Leisure,Electricity,16-Nov-23,Scottish & Southern Energy Plc,"-£2,035.99"
Manchester City Council,Manchester Leisure,Electricity,16-Nov-23,Scottish & Southern Energy Plc,"-£2,238.57"
Manchester City Council,Manchester Leisure,Electricity,16-Nov-23,Scottish & Southern Energy Plc,"-£2,445.61"
Manchester City Council,Manchester Leisure,Electricity,16-Nov-23,Scottish & Southern Energy Plc,"-£2,186.57"
Manchester City Council,Manchester Leisure,Electricity,16-Nov-23,Scottish & Southern Energy Plc,"-£3,249.11"
Manchester City Council,Manchester Leisure,Electricity,16-Nov-23,Scottish & Southern Energy Plc,"£1,304.10"
Manchester City Council,Manchester Leisure,Electricity,16-Nov-23,Scottish & Southern Energy Plc,£763.90
Manchester City Council,Manchester Leisure,Electricity,16-Nov-23,Scottish & Southern Energy Plc,"£2,129.90"
Manchester City Council,Manchester Leisure,Electricity,16-Nov-23,Scottish & Southern Energy Plc,"£4,653.40"
Manchester City Council,Manchester Leisure,Electricity,16-Nov-23,Scottish & Southern Energy Plc,"£1,219.91"
Manchester City Council,Manchester Leisure,Electricity,16-Nov-23,Scottish & Southern Energy Plc,"£2,746.04"
Manchester City Council,Manchester Leisure,Electricity,16-Nov-23,Scottish & Southern Energy Plc,£687.54
Manchester City Council,Manchester Leisure,Electricity,16-Nov-23,Scottish & Southern Energy Plc,"£3,420.80"
Manchester City Council,Manchester Leisure,Electricity,16-Nov-23,Scottish & Southern Energy Plc,"£2,518.73"
Manchester City Council,Manchester Leisure,Electricity,16-Nov-23,Scottish & Southern Energy Plc,"£1,586.32"
Manchester City Council,Manchester Leisure,Electricity,16-Nov-23,Scottish & Southern Energy Plc,"£1,304.10"
Manchester City Council,Manchester Leisure,Electricity,16-Nov-23,Scottish & Southern Energy Plc,£603.65
Manchester City Council,Manchester Leisure,Electricity,16-Nov-23,Scottish & Southern Energy Plc,£956.64
Manchester City Council,Manchester Leisure,Electricity,16-Nov-23,Scottish & Southern Energy Plc,"£1,086.53"
Manchester City Council,Manchester Leisure,Electricity,16-Nov-23,Scottish & Southern Energy Plc,"£7,252.05"
Manchester City Council,Manchester Leisure,Electricity,16-Nov-23,Scottish & Southern Energy Plc,"£1,408.83"
Manchester City Council,Manchester Leisure,Electricity,16-Nov-23,Scottish & Southern Energy Plc,"£3,477.08"
Manchester City Council,Manchester Leisure,Electricity,16-Nov-23,Scottish & Southern Energy Plc,"£2,086.73"
Manchester City Council,Manchester Leisure,Electricity,16-Nov-23,Scottish & Southern Energy Plc,"£1,703.32"
Manchester City Council,Manchester Leisure,Electricity,16-Nov-23,Scottish & Southern Energy Plc,"£1,308.39"
Manchester City Council,Manchester Leisure,Electricity,16-Nov-23,Scottish & Southern Energy Plc,£565.54
Manchester City Council,Manchester Leisure,Electricity,16-Nov-23,Scottish & Southern Energy Plc,"£1,257.74"
Manchester City Council,Manchester Leisure,Electricity,16-Nov-23,Scottish & Southern Energy Plc,"£1,774.49"
Manchester City Council,Manchester Leisure,Electricity,16-Nov-23,Scottish & Southern Energy Plc,"£1,290.64"
Manchester City Council,Manchester Leisure,Electricity,16-Nov-23,Scottish & Southern Energy Plc,"£3,159.87"
Manchester City Council,Manchester Leisure,Electricity,16-Nov-23,Scottish & Southern Energy Plc,"£2,357.20"
Manchester City Council,Manchester Leisure,Electricity,16-Nov-23,Scottish & Southern Energy Plc,"£1,564.58"
Manchester City Council,Manchester Leisure,Electricity,16-Nov-23,Scottish & Southern Energy Plc,"£1,774.49"
Manchester City Council,Manchester Leisure,Electricity,16-Nov-23,Scottish & Southern Energy Plc,£627.86
Manchester City Council,Manchester Leisure,Electricity,16-Nov-23,Scottish & Southern Energy Plc,"£1,304.10"
Manchester City Council,Manchester Leisure,Electricity,16-Nov-23,Scottish & Southern Energy Plc,"£2,092.18"
Manchester City Council,Manchester Leisure,Electricity,16-Nov-23,Scottish & Southern Energy Plc,£987.59
Manchester City Council,Manchester Leisure,Electricity,16-Nov-23,Scottish & Southern Energy Plc,"£1,294.93"
Manchester City Council,Manchester Leisure,Electricity,16-Nov-23,Scottish & Southern Energy Plc,£653.67
Manchester City Council,Manchester Leisure,Electricity,16-Nov-23,Scottish & Southern Energy Plc,"£1,336.31"
Manchester City Council,Manchester Leisure,Electricity,16-Nov-23,Scottish & Southern Energy Plc,"£1,304.10"
Manchester City Council,Manchester Leisure,Electricity,16-Nov-23,Scottish & Southern Energy Plc,"£1,799.56"
Manchester City Council,Manchester Leisure,Electricity,16-Nov-23,Scottish & Southern Energy Plc,"£2,103.86"
Manchester City Council,Manchester Leisure,Electricity,16-Nov-23,Scottish & Southern Energy Plc,"£1,218.77"
Manchester City Council,Manchester Leisure,Electricity,16-Nov-23,Scottish & Southern Energy Plc,"£1,177.81"
Manchester City Council,Manchester Leisure,Electricity,16-Nov-23,Scottish & Southern Energy Plc,"£2,100.98"
Manchester City Council,Manchester Leisure,Electricity,16-Nov-23,Scottish & Southern Energy Plc,"£1,821.95"
Manchester City Council,Manchester Leisure,Electricity,16-Nov-23,Scottish & Southern Energy Plc,"£1,328.33"
Manchester City Council,Manchester Leisure,Electricity,16-Nov-23,Scottish & Southern Energy Plc,"£9,888.06"
Manchester City Council,Manchester Leisure,Electricity,16-Nov-23,Scottish & Southern Energy Plc,£596.49
Manchester City Council,Manchester Leisure,Electricity,16-Nov-23,Scottish & Southern Energy Plc,£552.69
Manchester City Council,Manchester Leisure,Electricity,16-Nov-23,Scottish & Southern Energy Plc,£589.58
Manchester City Council,Manchester Leisure,Electricity,16-Nov-23,Scottish & Southern Energy Plc,£802.10
Manchester City Council,Manchester Leisure,Electricity,16-Nov-23,Scottish & Southern Energy Plc,£815.34
Manchester City Council,Manchester Leisure,Electricity,16-Nov-23,Scottish & Southern Energy Plc,£865.65
Manchester City Council,Manchester Leisure,Electricity,16-Nov-23,Scottish & Southern Energy Plc,£794.83
Manchester City Council,Manchester Leisure,Electricity,16-Nov-23,Scottish & Southern Energy Plc,£785.65
Manchester City Council,Manchester Leisure,Electricity,16-Nov-23,Scottish & Southern Energy Plc,"£1,497.58"
Manchester City Council,Manchester Leisure,Electricity,16-Nov-23,Scottish & Southern Energy Plc,"£1,500.49"
Manchester City Council,Manchester Leisure,Electricity,16-Nov-23,Scottish & Southern Energy Plc,"£1,858.77"
Manchester City Council,Manchester Leisure,Electricity,16-Nov-23,Scottish & Southern Energy Plc,"£2,453.54"
Manchester City Council,Manchester Leisure,Electricity,16-Nov-23,Scottish & Southern Energy Plc,"£2,874.85"
Manchester City Council,Manchester Leisure,Electricity,16-Nov-23,Scottish & Southern Energy Plc,£818.07
Manchester City Council,Manchester Leisure,Electricity,16-Nov-23,Scottish & Southern Energy Plc,£941.19
Manchester City Council,Manchester Leisure,Electricity,16-Nov-23,Scottish & Southern Energy Plc,"£1,103.10"
Manchester City Council,Manchester Leisure,Electricity,16-Nov-23,Scottish & Southern Energy Plc,"£1,304.10"
Manchester City Council,Manchester Leisure,Electricity,16-Nov-23,Scottish & Southern Energy Plc,"£2,197.35"
Manchester City Council,Manchester Leisure,Electricity,16-Nov-23,Scottish & Southern Energy Plc,"£1,175.96"
Manchester City Council,Manchester Leisure,Electricity,16-Nov-23,Scottish & Southern Energy Plc,"£2,117.66"
Manchester City Council,Manchester Leisure,Electricity,16-Nov-23,Scottish & Southern Energy Plc,£767.88
Manchester City Council,Manchester Leisure,Electricity,16-Nov-23,Scottish & Southern Energy Plc,"£1,428.15"
Manchester City Council,Manchester Leisure,Electricity,16-Nov-23,Scottish & Southern Energy Plc,"£2,761.47"
Manchester City Council,Manchester Leisure,Electricity,16-Nov-23,Scottish & Southern Energy Plc,"£1,661.77"
Manchester City Council,Manchester Leisure,Electricity,16-Nov-23,Scottish & Southern Energy Plc,"£1,938.54"
Manchester City Council,Manchester Leisure,Electricity,16-Nov-23,Scottish & Southern Energy Plc,"£1,881.71"
Manchester City Council,Manchester Leisure,Electricity,16-Nov-23,Scottish & Southern Energy Plc,"£1,341.58"
Manchester City Council,Manchester Leisure,Electricity,16-Nov-23,Scottish & Southern Energy Plc,"£2,734.48"
Manchester City Council,Manchester Leisure,Electricity,16-Nov-23,Scottish & Southern Energy Plc,"£1,826.97"
Manchester City Council,Manchester Leisure,Electricity,16-Nov-23,Scottish & Southern Energy Plc,"£2,019.65"
Manchester City Council,Manchester Leisure,Electricity,16-Nov-23,Scottish & Southern Energy Plc,"£1,838.36"
Manchester City Council,Manchester Leisure,Electricity,16-Nov-23,Scottish & Southern Energy Plc,"£1,675.90"
Manchester City Council,Manchester Leisure,Electricity,16-Nov-23,Scottish & Southern Energy Plc,£506.06
Manchester City Council,Manchester Leisure,Electricity,16-Nov-23,Scottish & Southern Energy Plc,"£1,914.31"
Manchester City Council,Manchester Leisure,Electricity,16-Nov-23,Scottish & Southern Energy Plc,"£1,304.10"
Manchester City Council,Manchester Leisure,Electricity,16-Nov-23,Scottish & Southern Energy Plc,£937.32
Manchester City Council,Manchester Leisure,Electricity,16-Nov-23,Scottish & Southern Energy Plc,£628.24
Manchester City Council,Hospitality + Trading Services,Electricity,16-Nov-23,Scottish & Southern Energy Plc,"£23,974.85"
Manchester City Council,Hospitality + Trading Services,Electricity,16-Nov-23,Scottish & Southern Energy Plc,"£70,263.69"
Manchester City Council,Hospitality + Trading Services,Electricity,16-Nov-23,Scottish & Southern Energy Plc,£778.70
Manchester City Council,Childrens & Education Services,Electricity,16-Nov-23,Scottish & Southern Energy Plc,-£565.76
Manchester City Council,Childrens & Education Services,Electricity,16-Nov-23,Scottish & Southern Energy Plc,-£581.94
Manchester City Council,Childrens & Education Services,Electricity,16-Nov-23,Scottish & Southern Energy Plc,-£783.11
Manchester City Council,Childrens & Education Services,Electricity,16-Nov-23,Scottish & Southern Energy Plc,-£750.27
Manchester City Council,Childrens & Education Services,Electricity,16-Nov-23,Scottish & Southern Energy Plc,-£526.87
Manchester City Council,Childrens & Education Services,Electricity,16-Nov-23,Scottish & Southern Energy Plc,-£506.45
Manchester City Council,Childrens & Education Services,Electricity,16-Nov-23,Scottish & Southern Energy Plc,-£515.36
